Workbook

Sheet 河合塾
A1: 河合 | B1: １．オレンジの部分に河合を貼る。
B2: 大学コード(10桁) | C2: 大学名 | D2: 学部名 | E2: 学科名 | F2: 日程方式コード | G2: 日程方式名
A3: 1 | B3: 1005600101 | C3: 旭川医科 | D3: 医 | E3: 医 | G3: 前期 | H3: =C3&"大"&D3&E3&LEFT(G3,1) -> 旭川医科大医医前
A4: 2 | B4: 1005600102 | C4: 旭川医科 | D4: 医 | E4: 医 | G4: 後期 | H4: =C4&"大"&D4&E4&LEFT(G4,1) -> 旭川医科大医医後
A5: 3 | B5: 1005600201 | C5: 旭川医科 | D5: 医 | E5: 看護 | G5: 前期 | H5: 旭川医科大医看護前
A6: 4 | B6: 1005600202 | C6: 旭川医科 | D6: 医 | E6: 看護 | G6: 後期 | H6: 旭川医科大医看護後
A7: 5 | B7: 1010180001 | C7: 小樽商科 | D7: 商（昼間） | G7: 前期 | H7: 小樽商科大商（昼間）前
A8: 6 | B8: 1010180002 | C8: 小樽商科 | D8: 商（昼間） | G8: 後期 | H8: 小樽商科大商（昼間）後
A9: 7 | B9: 1010270001 | C9: 小樽商科 | D9: 商（夜間主） | G9: 前期 | H9: 小樽商科大商（夜間主）前
A10: 8 | B10: 1015500101 | C10: 帯広畜産 | D10: 畜産 | E10: 共同獣医学 | G10: 前期 | H10: 帯広畜産大畜産共同獣医学前
A11: 9 | B11: 1015500102 | C11: 帯広畜産 | D11: 畜産 | E11: 共同獣医学 | G11: 後期 | H11: 帯広畜産大畜産共同獣医学後
A12: 10 | B12: 1015500501 | C12: 帯広畜産 | D12: 畜産 | E12: 畜産科学 | G12: 前期 | H12: 帯広畜産大畜産畜産科学前
A13: 11 | B13: 1015500502 | C13: 帯広畜産 | D13: 畜産 | E13: 畜産科学 | G13: 後期 | H13: 帯広畜産大畜産畜産科学後
A14: 12 | B14: 1020413401 | C14: 北見工業 | D14: 工 | E14: 地球環境工 | G14: 前期 | H14: 北見工業大工地球環境工前
A15: 13 | B15: 1020413402 | C15: 北見工業 | D15: 工 | E15: 地球環境工 | G15: 後期 | H15: 北見工業大工地球環境工後
A16: 14 | B16: 1020413501 | C16: 北見工業 | D16: 工 | E16: 地域未来デザイン工 | G16: 前期 | H16: 北見工業大工地域未来デザイン工前
A17: 15 | B17: 1020413502 | C17: 北見工業 | D17: 工 | E17: 地域未来デザイン工 | G17: 後期 | H17: 北見工業大工地域未来デザイン工後
A18: 16 | B18: 1025010101 | C18: 北海道 | D18: 文 | E18: 人文科学 | G18: 前期 | H18: 北海道大文人文科学前
A19: 17 | B19: 1025010102 | C19: 北海道 | D19: 文 | E19: 人文科学 | G19: 後期 | H19: 北海道大文人文科学後
A20: 18 | B20: 1025020101 | C20: 北海道 | D20: 教育 | E20: 教育 | G20: 前期 | H20: 北海道大教育教育前
A21: 19 | B21: 1025020102 | C21: 北海道 | D21: 教育 | E21: 教育 | G21: 後期 | H21: 北海道大教育教育後
A22: 20 | B22: 1025130101 | C22: 北海道 | D22: 法 | E22: 法学 | G22: 前期 | H22: 北海道大法法学前
A23: 21 | B23: 1025130102 | C23: 北海道 | D23: 法 | E23: 法学 | G23: 後期 | H23: 北海道大法法学後
A24: 22 | B24: 1025160001 | C24: 北海道 | D24: 経済 | G24: 前期 | H24: 北海道大経済前
A25: 23 | B25: 1025160002 | C25: 北海道 | D25: 経済 | G25: 後期 | H25: 北海道大経済後
A26: 24 | B26: 1025400101 | C26: 北海道 | D26: 理 | E26: 数学 | G26: 後期 | H26: 北海道大理数学後
A27: 25 | B27: 1025400201 | C27: 北海道 | D27: 理 | E27: 物理 | G27: 後期 | H27: 北海道大理物理後
A28: 26 | B28: 1025400301 | C28: 北海道 | D28: 理 | E28: 化学 | G28: 後期 | H28: 北海道大理化学後
A29: 27 | B29: 1025400501 | C29: 北海道 | D29: 理 | E29: 地球惑星科学 | G29: 後期 | H29: 北海道大理地球惑星科学後
A30: 28 | B30: 1025403701 | C30: 北海道 | D30: 理 | E30: 生物－生物学 | G30: 後期 | H30: 北海道大理生物－生物学後
A31: 29 | B31: 1025403801 | C31: 北海道 | D31: 理 | E31: 生物－高分子機能学 | G31: 後期 | H31: 北海道大理生物－高分子機能学後
A32: 30 | B32: 1025411302 | C32: 北海道 | D32: 工 | E32: 応用理工系 | G32: 後期 | H32: 北海道大工応用理工系後
A33: 31 | B33: 1025411402 | C33: 北海道 | D33: 工 | E33: 情報エレクトロニクス | G33: 後期 | H33: 北海道大工情報エレクトロニクス後
A34: 32 | B34: 1025411502 | C34: 北海道 | D34: 工 | E34: 機械知能工 | G34: 後期 | H34: 北海道大工機械知能工後
A35: 33 | B35: 1025411602 | C35: 北海道 | D35: 工 | E35: 環境社会工 | G35: 後期 | H35: 北海道大工環境社会工後
A36: 34 | B36: 1025480002 | C36: 北海道 | D36: 農 | G36: 後期 | H36: 北海道大農後
A37: 35 | B37: 1025490101 | C37: 北海道 | D37: 獣医 | E37: 共同獣医学 | G37: 前期 | H37: 北海道大獣医共同獣医学前
A38: 36 | B38: 1025490102 | C38: 北海道 | D38: 獣医 | E38: 共同獣医学 | G38: 後期 | H38: 北海道大獣医共同獣医学後
A39: 37 | B39: 1025510001 | C39: 北海道 | D39: 水産 | G39: 前期 | H39: 北海道大水産前
A40: 38 | B40: 1025510002 | C40: 北海道 | D40: 水産 | G40: 後期 | H40: 北海道大水産後
A41: 39 | B41: 1025600101 | C41: 北海道 | D41: 医 | E41: 医 | G41: 前期 | H41: 北海道大医医前
A42: 40 | B42: 1025603101 | C42: 北海道 | D42: 医 | E42: 保健－看護学 | G42: 前期 | H42: 北海道大医保健－看護学前
A43: 41 | B43: 1025603201 | C43: 北海道 | D43: 医 | E43: 保健－放射線技術科学 | G43: 前期 | H43: 北海道大医保健－放射線技術科学前
A44: 42 | B44: 1025603202 | C44: 北海道 | D44: 医 | E44: 保健－放射線技術科学 | G44: 後期 | H44: 北海道大医保健－放射線技術科学後
A45: 43 | B45: 1025603301 | C45: 北海道 | D45: 医 | E45: 保健－検査技術科学 | G45: 前期 | H45: 北海道大医保健－検査技術科学前
A46: 44 | B46: 1025603302 | C46: 北海道 | D46: 医 | E46: 保健－検査技術科学 | G46: 後期 | H46: 北海道大医保健－検査技術科学後
A47: 45 | B47: 1025603401 | C47: 北海道 | D47: 医 | E47: 保健－理学療法学 | G47: 前期 | H47: 北海道大医保健－理学療法学前
A48: 46 | B48: 1025603402 | C48: 北海道 | D48: 医 | E48: 保健－理学療法学 | G48: 後期 | H48: 北海道大医保健－理学療法学後
A49: 47 | B49: 1025603501 | C49: 北海道 | D49: 医 | E49: 保健－作業療法学 | G49: 前期 | H49: 北海道大医保健－作業療法学前
A50: 48 | B50: 1025610101 | C50: 北海道 | D50: 歯 | E50: 歯 | G50: 前期 | H50: 北海道大歯歯前
A51: 49 | B51: 1025610102 | C51: 北海道 | D51: 歯 | E51: 歯 | G51: 後期 | H51: 北海道大歯歯後
A52: 50 | B52: 1025620002 | C52: 北海道 | D52: 薬 | G52: 後期 | H52: 北海道大薬後
A53: 51 | B53: 1025800001 | C53: 北海道 | D53: 総合入試文系 | G53: 前期 | H53: 北海道大総合入試文系前
A54: 52 | B54: 1025810001 | C54: 北海道 | D54: 総合入試理系 | E54: 数学重点 | G54: 前期 | H54: 北海道大総合入試理系数学重点前
A55: 53 | B55: 1025810002 | C55: 北海道 | D55: 総合入試理系 | E55: 物理重点 | G55: 前期 | H55: 北海道大総合入試理系物理重点前
A56: 54 | B56: 1025810003 | C56: 北海道 | D56: 総合入試理系 | E56: 化学重点 | G56: 前期 | H56: 北海道大総合入試理系化学重点前
A57: 55 | B57: 1025810004 | C57: 北海道 | D57: 総合入試理系 | E57: 生物重点 | G57: 前期 | H57: 北海道大総合入試理系生物重点前
A58: 56 | B58: 1025810005 | C58: 北海道 | D58: 総合入試理系 | E58: 総合科学 | G58: 前期 | H58: 北海道大総合入試理系総合科学前
A59: 57 | B59: 1030323401 | C59: 北海道教育 | D59: 教育札幌校 | E59: 教員－特別支援教育 | G59: 前期 | H59: 北海道教育大教育札幌校教員－特別支援教育前
A60: 58 | B60: 1030323402 | C60: 北海道教育 | D60: 教育札幌校 | E60: 教員－特別支援教育 | G60: 後期 | H60: 北海道教育大教育札幌校教員－特別支援教育後
A61: 59 | B61: 1030323701 | C61: 北海道教育 | D61: 教育札幌校 | E61: 教員－養護教育 | G61: 前期 | H61: 北海道教育大教育札幌校教員－養護教育前
A62: 60 | B62: 1030323702 | C62: 北海道教育 | D62: 教育札幌校 | E62: 教員－養護教育 | G62: 後期 | H62: 北海道教育大教育札幌校教員－養護教育後
A63: 61 | B63: 1030323801 | C63: 北海道教育 | D63: 教育札幌校 | E63: 教員－学校教育 | G63: 前期 | H63: 北海道教育大教育札幌校教員－学校教育前
A64: 62 | B64: 1030323802 | C64: 北海道教育 | D64: 教育札幌校 | E64: 教員－学校教育 | G64: 後期 | H64: 北海道教育大教育札幌校教員－学校教育後
A65: 63 | B65: 1030323901 | C65: 北海道教育 | D65: 教育札幌校 | E65: 教員－言語・社会教育 | G65: 前期 | H65: 北海道教育大教育札幌校教員－言語・社会教育前
A66: 64 | B66: 1030323902 | C66: 北海道教育 | D66: 教育札幌校 | E66: 教員－言語・社会教育 | G66: 後期 | H66: 北海道教育大教育札幌校教員－言語・社会教育後
A67: 65 | B67: 1030324001 | C67: 北海道教育 | D67: 教育札幌校 | E67: 教員－理数教育 | G67: 前期 | H67: 北海道教育大教育札幌校教員－理数教育前
A68: 66 | B68: 1030324002 | C68: 北海道教育 | D68: 教育札幌校 | E68: 教員－理数教育 | G68: 後期 | H68: =C68&"大"&D68&E68&LEFT(G68,1) -> 北海道教育大教育札幌校教員－理数教育後
A69: 67 | B69: 1030324101 | C69: 北海道教育 | D69: 教育札幌校 | E69: 教員－生活創造教育 | G69: 前期 | H69: 北海道教育大教育札幌校教員－生活創造教育前
A70: 68 | B70: 1030324102 | C70: 北海道教育 | D70: 教育札幌校 | E70: 教員－生活創造教育 | G70: 後期 | H70: 北海道教育大教育札幌校教員－生活創造教育後
A71: 69 | B71: 1030324201 | C71: 北海道教育 | D71: 教育札幌校 | E71: 教員－図画工作・美術教育 | G71: 前期 | H71: 北海道教育大教育札幌校教員－図画工作・美術教育前
A72: 70 | B72: 1030324301 | C72: 北海道教育 | D72: 教育札幌校 | E72: 教員－音楽教育 | G72: 前期 | H72: 北海道教育大教育札幌校教員－音楽教育前
A73: 71 | B73: 1030324401 | C73: 北海道教育 | D73: 教育札幌校 | E73: 教員－保健体育教育 | G73: 前期 | H73: 北海道教育大教育札幌校教員－保健体育教育前
A74: 72 | B74: 1030330801 | C74: 北海道教育 | D74: 教育函館校 | E74: 国際－国際協働 | G74: 前期 | H74: 北海道教育大教育函館校国際－国際協働前
A75: 73 | B75: 1030330802 | C75: 北海道教育 | D75: 教育函館校 | E75: 国際－国際協働 | G75: 後期 | H75: 北海道教育大教育函館校国際－国際協働後
A76: 74 | B76: 1030330901 | C76: 北海道教育 | D76: 教育函館校 | E76: 国際－地域政策 | G76: 前期 | H76: 北海道教育大教育函館校国際－地域政策前
A77: 75 | B77: 1030330902 | C77: 北海道教育 | D77: 教育函館校 | E77: 国際－地域政策 | G77: 後期 | H77: 北海道教育大教育函館校国際－地域政策後
A78: 76 | B78: 1030331001 | C78: 北海道教育 | D78: 教育函館校 | E78: 国際－地域環境科学 | G78: 前期 | H78: 北海道教育大教育函館校国際－地域環境科学前
A79: 77 | B79: 1030331002 | C79: 北海道教育 | D79: 教育函館校 | E79: 国際－地域環境科学 | G79: 後期 | H79: 北海道教育大教育函館校国際－地域環境科学後
A80: 78 | B80: 1030331101 | C80: 北海道教育 | D80: 教育函館校 | E80: 国際－地域教育 | G80: 前期 | H80: 北海道教育大教育函館校国際－地域教育前
A81: 79 | B81: 1030331102 | C81: 北海道教育 | D81: 教育函館校 | E81: 国際－地域教育 | G81: 後期 | H81: 北海道教育大教育函館校国際－地域教育後
A82: 80 | B82: 1030343701 | C82: 北海道教育 | D82: 教育旭川校 | E82: 教員－教育発達 | G82: 前期 | H82: 北海道教育大教育旭川校教員－教育発達前
A83: 81 | B83: 1030343702 | C83: 北海道教育 | D83: 教育旭川校 | E83: 教員－教育発達 | G83: 後期 | H83: 北海道教育大教育旭川校教員－教育発達後
A84: 82 | B84: 1030343801 | C84: 北海道教育 | D84: 教育旭川校 | E84: 教員－国語 | G84: 前期 | H84: 北海道教育大教育旭川校教員－国語前
A85: 83 | B85: 1030343802 | C85: 北海道教育 | D85: 教育旭川校 | E85: 教員－国語 | G85: 後期 | H85: 北海道教育大教育旭川校教員－国語後
A86: 84 | B86: 1030343901 | C86: 北海道教育 | D86: 教育旭川校 | E86: 教員－英語 | G86: 前期 | H86: 北海道教育大教育旭川校教員－英語前
A87: 85 | B87: 1030343902 | C87: 北海道教育 | D87: 教育旭川校 | E87: 教員－英語 | G87: 後期 | H87: 北海道教育大教育旭川校教員－英語後
A88: 86 | B88: 1030344001 | C88: 北海道教育 | D88: 教育旭川校 | E88: 教員－社会科 | G88: 前期 | H88: 北海道教育大教育旭川校教員－社会科前
A89: 87 | B89: 1030344002 | C89: 北海道教育 | D89: 教育旭川校 | E89: 教員－社会科 | G89: 後期 | H89: 北海道教育大教育旭川校教員－社会科後
A90: 88 | B90: 1030344101 | C90: 北海道教育 | D90: 教育旭川校 | E90: 教員－数学 | G90: 前期 | H90: 北海道教育大教育旭川校教員－数学前
A91: 89 | B91: 1030344102 | C91: 北海道教育 | D91: 教育旭川校 | E91: 教員－数学 | G91: 後期 | H91: 北海道教育大教育旭川校教員－数学後
A92: 90 | B92: 1030344201 | C92: 北海道教育 | D92: 教育旭川校 | E92: 教員－理科 | G92: 前期 | H92: 北海道教育大教育旭川校教員－理科前
A93: 91 | B93: 1030344202 | C93: 北海道教育 | D93: 教育旭川校 | E93: 教員－理科 | G93: 後期 | H93: 北海道教育大教育旭川校教員－理科後
A94: 92 | B94: 1030344301 | C94: 北海道教育 | D94: 教育旭川校 | E94: 教員－生活・技術 | G94: 前期 | H94: 北海道教育大教育旭川校教員－生活・技術前
A95: 93 | B95: 1030344302 | C95: 北海道教育 | D95: 教育旭川校 | E95: 教員－生活・技術 | G95: 後期 | H95: 北海道教育大教育旭川校教員－生活・技術後
A96: 94 | B96: 1030344403 | C96: 北海道教育 | D96: 教育旭川校 | E96: 教員－保健体育 | G96: 前期 | H96: 北海道教育大教育旭川校教員－保健体育前
A97: 95 | B97: 1030344405 | C97: 北海道教育 | D97: 教育旭川校 | E97: 教員－芸術（音楽） | G97: 前期 | H97: 北海道教育大教育旭川校教員－芸術（音楽）前
A98: 96 | B98: 1030344406 | C98: 北海道教育 | D98: 教育旭川校 | E98: 教員－芸術（美術） | G98: 前期 | H98: 北海道教育大教育旭川校教員－芸術（美術）前
A99: 97 | B99: 1030354001 | C99: 北海道教育 | D99: 教育釧路校 | E99: 教員－地域学校教育実践 | G99: 前期 | H99: 北海道教育大教育釧路校教員－地域学校教育実践前
A100: 98 | B100: 1030354002 | C100: 北海道教育 | D100: 教育釧路校 | E100: 教員－地域学校教育実践 | G100: 後期 | H100: 北海道教育大教育釧路校教員－地域学校教育実践後
A101: 99 | B101: 1030360601 | C101: 北海道教育 | D101: 教育岩見沢校 | E101: 芸術－芸術・スポーツビジネス | G101: 前期 | H101: 北海道教育大教育岩見沢校芸術－芸術・スポーツビジネス前
A102: 100 | B102: 1030360602 | C102: 北海道教育 | D102: 教育岩見沢校 | E102: 芸術－芸術・スポーツビジネス | G102: 後期 | H102: 北海道教育大教育岩見沢校芸術－芸術・スポーツビジネス後
A103: 101 | B103: 1030360701 | C103: 北海道教育 | D103: 教育岩見沢校 | E103: 芸術－音楽文化 | G103: 後期 | H103: 北海道教育大教育岩見沢校芸術－音楽文化後
A104: 102 | B104: 1030360801 | C104: 北海道教育 | D104: 教育岩見沢校 | E104: 芸術－声楽 | G104: 前期 | H104: 北海道教育大教育岩見沢校芸術－声楽前
A105: 103 | B105: 1030360901 | C105: 北海道教育 | D105: 教育岩見沢校 | E105: 芸術－鍵盤楽器・作曲 | G105: 前期 | H105: 北海道教育大教育岩見沢校芸術－鍵盤楽器・作曲前
A106: 104 | B106: 1030361001 | C106: 北海道教育 | D106: 教育岩見沢校 | E106: 芸術－管弦打楽器 | G106: 前期 | H106: 北海道教育大教育岩見沢校芸術－管弦打楽器前
A107: 105 | B107: 1030361101 | C107: 北海道教育 | D107: 教育岩見沢校 | E107: 芸術－音楽教育・音楽文化 | G107: 前期 | H107: 北海道教育大教育岩見沢校芸術－音楽教育・音楽文化前
A108: 106 | B108: 1030361201 | C108: 北海道教育 | D108: 教育岩見沢校 | E108: 芸術－美術・デザイン | G108: 前期 | H108: 北海道教育大教育岩見沢校芸術－美術・デザイン前
A109: 107 | B109: 1030361202 | C109: 北海道教育 | D109: 教育岩見沢校 | E109: 芸術－美術・デザイン | G109: 後期 | H109: 北海道教育大教育岩見沢校芸術－美術・デザイン後
A110: 108 | B110: 1030361301 | C110: 北海道教育 | D110: 教育岩見沢校 | E110: 芸術－書画・工芸 | G110: 前期 | H110: 北海道教育大教育岩見沢校芸術－書画・工芸前
A111: 109 | B111: 1030361302 | C111: 北海道教育 | D111: 教育岩見沢校 | E111: 芸術－書画・工芸 | G111: 後期 | H111: 北海道教育大教育岩見沢校芸術－書画・工芸後
A112: 110 | B112: 1030361401 | C112: 北海道教育 | D112: 教育岩見沢校 | E112: 芸術－メディア・タイムアート | G112: 前期 | H112: 北海道教育大教育岩見沢校芸術－メディア・タイムアート前
A113: 111 | B113: 1030361402 | C113: 北海道教育 | D113: 教育岩見沢校 | E113: 芸術－メディア・タイムアート | G113: 後期 | H113: 北海道教育大教育岩見沢校芸術－メディア・タイムアート後
A114: 112 | B114: 1030361501 | C114: 北海道教育 | D114: 教育岩見沢校 | E114: 芸術－美術文化教育 | G114: 前期 | H114: 北海道教育大教育岩見沢校芸術－美術文化教育前
A115: 113 | B115: 1030361502 | C115: 北海道教育 | D115: 教育岩見沢校 | E115: 芸術－美術文化教育 | G115: 後期 | H115: 北海道教育大教育岩見沢校芸術－美術文化教育後
A116: 114 | B116: 1030361601 | C116: 北海道教育 | D116: 教育岩見沢校 | E116: 芸術－スポーツ・コーチング科学 | G116: 前期 | H116: 北海道教育大教育岩見沢校芸術－スポーツ・コーチング科学前
A117: 115 | B117: 1030361602 | C117: 北海道教育 | D117: 教育岩見沢校 | E117: 芸術－スポーツ・コーチング科学 | G117: 後期 | H117: 北海道教育大教育岩見沢校芸術－スポーツ・コーチング科学後
A118: 116 | B118: 1030361701 | C118: 北海道教育 | D118: 教育岩見沢校 | E118: 芸術－アウトドア・ライフ | G118: 前期 | H118: 北海道教育大教育岩見沢校芸術－アウトドア・ライフ前
A119: 117 | B119: 1030361702 | C119: 北海道教育 | D119: 教育岩見沢校 | E119: 芸術－アウトドア・ライフ | G119: 後期 | H119: 北海道教育大教育岩見沢校芸術－アウトドア・ライフ後
A120: 118 | B120: 1035420101 | C120: 室蘭工業 | D120: 理工（昼間） | E120: 創造工 | G120: 前期 | H120: 室蘭工業大理工（昼間）創造工前
A121: 119 | B121: 1035420102 | C121: 室蘭工業 | D121: 理工（昼間） | E121: 創造工 | G121: 後期 | H121: 室蘭工業大理工（昼間）創造工後
A122: 120 | B122: 1035420201 | C122: 室蘭工業 | D122: 理工（昼間） | E122: システム理化学 | G122: 前期 | H122: 室蘭工業大理工（昼間）システム理化学前
A123: 121 | B123: 1035420202 | C123: 室蘭工業 | D123: 理工（昼間） | E123: システム理化学 | G123: 後期 | H123: 室蘭工業大理工（昼間）システム理化学後
A124: 122 | B124: 1035540101 | C124: 室蘭工業 | D124: 理工（夜間主） | E124: 創造工 | G124: 前期 | H124: 室蘭工業大理工（夜間主）創造工前
A125: 123 | B125: 1035540102 | C125: 室蘭工業 | D125: 理工（夜間主） | E125: 創造工 | G125: 後期 | H125: 室蘭工業大理工（夜間主）創造工後
A126: 124 | B126: 1040070101 | C126: 弘前 | D126: 人文社会科学 | E126: 文化創生 | G126: 前期 | H126: 弘前大人文社会科学文化創生前
A127: 125 | B127: 1040070102 | C127: 弘前 | D127: 人文社会科学 | E127: 文化創生 | G127: 後期 | H127: 弘前大人文社会科学文化創生後
A128: 126 | B128: 1040070201 | C128: 弘前 | D128: 人文社会科学 | E128: 社会経営（国語選択） | G128: 前期 | H128: 弘前大人文社会科学社会経営（国語選択）前
A129: 127 | B129: 1040070202 | C129: 弘前 | D129: 人文社会科学 | E129: 社会経営（数学選択） | G129: 前期 | H129: 弘前大人文社会科学社会経営（数学選択）前
A130: 128 | B130: 1040070203 | C130: 弘前 | D130: 人文社会科学 | E130: 社会経営 | G130: 後期 | H130: 弘前大人文社会科学社会経営後
A131: 129 | B131: 1040300201 | C131: 弘前 | D131: 教育 | E131: 養護教諭養成 | G131: 前期 | H131: 弘前大教育養護教諭養成前
A132: 130 | B132: 1040304401 | C132: 弘前 | D132: 教育 | E132: 学校－特別支援教育 | G132: 前期 | H132: =C132&"大"&D132&E132&LEFT(G132,1) -> 弘前大教育学校－特別支援教育前
A133: 131 | B133: 1040306201 | C133: 弘前 | D133: 教育 | E133: 学校－小学校 | G133: 前期 | H133: 弘前大教育学校－小学校前
A134: 132 | B134: 1040306202 | C134: 弘前 | D134: 教育 | E134: 学校－小学校 | G134: 後期 | H134: 弘前大教育学校－小学校後
A135: 133 | B135: 1040306301 | C135: 弘前 | D135: 教育 | E135: 学校－中学国語 | G135: 前期 | H135: 弘前大教育学校－中学国語前
A136: 134 | B136: 1040306401 | C136: 弘前 | D136: 教育 | E136: 学校－中学社会 | G136: 前期 | H136: 弘前大教育学校－中学社会前
A137: 135 | B137: 1040306501 | C137: 弘前 | D137: 教育 | E137: 学校－中学数学 | G137: 前期 | H137: 弘前大教育学校－中学数学前
A138: 136 | B138: 1040306601 | C138: 弘前 | D138: 教育 | E138: 学校－中学理科 | G138: 前期 | H138: 弘前大教育学校－中学理科前
A139: 137 | B139: 1040306701 | C139: 弘前 | D139: 教育 | E139: 学校－中学音楽 | G139: 前期 | H139: 弘前大教育学校－中学音楽前
A140: 138 | B140: 1040306801 | C140: 弘前 | D140: 教育 | E140: 学校－中学美術 | G140: 前期 | H140: 弘前大教育学校－中学美術前
A141: 139 | B141: 1040306901 | C141: 弘前 | D141: 教育 | E141: 学校－中学保健体育 | G141: 前期 | H141: 弘前大教育学校－中学保健体育前
A142: 140 | B142: 1040307001 | C142: 弘前 | D142: 教育 | E142: 学校－中学技術 | G142: 前期 | H142: 弘前大教育学校－中学技術前
A143: 141 | B143: 1040307101 | C143: 弘前 | D143: 教育 | E143: 学校－中学家庭科 | G143: 前期 | H143: 弘前大教育学校－中学家庭科前
A144: 142 | B144: 1040307201 | C144: 弘前 | D144: 教育 | E144: 学校－中学英語 | G144: 前期 | H144: 弘前大教育学校－中学英語前
A145: 143 | B145: 1040420401 | C145: 弘前 | D145: 理工 | E145: 電子情報工 | G145: 前期 | H145: 弘前大理工電子情報工前
A146: 144 | B146: 1040420402 | C146: 弘前 | D146: 理工 | E146: 電子情報工 | G146: 後期 | H146: 弘前大理工電子情報工後
A147: 145 | B147: 1040420601 | C147: 弘前 | D147: 理工 | E147: 物質創成化学 | G147: 前期 | H147: 弘前大理工物質創成化学前
A148: 146 | B148: 1040420602 | C148: 弘前 | D148: 理工 | E148: 物質創成化学 | G148: 後期 | H148: 弘前大理工物質創成化学後
A149: 147 | B149: 1040420701 | C149: 弘前 | D149: 理工 | E149: 数物科学（数学選択） | G149: 前期 | H149: 弘前大理工数物科学（数学選択）前
A150: 148 | B150: 1040420702 | C150: 弘前 | D150: 理工 | E150: 数物科学（数学・理科選択） | G150: 前期 | H150: 弘前大理工数物科学（数学・理科選択）前
A151: 149 | B151: 1040420703 | C151: 弘前 | D151: 理工 | E151: 数物科学（数学選択） | G151: 後期 | H151: 弘前大理工数物科学（数学選択）後
A152: 150 | B152: 1040420704 | C152: 弘前 | D152: 理工 | E152: 数物科学（理科選択） | G152: 後期 | H152: 弘前大理工数物科学（理科選択）後
A153: 151 | B153: 1040420801 | C153: 弘前 | D153: 理工 | E153: 地球環境防災 | G153: 前期 | H153: 弘前大理工地球環境防災前
A154: 152 | B154: 1040420802 | C154: 弘前 | D154: 理工 | E154: 地球環境防災 | G154: 後期 | H154: 弘前大理工地球環境防災後
A155: 153 | B155: 1040420901 | C155: 弘前 | D155: 理工 | E155: 機械科学 | G155: 前期 | H155: 弘前大理工機械科学前
A156: 154 | B156: 1040420902 | C156: 弘前 | D156: 理工 | E156: 機械科学 | G156: 後期 | H156: 弘前大理工機械科学後
A157: 155 | B157: 1040421001 | C157: 弘前 | D157: 理工 | E157: 自然エネルギー | G157: 前期 | H157: 弘前大理工自然エネルギー前
A158: 156 | B158: 1040421002 | C158: 弘前 | D158: 理工 | E158: 自然エネルギー | G158: 後期 | H158: 弘前大理工自然エネルギー後
A159: 157 | B159: 1040490501 | C159: 弘前 | D159: 農学生命科学 | E159: 生物 | G159: 前期 | H159: 弘前大農学生命科学生物前
A160: 158 | B160: 1040490502 | C160: 弘前 | D160: 農学生命科学 | E160: 生物 | G160: 後期 | H160: 弘前大農学生命科学生物後
A161: 159 | B161: 1040490601 | C161: 弘前 | D161: 農学生命科学 | E161: 分子生命科学 | G161: 前期 | H161: 弘前大農学生命科学分子生命科学前
A162: 160 | B162: 1040490602 | C162: 弘前 | D162: 農学生命科学 | E162: 分子生命科学 | G162: 後期 | H162: 弘前大農学生命科学分子生命科学後
A163: 161 | B163: 1040490901 | C163: 弘前 | D163: 農学生命科学 | E163: 地域環境工 | G163: 前期 | H163: 弘前大農学生命科学地域環境工前
A164: 162 | B164: 1040490902 | C164: 弘前 | D164: 農学生命科学 | E164: 地域環境工 | G164: 後期 | H164: 弘前大農学生命科学地域環境工後
A165: 163 | B165: 1040491001 | C165: 弘前 | D165: 農学生命科学 | E165: 食料資源 | G165: 前期 | H165: 弘前大農学生命科学食料資源前
A166: 164 | B166: 1040491002 | C166: 弘前 | D166: 農学生命科学 | E166: 食料資源 | G166: 後期 | H166: 弘前大農学生命科学食料資源後
A167: 165 | B167: 1040491101 | C167: 弘前 | D167: 農学生命科学 | E167: 国際園芸農 | G167: 前期 | H167: 弘前大農学生命科学国際園芸農前
A168: 166 | B168: 1040491102 | C168: 弘前 | D168: 農学生命科学 | E168: 国際園芸農 | G168: 後期 | H168: 弘前大農学生命科学国際園芸農後
A169: 167 | B169: 1040600101 | C169: 弘前 | D169: 医 | E169: 医（一般枠） | G169: 前期 | H169: 弘前大医医（一般枠）前
A170: 168 | B170: 1040600103 | C170: 弘前 | D170: 医 | E170: 医（青森県定着枠） | G170: 前期 | H170: 弘前大医医（青森県定着枠）前
A171: 169 | B171: 1040603101 | C171: 弘前 | D171: 医 | E171: 保健－看護学 | G171: 前期 | H171: 弘前大医保健－看護学前
A172: 170 | B172: 1040603201 | C172: 弘前 | D172: 医 | E172: 保健－放射線技術科学 | G172: 前期 | H172: 弘前大医保健－放射線技術科学前
A173: 171 | B173: 1040603301 | C173: 弘前 | D173: 医 | E173: 保健－検査技術科学 | G173: 前期 | H173: 弘前大医保健－検査技術科学前
A174: 172 | B174: 1040603401 | C174: 弘前 | D174: 医 | E174: 保健－理学療法学 | G174: 前期 | H174: 弘前大医保健－理学療法学前
A175: 173 | B175: 1040603501 | C175: 弘前 | D175: 医 | E175: 保健－作業療法学 | G175: 前期 | H175: 弘前大医保健－作業療法学前
A176: 174 | B176: 1045060501 | C176: 岩手 | D176: 人文社会科学 | E176: 人間文化 | G176: 前期 | H176: 岩手大人文社会科学人間文化前
A177: 175 | B177: 1045060502 | C177: 岩手 | D177: 人文社会科学 | E177: 人間文化 | G177: 後期 | H177: 岩手大人文社会科学人間文化後
A178: 176 | B178: 1045060601 | C178: 岩手 | D178: 人文社会科学 | E178: 地域政策 | G178: 前期 | H178: 岩手大人文社会科学地域政策前
A179: 177 | B179: 1045060602 | C179: 岩手 | D179: 人文社会科学 | E179: 地域政策 | G179: 後期 | H179: 岩手大人文社会科学地域政策後
A180: 178 | B180: 1045304301 | C180: 岩手 | D180: 教育 | E180: 学校－特別支援教育 | G180: 前期 | H180: 岩手大教育学校－特別支援教育前
A181: 179 | B181: 1045304302 | C181: 岩手 | D181: 教育 | E181: 学校－特別支援教育 | G181: 後期 | H181: 岩手大教育学校－特別支援教育後
A182: 180 | B182: 1045305301 | C182: 岩手 | D182: 教育 | E182: 学校－小学校教育 | G182: 前期 | H182: 岩手大教育学校－小学校教育前
A183: 181 | B183: 1045305302 | C183: 岩手 | D183: 教育 | E183: 学校－小学校教育 | G183: 後期 | H183: 岩手大教育学校－小学校教育後
A184: 182 | B184: 1045305401 | C184: 岩手 | D184: 教育 | E184: 学校－中学国語 | G184: 前期 | H184: 岩手大教育学校－中学国語前
A185: 183 | B185: 1045305501 | C185: 岩手 | D185: 教育 | E185: 学校－中学社会 | G185: 前期 | H185: 岩手大教育学校－中学社会前
A186: 184 | B186: 1045305601 | C186: 岩手 | D186: 教育 | E186: 学校－中学技術 | G186: 前期 | H186: 岩手大教育学校－中学技術前
A187: 185 | B187: 1045305701 | C187: 岩手 | D187: 教育 | E187: 学校－中学家庭 | G187: 前期 | H187: 岩手大教育学校－中学家庭前
A188: 186 | B188: 1045305801 | C188: 岩手 | D188: 教育 | E188: 学校－中学英語 | G188: 前期 | H188: 岩手大教育学校－中学英語前
A189: 187 | B189: 1045305901 | C189: 岩手 | D189: 教育 | E189: 学校－中学音楽 | G189: 前期 | H189: 岩手大教育学校－中学音楽前
A190: 188 | B190: 1045306001 | C190: 岩手 | D190: 教育 | E190: 学校－中学美術 | G190: 前期 | H190: 岩手大教育学校－中学美術前
A191: 189 | B191: 1045306101 | C191: 岩手 | D191: 教育 | E191: 学校－中学保健体育 | G191: 前期 | H191: 岩手大教育学校－中学保健体育前
A192: 190 | B192: 1045306201 | C192: 岩手 | D192: 教育 | E192: 学校－数学 | G192: 前期 | H192: 岩手大教育学校－数学前
A193: 191 | B193: 1045306301 | C193: 岩手 | D193: 教育 | E193: 学校－理科 | G193: 前期 | H193: 岩手大教育学校－理科前
A194: 192 | B194: 1045420201 | C194: 岩手 | D194: 理工 | E194: 化学－化学 | G194: 前期 | H194: 岩手大理工化学－化学前
A195: 193 | B195: 1045420202 | C195: 岩手 | D195: 理工 | E195: 化学－化学 | G195: 後期 | H195: 岩手大理工化学－化学後
A196: 194 | B196: 1045420301 | C196: 岩手 | D196: 理工 | E196: 化学－生命 | G196: 前期 | H196: =C196&"大"&D196&E196&LEFT(G196,1) -> 岩手大理工化学－生命前
A197: 195 | B197: 1045420302 | C197: 岩手 | D197: 理工 | E197: 化学－生命 | G197: 後期 | H197: 岩手大理工化学－生命後
A198: 196 | B198: 1045420501 | C198: 岩手 | D198: 理工 | E198: 物理－数理・物理 | G198: 前期 | H198: 岩手大理工物理－数理・物理前
A199: 197 | B199: 1045420502 | C199: 岩手 | D199: 理工 | E199: 物理－数理・物理 | G199: 後期 | H199: 岩手大理工物理－数理・物理後
A200: 198 | B200: 1045420601 | C200: 岩手 | D200: 理工 | E200: 物理－マテリアル | G200: 前期 | H200: 岩手大理工物理－マテリアル前
... 3338 more rows

Sheet ベネッセ
A1: ベネッセ | B1: ３．緑の部分にベネッセを貼る | J1: 誤り度 | K1: バイグラム | L1: レーベンシュタイン距離 | O1: 1 | P1: =VLOOKUP(O1,河合塾!A2:H4000,8) -> 旭川医科大医医前 | U1: マッチングログ | Z1: 最小値 | AA1: 個数
A2: 通し番号 | B2: コード | C2: 大学 | D2: 学部 | E2: 学科 | F2: 日程 | G2: 方式 | O2: 河合コード番号 | P2: 大学名 | U2: 河合通番号 | V2: 河合塾大学名 | W2: 誤り度 | X2: 候補数 | Y2: エラーログ | Z2: =MIN(J3:J3576) -> 0.1764705882 | AA2: =COUNTIF(J3:J3576,Z2) -> 1
A3: 1 | B3: 1005550110 | C3: 旭川医大 | D3: 医 | E3: 医 | F3: 前 | H3: 1 | I3: =C3&D3&E3&G3&F3 -> 旭川医大医医前 | J3: =IF(ABS(A3-$O$1)>180,999,1-K3) -> 0.1764705882 | K3: =IF(ABS(A3-$O$1)>180,999,bigram($P$1,I3)) -> 0.8235294118 | L3: =IF(ABS(A3-$O$1)>180,999,Levenshtein($P$1,I3)) -> 1 | O3: =IF(N3="","",VLOOKUP($N3,河合塾!$A$2:$B$4000,2)) ->  | P3: =IF(O3="","",VLOOKUP($N3,河合塾!$A$2:$H$4000,8)) -> 
A4: 2 | B4: 1005550120 | C4: 旭川医大 | D4: 医 | E4: 医 | F4: 後 | H4: 1 | I4: =C4&D4&E4&G4&F4 -> 旭川医大医医後 | J4: =IF(ABS(A4-$O$1)>180,999,1-K4) -> 0.4117647059 | K4: =IF(ABS(A4-$O$1)>180,999,bigram($P$1,I4)) -> 0.5882352941 | L4: =IF(ABS(A4-$O$1)>180,999,Levenshtein($P$1,I4)) -> 2 | O4: =IF(N4="","",VLOOKUP($N4,河合塾!$A$2:$B$4000,2)) ->  | P4: =IF(O4="","",VLOOKUP($N4,河合塾!$A$2:$H$4000,8)) ->  | Z4: ベネッセ | AA4: 1 | AC4: =COUNT(B3:B4000) -> 3574
A5: 3 | B5: 1005550210 | C5: 旭川医大 | D5: 医 | E5: 看護 | F5: 前 | H5: 1 | I5: 旭川医大医看護前 | J5: 0.4444444444 | K5: =IF(ABS(A5-$O$1)>180,999,bigram($P$1,I5)) -> 0.5555555556 | L5: =IF(ABS(A5-$O$1)>180,999,Levenshtein($P$1,I5)) -> 3 | O5: =IF(N5="","",VLOOKUP($N5,河合塾!$A$2:$B$4000,2)) ->  | P5: =IF(O5="","",VLOOKUP($N5,河合塾!$A$2:$H$4000,8)) ->  | Z5: 河合 | AA5: 1 | AB5: から | AC5: =COUNT(河合塾!B3:B4000) -> 3536
A6: 4 | B6: 1005550220 | C6: 旭川医大 | D6: 医 | E6: 看護 | F6: 後 | H6: 1 | I6: 旭川医大医看護後 | J6: 0.5555555556 | K6: =IF(ABS(A6-$O$1)>180,999,bigram($P$1,I6)) -> 0.4444444444 | L6: =IF(ABS(A6-$O$1)>180,999,Levenshtein($P$1,I6)) -> 4 | O6: =IF(N6="","",VLOOKUP($N6,河合塾!$A$2:$B$4000,2)) ->  | P6: =IF(O6="","",VLOOKUP($N6,河合塾!$A$2:$H$4000,8)) -> 
A7: 5 | B7: 1010200010 | C7: 小樽商大 | D7: 商 | F7: 前 | H7: 1 | I7: 小樽商大商前 | J7: 0.875 | K7: =IF(ABS(A7-$O$1)>180,999,bigram($P$1,I7)) -> 0.125 | L7: =IF(ABS(A7-$O$1)>180,999,Levenshtein($P$1,I7)) -> 6 | O7: =IF(N7="","",VLOOKUP($N7,河合塾!$A$2:$B$4000,2)) ->  | P7: =IF(O7="","",VLOOKUP($N7,河合塾!$A$2:$H$4000,8)) -> 
A8: 6 | B8: 1010200020 | C8: 小樽商大 | D8: 商 | F8: 後 | H8: 1 | I8: 小樽商大商後 | J8: 1 | K8: =IF(ABS(A8-$O$1)>180,999,bigram($P$1,I8)) -> 0 | L8: =IF(ABS(A8-$O$1)>180,999,Levenshtein($P$1,I8)) -> 7 | O8: =IF(N8="","",VLOOKUP($N8,河合塾!$A$2:$B$4000,2)) ->  | P8: =IF(O8="","",VLOOKUP($N8,河合塾!$A$2:$H$4000,8)) -> 
A9: 7 | B9: 1010240010 | C9: 小樽商大 | D9: 商夜 | F9: 前 | H9: 1 | I9: 小樽商大商夜前 | J9: 0.8823529412 | K9: =IF(ABS(A9-$O$1)>180,999,bigram($P$1,I9)) -> 0.1176470588 | L9: =IF(ABS(A9-$O$1)>180,999,Levenshtein($P$1,I9)) -> 6 | O9: =IF(N9="","",VLOOKUP($N9,河合塾!$A$2:$B$4000,2)) ->  | P9: =IF(O9="","",VLOOKUP($N9,河合塾!$A$2:$H$4000,8)) -> 
A10: 8 | B10: 1015740510 | C10: 帯広畜産大 | D10: 畜産 | E10: 畜産科学 | F10: 前 | H10: 1 | I10: 帯広畜産大畜産畜産科学前 | J10: 0.9090909091 | K10: =IF(ABS(A10-$O$1)>180,999,bigram($P$1,I10)) -> 0.09090909091 | L10: =IF(ABS(A10-$O$1)>180,999,Levenshtein($P$1,I10)) -> 10 | O10: =IF(N10="","",VLOOKUP($N10,河合塾!$A$2:$B$4000,2)) ->  | P10: =IF(O10="","",VLOOKUP($N10,河合塾!$A$2:$H$4000,8)) -> 
A11: 9 | B11: 1015740520 | C11: 帯広畜産大 | D11: 畜産 | E11: 畜産科学 | F11: 後 | H11: 1 | I11: 帯広畜産大畜産畜産科学後 | J11: 1 | K11: =IF(ABS(A11-$O$1)>180,999,bigram($P$1,I11)) -> 0 | L11: =IF(ABS(A11-$O$1)>180,999,Levenshtein($P$1,I11)) -> 11 | O11: =IF(N11="","",VLOOKUP($N11,河合塾!$A$2:$B$4000,2)) ->  | P11: =IF(O11="","",VLOOKUP($N11,河合塾!$A$2:$H$4000,8)) -> 
A12: 10 | B12: 1015740610 | C12: 帯広畜産大 | D12: 畜産 | E12: 共同獣医学 | F12: 前 | H12: 1 | I12: 帯広畜産大畜産共同獣医学前 | J12: 0.9130434783 | K12: =IF(ABS(A12-$O$1)>180,999,bigram($P$1,I12)) -> 0.08695652174 | L12: =IF(ABS(A12-$O$1)>180,999,Levenshtein($P$1,I12)) -> 10 | O12: =IF(N12="","",VLOOKUP($N12,河合塾!$A$2:$B$4000,2)) ->  | P12: =IF(O12="","",VLOOKUP($N12,河合塾!$A$2:$H$4000,8)) -> 
A13: 11 | B13: 1015740620 | C13: 帯広畜産大 | D13: 畜産 | E13: 共同獣医学 | F13: 後 | H13: 1 | I13: 帯広畜産大畜産共同獣医学後 | J13: 1 | K13: =IF(ABS(A13-$O$1)>180,999,bigram($P$1,I13)) -> 0 | L13: =IF(ABS(A13-$O$1)>180,999,Levenshtein($P$1,I13)) -> 11 | O13: =IF(N13="","",VLOOKUP($N13,河合塾!$A$2:$B$4000,2)) ->  | P13: =IF(O13="","",VLOOKUP($N13,河合塾!$A$2:$H$4000,8)) -> 
A14: 12 | B14: 1020461010 | C14: 北見工大 | D14: 工 | E14: 地球環境工 | F14: 前 | H14: 1 | I14: 北見工大工地球環境工前 | J14: 0.9047619048 | K14: =IF(ABS(A14-$O$1)>180,999,bigram($P$1,I14)) -> 0.09523809524 | L14: =IF(ABS(A14-$O$1)>180,999,Levenshtein($P$1,I14)) -> 10 | O14: =IF(N14="","",VLOOKUP($N14,河合塾!$A$2:$B$4000,2)) ->  | P14: =IF(O14="","",VLOOKUP($N14,河合塾!$A$2:$H$4000,8)) -> 
A15: 13 | B15: 1020461020 | C15: 北見工大 | D15: 工 | E15: 地球環境工 | F15: 後 | H15: 1 | I15: 北見工大工地球環境工後 | J15: 1 | K15: =IF(ABS(A15-$O$1)>180,999,bigram($P$1,I15)) -> 0 | L15: =IF(ABS(A15-$O$1)>180,999,Levenshtein($P$1,I15)) -> 11 | O15: =IF(N15="","",VLOOKUP($N15,河合塾!$A$2:$B$4000,2)) ->  | P15: =IF(O15="","",VLOOKUP($N15,河合塾!$A$2:$H$4000,8)) -> 
A16: 14 | B16: 1020461110 | C16: 北見工大 | D16: 工 | E16: 地域未来デザ | F16: 前 | H16: 1 | I16: 北見工大工地域未来デザ前 | J16: 0.9090909091 | K16: =IF(ABS(A16-$O$1)>180,999,bigram($P$1,I16)) -> 0.09090909091 | L16: =IF(ABS(A16-$O$1)>180,999,Levenshtein($P$1,I16)) -> 11 | O16: =IF(N16="","",VLOOKUP($N16,河合塾!$A$2:$B$4000,2)) ->  | P16: =IF(O16="","",VLOOKUP($N16,河合塾!$A$2:$H$4000,8)) -> 
A17: 15 | B17: 1020461120 | C17: 北見工大 | D17: 工 | E17: 地域未来デザ | F17: 後 | H17: 1 | I17: 北見工大工地域未来デザ後 | J17: 1 | K17: =IF(ABS(A17-$O$1)>180,999,bigram($P$1,I17)) -> 0 | L17: =IF(ABS(A17-$O$1)>180,999,Levenshtein($P$1,I17)) -> 12 | O17: =IF(N17="","",VLOOKUP($N17,河合塾!$A$2:$B$4000,2)) ->  | P17: =IF(O17="","",VLOOKUP($N17,河合塾!$A$2:$H$4000,8)) -> 
A18: 16 | B18: 1025010110 | C18: 北海道大 | D18: 文 | E18: 人文科学 | F18: 前 | H18: 1 | I18: 北海道大文人文科学前 | J18: 0.9 | K18: =IF(ABS(A18-$O$1)>180,999,bigram($P$1,I18)) -> 0.1 | L18: =IF(ABS(A18-$O$1)>180,999,Levenshtein($P$1,I18)) -> 9 | O18: =IF(N18="","",VLOOKUP($N18,河合塾!$A$2:$B$4000,2)) ->  | P18: =IF(O18="","",VLOOKUP($N18,河合塾!$A$2:$H$4000,8)) -> 
A19: 17 | B19: 1025010120 | C19: 北海道大 | D19: 文 | E19: 人文科学 | F19: 後 | H19: 1 | I19: 北海道大文人文科学後 | J19: 1 | K19: =IF(ABS(A19-$O$1)>180,999,bigram($P$1,I19)) -> 0 | L19: =IF(ABS(A19-$O$1)>180,999,Levenshtein($P$1,I19)) -> 10 | O19: =IF(N19="","",VLOOKUP($N19,河合塾!$A$2:$B$4000,2)) ->  | P19: =IF(O19="","",VLOOKUP($N19,河合塾!$A$2:$H$4000,8)) -> 
A20: 18 | B20: 1025120110 | C20: 北海道大 | D20: 法 | E20: 法学 | F20: 前 | H20: 1 | I20: 北海道大法法学前 | J20: 0.8888888889 | K20: =IF(ABS(A20-$O$1)>180,999,bigram($P$1,I20)) -> 0.1111111111 | L20: =IF(ABS(A20-$O$1)>180,999,Levenshtein($P$1,I20)) -> 7 | O20: =IF(N20="","",VLOOKUP($N20,河合塾!$A$2:$B$4000,2)) ->  | P20: =IF(O20="","",VLOOKUP($N20,河合塾!$A$2:$H$4000,8)) -> 
A21: 19 | B21: 1025120120 | C21: 北海道大 | D21: 法 | E21: 法学 | F21: 後 | H21: 1 | I21: 北海道大法法学後 | J21: 1 | K21: =IF(ABS(A21-$O$1)>180,999,bigram($P$1,I21)) -> 0 | L21: =IF(ABS(A21-$O$1)>180,999,Levenshtein($P$1,I21)) -> 8 | O21: =IF(N21="","",VLOOKUP($N21,河合塾!$A$2:$B$4000,2)) ->  | P21: =IF(O21="","",VLOOKUP($N21,河合塾!$A$2:$H$4000,8)) ->  | Z21: マッチング結果
A22: 20 | B22: 1025180010 | C22: 北海道大 | D22: 経済 | F22: 前 | H22: 1 | I22: 北海道大経済前 | J22: 0.8823529412 | K22: =IF(ABS(A22-$O$1)>180,999,bigram($P$1,I22)) -> 0.1176470588 | L22: =IF(ABS(A22-$O$1)>180,999,Levenshtein($P$1,I22)) -> 6 | O22: =IF(N22="","",VLOOKUP($N22,河合塾!$A$2:$B$4000,2)) ->  | P22: =IF(O22="","",VLOOKUP($N22,河合塾!$A$2:$H$4000,8)) ->  | Z22: 打ち出し | AA22: =COUNT(N3:N4000) -> 0
A23: 21 | B23: 1025180020 | C23: 北海道大 | D23: 経済 | F23: 後 | H23: 1 | I23: 北海道大経済後 | J23: 1 | K23: =IF(ABS(A23-$O$1)>180,999,bigram($P$1,I23)) -> 0 | L23: =IF(ABS(A23-$O$1)>180,999,Levenshtein($P$1,I23)) -> 7 | O23: =IF(N23="","",VLOOKUP($N23,河合塾!$A$2:$B$4000,2)) ->  | P23: =IF(O23="","",VLOOKUP($N23,河合塾!$A$2:$H$4000,8)) ->  | Z23: 割合 | AA23: =AA22/AC4 -> 0
A24: 22 | B24: 1025300110 | C24: 北海道大 | D24: 教育 | E24: 教育 | F24: 前 | H24: 1 | I24: 北海道大教育教育前 | J24: 0.8947368421 | K24: =IF(ABS(A24-$O$1)>180,999,bigram($P$1,I24)) -> 0.1052631579 | L24: =IF(ABS(A24-$O$1)>180,999,Levenshtein($P$1,I24)) -> 8 | O24: =IF(N24="","",VLOOKUP($N24,河合塾!$A$2:$B$4000,2)) ->  | P24: =IF(O24="","",VLOOKUP($N24,河合塾!$A$2:$H$4000,8)) ->  | Z24: 残り | AA24: =AC4-AA22 -> 3574
A25: 23 | B25: 1025300120 | C25: 北海道大 | D25: 教育 | E25: 教育 | F25: 後 | H25: 1 | I25: 北海道大教育教育後 | J25: 1 | K25: =IF(ABS(A25-$O$1)>180,999,bigram($P$1,I25)) -> 0 | L25: =IF(ABS(A25-$O$1)>180,999,Levenshtein($P$1,I25)) -> 9 | O25: =IF(N25="","",VLOOKUP($N25,河合塾!$A$2:$B$4000,2)) ->  | P25: =IF(O25="","",VLOOKUP($N25,河合塾!$A$2:$H$4000,8)) ->  | Z25: エラー | AA25: =COUNTA(Y3:Y4000) -> 0
A26: 24 | B26: 1025420120 | C26: 北海道大 | D26: 理 | E26: 化学 | F26: 後 | H26: 1 | I26: 北海道大理化学後 | J26: 1 | K26: =IF(ABS(A26-$O$1)>180,999,bigram($P$1,I26)) -> 0 | L26: =IF(ABS(A26-$O$1)>180,999,Levenshtein($P$1,I26)) -> 8 | O26: =IF(N26="","",VLOOKUP($N26,河合塾!$A$2:$B$4000,2)) ->  | P26: =IF(O26="","",VLOOKUP($N26,河合塾!$A$2:$H$4000,8)) -> 
A27: 25 | B27: 1025420320 | C27: 北海道大 | D27: 理 | E27: 数学 | F27: 後 | H27: 1 | I27: 北海道大理数学後 | J27: 1 | K27: =IF(ABS(A27-$O$1)>180,999,bigram($P$1,I27)) -> 0 | L27: =IF(ABS(A27-$O$1)>180,999,Levenshtein($P$1,I27)) -> 8 | O27: =IF(N27="","",VLOOKUP($N27,河合塾!$A$2:$B$4000,2)) ->  | P27: =IF(O27="","",VLOOKUP($N27,河合塾!$A$2:$H$4000,8)) ->  | Z27: 終了 | AA27: =COUNT(X4:X3576) -> 0
A28: 26 | B28: 1025420720 | C28: 北海道大 | D28: 理 | E28: 地球惑星科学 | F28: 後 | H28: 1 | I28: 北海道大理地球惑星科学後 | J28: 1 | K28: =IF(ABS(A28-$O$1)>180,999,bigram($P$1,I28)) -> 0 | L28: =IF(ABS(A28-$O$1)>180,999,Levenshtein($P$1,I28)) -> 12 | O28: =IF(N28="","",VLOOKUP($N28,河合塾!$A$2:$B$4000,2)) ->  | P28: =IF(O28="","",VLOOKUP($N28,河合塾!$A$2:$H$4000,8)) ->  | Z28: 候補1個 | AA28: =COUNTIF(X4:X3576,1) -> 0
A29: 27 | B29: 1025420820 | C29: 北海道大 | D29: 理 | E29: 物理 | F29: 後 | H29: 1 | I29: 北海道大理物理後 | J29: 1 | K29: =IF(ABS(A29-$O$1)>180,999,bigram($P$1,I29)) -> 0 | L29: =IF(ABS(A29-$O$1)>180,999,Levenshtein($P$1,I29)) -> 8 | O29: =IF(N29="","",VLOOKUP($N29,河合塾!$A$2:$B$4000,2)) ->  | P29: =IF(O29="","",VLOOKUP($N29,河合塾!$A$2:$H$4000,8)) ->  | Z29: 割合 | AA29: =AA28/AA27 -> 
A30: 28 | B30: 1025421320 | C30: 北海道大 | D30: 理 | E30: 生物／生物学 | F30: 後 | H30: 1 | I30: 北海道大理生物／生物学後 | J30: 1 | K30: =IF(ABS(A30-$O$1)>180,999,bigram($P$1,I30)) -> 0 | L30: =IF(ABS(A30-$O$1)>180,999,Levenshtein($P$1,I30)) -> 12 | O30: =IF(N30="","",VLOOKUP($N30,河合塾!$A$2:$B$4000,2)) ->  | P30: =IF(O30="","",VLOOKUP($N30,河合塾!$A$2:$H$4000,8)) -> 
A31: 29 | B31: 1025421420 | C31: 北海道大 | D31: 理 | E31: 生物／高分子 | F31: 後 | H31: 1 | I31: 北海道大理生物／高分子後 | J31: 1 | K31: =IF(ABS(A31-$O$1)>180,999,bigram($P$1,I31)) -> 0 | L31: =IF(ABS(A31-$O$1)>180,999,Levenshtein($P$1,I31)) -> 12 | O31: =IF(N31="","",VLOOKUP($N31,河合塾!$A$2:$B$4000,2)) ->  | P31: =IF(O31="","",VLOOKUP($N31,河合塾!$A$2:$H$4000,8)) -> 
A32: 30 | B32: 1025461120 | C32: 北海道大 | D32: 工 | E32: 環境社会工 | F32: 後 | H32: 1 | I32: 北海道大工環境社会工後 | J32: 1 | K32: =IF(ABS(A32-$O$1)>180,999,bigram($P$1,I32)) -> 0 | L32: =IF(ABS(A32-$O$1)>180,999,Levenshtein($P$1,I32)) -> 11 | O32: =IF(N32="","",VLOOKUP($N32,河合塾!$A$2:$B$4000,2)) ->  | P32: =IF(O32="","",VLOOKUP($N32,河合塾!$A$2:$H$4000,8)) -> 
A33: 31 | B33: 1025461220 | C33: 北海道大 | D33: 工 | E33: 情報エレクト | F33: 後 | H33: 1 | I33: 北海道大工情報エレクト後 | J33: 1 | K33: =IF(ABS(A33-$O$1)>180,999,bigram($P$1,I33)) -> 0 | L33: =IF(ABS(A33-$O$1)>180,999,Levenshtein($P$1,I33)) -> 12 | O33: =IF(N33="","",VLOOKUP($N33,河合塾!$A$2:$B$4000,2)) ->  | P33: =IF(O33="","",VLOOKUP($N33,河合塾!$A$2:$H$4000,8)) -> 
A34: 32 | B34: 1025461820 | C34: 北海道大 | D34: 工 | E34: 応用理工系 | F34: 後 | H34: 1 | I34: 北海道大工応用理工系後 | J34: 1 | K34: =IF(ABS(A34-$O$1)>180,999,bigram($P$1,I34)) -> 0 | L34: =IF(ABS(A34-$O$1)>180,999,Levenshtein($P$1,I34)) -> 11 | O34: =IF(N34="","",VLOOKUP($N34,河合塾!$A$2:$B$4000,2)) ->  | P34: =IF(O34="","",VLOOKUP($N34,河合塾!$A$2:$H$4000,8)) -> 
A35: 33 | B35: 1025461920 | C35: 北海道大 | D35: 工 | E35: 機械知能工 | F35: 後 | H35: 1 | I35: 北海道大工機械知能工後 | J35: 1 | K35: =IF(ABS(A35-$O$1)>180,999,bigram($P$1,I35)) -> 0 | L35: =IF(ABS(A35-$O$1)>180,999,Levenshtein($P$1,I35)) -> 11 | O35: =IF(N35="","",VLOOKUP($N35,河合塾!$A$2:$B$4000,2)) ->  | P35: =IF(O35="","",VLOOKUP($N35,河合塾!$A$2:$H$4000,8)) -> 
A36: 34 | B36: 1025550110 | C36: 北海道大 | D36: 医 | E36: 医 | F36: 前 | H36: 1 | I36: 北海道大医医前 | J36: 0.5294117647 | K36: =IF(ABS(A36-$O$1)>180,999,bigram($P$1,I36)) -> 0.4705882353 | L36: =IF(ABS(A36-$O$1)>180,999,Levenshtein($P$1,I36)) -> 4 | O36: =IF(N36="","",VLOOKUP($N36,河合塾!$A$2:$B$4000,2)) ->  | P36: =IF(O36="","",VLOOKUP($N36,河合塾!$A$2:$H$4000,8)) -> 
A37: 35 | B37: 1025550310 | C37: 北海道大 | D37: 医 | E37: 保健／看護学 | F37: 前 | H37: 1 | I37: 北海道大医保健／看護学前 | J37: 0.8181818182 | K37: =IF(ABS(A37-$O$1)>180,999,bigram($P$1,I37)) -> 0.1818181818 | L37: =IF(ABS(A37-$O$1)>180,999,Levenshtein($P$1,I37)) -> 10 | O37: =IF(N37="","",VLOOKUP($N37,河合塾!$A$2:$B$4000,2)) ->  | P37: =IF(O37="","",VLOOKUP($N37,河合塾!$A$2:$H$4000,8)) -> 
A38: 36 | B38: 1025550410 | C38: 北海道大 | D38: 医 | E38: 保健／放射線 | F38: 前 | H38: 1 | I38: 北海道大医保健／放射線前 | J38: 0.8181818182 | K38: =IF(ABS(A38-$O$1)>180,999,bigram($P$1,I38)) -> 0.1818181818 | L38: =IF(ABS(A38-$O$1)>180,999,Levenshtein($P$1,I38)) -> 10 | O38: =IF(N38="","",VLOOKUP($N38,河合塾!$A$2:$B$4000,2)) ->  | P38: =IF(O38="","",VLOOKUP($N38,河合塾!$A$2:$H$4000,8)) -> 
A39: 37 | B39: 1025550420 | C39: 北海道大 | D39: 医 | E39: 保健／放射線 | F39: 後 | H39: 1 | I39: 北海道大医保健／放射線後 | J39: 0.9090909091 | K39: =IF(ABS(A39-$O$1)>180,999,bigram($P$1,I39)) -> 0.09090909091 | L39: =IF(ABS(A39-$O$1)>180,999,Levenshtein($P$1,I39)) -> 11 | O39: =IF(N39="","",VLOOKUP($N39,河合塾!$A$2:$B$4000,2)) ->  | P39: =IF(O39="","",VLOOKUP($N39,河合塾!$A$2:$H$4000,8)) -> 
A40: 38 | B40: 1025550510 | C40: 北海道大 | D40: 医 | E40: 保健／検査技 | F40: 前 | H40: 1 | I40: 北海道大医保健／検査技前 | J40: 0.8181818182 | K40: =IF(ABS(A40-$O$1)>180,999,bigram($P$1,I40)) -> 0.1818181818 | L40: =IF(ABS(A40-$O$1)>180,999,Levenshtein($P$1,I40)) -> 10 | O40: =IF(N40="","",VLOOKUP($N40,河合塾!$A$2:$B$4000,2)) ->  | P40: =IF(O40="","",VLOOKUP($N40,河合塾!$A$2:$H$4000,8)) -> 
A41: 39 | B41: 1025550520 | C41: 北海道大 | D41: 医 | E41: 保健／検査技 | F41: 後 | H41: 1 | I41: 北海道大医保健／検査技後 | J41: 0.9090909091 | K41: =IF(ABS(A41-$O$1)>180,999,bigram($P$1,I41)) -> 0.09090909091 | L41: =IF(ABS(A41-$O$1)>180,999,Levenshtein($P$1,I41)) -> 11 | O41: =IF(N41="","",VLOOKUP($N41,河合塾!$A$2:$B$4000,2)) ->  | P41: =IF(O41="","",VLOOKUP($N41,河合塾!$A$2:$H$4000,8)) -> 
A42: 40 | B42: 1025550610 | C42: 北海道大 | D42: 医 | E42: 保健／理学療 | F42: 前 | H42: 1 | I42: 北海道大医保健／理学療前 | J42: 0.8181818182 | K42: =IF(ABS(A42-$O$1)>180,999,bigram($P$1,I42)) -> 0.1818181818 | L42: =IF(ABS(A42-$O$1)>180,999,Levenshtein($P$1,I42)) -> 10 | O42: =IF(N42="","",VLOOKUP($N42,河合塾!$A$2:$B$4000,2)) ->  | P42: =IF(O42="","",VLOOKUP($N42,河合塾!$A$2:$H$4000,8)) -> 
A43: 41 | B43: 1025550620 | C43: 北海道大 | D43: 医 | E43: 保健／理学療 | F43: 後 | H43: 1 | I43: 北海道大医保健／理学療後 | J43: 0.9090909091 | K43: =IF(ABS(A43-$O$1)>180,999,bigram($P$1,I43)) -> 0.09090909091 | L43: =IF(ABS(A43-$O$1)>180,999,Levenshtein($P$1,I43)) -> 11 | O43: =IF(N43="","",VLOOKUP($N43,河合塾!$A$2:$B$4000,2)) ->  | P43: =IF(O43="","",VLOOKUP($N43,河合塾!$A$2:$H$4000,8)) -> 
A44: 42 | B44: 1025550710 | C44: 北海道大 | D44: 医 | E44: 保健／作業療 | F44: 前 | H44: 1 | I44: 北海道大医保健／作業療前 | J44: 0.8181818182 | K44: =IF(ABS(A44-$O$1)>180,999,bigram($P$1,I44)) -> 0.1818181818 | L44: =IF(ABS(A44-$O$1)>180,999,Levenshtein($P$1,I44)) -> 10 | O44: =IF(N44="","",VLOOKUP($N44,河合塾!$A$2:$B$4000,2)) ->  | P44: =IF(O44="","",VLOOKUP($N44,河合塾!$A$2:$H$4000,8)) -> 
A45: 43 | B45: 1025580110 | C45: 北海道大 | D45: 歯 | E45: 歯 | F45: 前 | H45: 1 | I45: 北海道大歯歯前 | J45: 0.8823529412 | K45: =IF(ABS(A45-$O$1)>180,999,bigram($P$1,I45)) -> 0.1176470588 | L45: =IF(ABS(A45-$O$1)>180,999,Levenshtein($P$1,I45)) -> 6 | O45: =IF(N45="","",VLOOKUP($N45,河合塾!$A$2:$B$4000,2)) ->  | P45: =IF(O45="","",VLOOKUP($N45,河合塾!$A$2:$H$4000,8)) -> 
A46: 44 | B46: 1025580120 | C46: 北海道大 | D46: 歯 | E46: 歯 | F46: 後 | H46: 1 | I46: 北海道大歯歯後 | J46: 1 | K46: =IF(ABS(A46-$O$1)>180,999,bigram($P$1,I46)) -> 0 | L46: =IF(ABS(A46-$O$1)>180,999,Levenshtein($P$1,I46)) -> 7 | O46: =IF(N46="","",VLOOKUP($N46,河合塾!$A$2:$B$4000,2)) ->  | P46: =IF(O46="","",VLOOKUP($N46,河合塾!$A$2:$H$4000,8)) -> 
A47: 45 | B47: 1025610020 | C47: 北海道大 | D47: 薬 | F47: 後 | H47: 1 | I47: 北海道大薬後 | J47: 1 | K47: =IF(ABS(A47-$O$1)>180,999,bigram($P$1,I47)) -> 0 | L47: =IF(ABS(A47-$O$1)>180,999,Levenshtein($P$1,I47)) -> 7 | O47: =IF(N47="","",VLOOKUP($N47,河合塾!$A$2:$B$4000,2)) ->  | P47: =IF(O47="","",VLOOKUP($N47,河合塾!$A$2:$H$4000,8)) -> 
A48: 46 | B48: 1025720020 | C48: 北海道大 | D48: 農 | F48: 後 | H48: 1 | I48: 北海道大農後 | J48: 1 | K48: =IF(ABS(A48-$O$1)>180,999,bigram($P$1,I48)) -> 0 | L48: =IF(ABS(A48-$O$1)>180,999,Levenshtein($P$1,I48)) -> 7 | O48: =IF(N48="","",VLOOKUP($N48,河合塾!$A$2:$B$4000,2)) ->  | P48: =IF(O48="","",VLOOKUP($N48,河合塾!$A$2:$H$4000,8)) -> 
A49: 47 | B49: 1025730010 | C49: 北海道大 | D49: 水産 | F49: 前 | H49: 1 | I49: 北海道大水産前 | J49: 0.8823529412 | K49: =IF(ABS(A49-$O$1)>180,999,bigram($P$1,I49)) -> 0.1176470588 | L49: =IF(ABS(A49-$O$1)>180,999,Levenshtein($P$1,I49)) -> 6 | O49: =IF(N49="","",VLOOKUP($N49,河合塾!$A$2:$B$4000,2)) ->  | P49: =IF(O49="","",VLOOKUP($N49,河合塾!$A$2:$H$4000,8)) -> 
A50: 48 | B50: 1025730020 | C50: 北海道大 | D50: 水産 | F50: 後 | H50: 1 | I50: 北海道大水産後 | J50: 1 | K50: =IF(ABS(A50-$O$1)>180,999,bigram($P$1,I50)) -> 0 | L50: =IF(ABS(A50-$O$1)>180,999,Levenshtein($P$1,I50)) -> 7 | O50: =IF(N50="","",VLOOKUP($N50,河合塾!$A$2:$B$4000,2)) ->  | P50: =IF(O50="","",VLOOKUP($N50,河合塾!$A$2:$H$4000,8)) -> 
A51: 49 | B51: 1025740210 | C51: 北海道大 | D51: 獣医 | E51: 共同獣医学 | F51: 前 | H51: 1 | I51: 北海道大獣医共同獣医学前 | J51: 0.9090909091 | K51: =IF(ABS(A51-$O$1)>180,999,bigram($P$1,I51)) -> 0.09090909091 | L51: =IF(ABS(A51-$O$1)>180,999,Levenshtein($P$1,I51)) -> 9 | O51: =IF(N51="","",VLOOKUP($N51,河合塾!$A$2:$B$4000,2)) ->  | P51: =IF(O51="","",VLOOKUP($N51,河合塾!$A$2:$H$4000,8)) -> 
A52: 50 | B52: 1025740220 | C52: 北海道大 | D52: 獣医 | E52: 共同獣医学 | F52: 後 | H52: 1 | I52: 北海道大獣医共同獣医学後 | J52: 1 | K52: =IF(ABS(A52-$O$1)>180,999,bigram($P$1,I52)) -> 0 | L52: =IF(ABS(A52-$O$1)>180,999,Levenshtein($P$1,I52)) -> 10 | O52: =IF(N52="","",VLOOKUP($N52,河合塾!$A$2:$B$4000,2)) ->  | P52: =IF(O52="","",VLOOKUP($N52,河合塾!$A$2:$H$4000,8)) -> 
A53: 51 | B53: 1025910010 | C53: 北海道大 | D53: 総合文系 | F53: 前 | H53: 1 | I53: 北海道大総合文系前 | J53: 0.8947368421 | K53: =IF(ABS(A53-$O$1)>180,999,bigram($P$1,I53)) -> 0.1052631579 | L53: =IF(ABS(A53-$O$1)>180,999,Levenshtein($P$1,I53)) -> 8 | O53: =IF(N53="","",VLOOKUP($N53,河合塾!$A$2:$B$4000,2)) ->  | P53: =IF(O53="","",VLOOKUP($N53,河合塾!$A$2:$H$4000,8)) -> 
A54: 52 | B54: 1025920011 | C54: 北海道大 | D54: 総合理系 | F54: 前 | G54: 数学 | H54: 1 | I54: 北海道大総合理系数学前 | J54: 0.9047619048 | K54: =IF(ABS(A54-$O$1)>180,999,bigram($P$1,I54)) -> 0.09523809524 | L54: =IF(ABS(A54-$O$1)>180,999,Levenshtein($P$1,I54)) -> 10 | O54: =IF(N54="","",VLOOKUP($N54,河合塾!$A$2:$B$4000,2)) ->  | P54: =IF(O54="","",VLOOKUP($N54,河合塾!$A$2:$H$4000,8)) -> 
A55: 53 | B55: 1025920012 | C55: 北海道大 | D55: 総合理系 | F55: 前 | G55: 物理 | H55: 1 | I55: 北海道大総合理系物理前 | J55: 0.9047619048 | K55: =IF(ABS(A55-$O$1)>180,999,bigram($P$1,I55)) -> 0.09523809524 | L55: =IF(ABS(A55-$O$1)>180,999,Levenshtein($P$1,I55)) -> 10 | O55: =IF(N55="","",VLOOKUP($N55,河合塾!$A$2:$B$4000,2)) ->  | P55: =IF(O55="","",VLOOKUP($N55,河合塾!$A$2:$H$4000,8)) -> 
A56: 54 | B56: 1025920013 | C56: 北海道大 | D56: 総合理系 | F56: 前 | G56: 化学 | H56: 1 | I56: 北海道大総合理系化学前 | J56: 0.9047619048 | K56: =IF(ABS(A56-$O$1)>180,999,bigram($P$1,I56)) -> 0.09523809524 | L56: =IF(ABS(A56-$O$1)>180,999,Levenshtein($P$1,I56)) -> 10 | O56: =IF(N56="","",VLOOKUP($N56,河合塾!$A$2:$B$4000,2)) ->  | P56: =IF(O56="","",VLOOKUP($N56,河合塾!$A$2:$H$4000,8)) -> 
A57: 55 | B57: 1025920014 | C57: 北海道大 | D57: 総合理系 | F57: 前 | G57: 生物 | H57: 1 | I57: 北海道大総合理系生物前 | J57: 0.9047619048 | K57: =IF(ABS(A57-$O$1)>180,999,bigram($P$1,I57)) -> 0.09523809524 | L57: =IF(ABS(A57-$O$1)>180,999,Levenshtein($P$1,I57)) -> 10 | O57: =IF(N57="","",VLOOKUP($N57,河合塾!$A$2:$B$4000,2)) ->  | P57: =IF(O57="","",VLOOKUP($N57,河合塾!$A$2:$H$4000,8)) -> 
A58: 56 | B58: 1025920015 | C58: 北海道大 | D58: 総合理系 | F58: 前 | G58: 総合 | H58: 1 | I58: 北海道大総合理系総合前 | J58: 0.9047619048 | K58: =IF(ABS(A58-$O$1)>180,999,bigram($P$1,I58)) -> 0.09523809524 | L58: =IF(ABS(A58-$O$1)>180,999,Levenshtein($P$1,I58)) -> 10 | O58: =IF(N58="","",VLOOKUP($N58,河合塾!$A$2:$B$4000,2)) ->  | P58: =IF(O58="","",VLOOKUP($N58,河合塾!$A$2:$H$4000,8)) -> 
A59: 57 | B59: 1030301710 | C59: 北教大旭川校 | D59: 教育 | E59: 教員／教育発 | F59: 前 | H59: 1 | I59: 北教大旭川校教育教員／教育発前 | J59: 0.84 | K59: =IF(ABS(A59-$O$1)>180,999,bigram($P$1,I59)) -> 0.16 | L59: =IF(ABS(A59-$O$1)>180,999,Levenshtein($P$1,I59)) -> 12 | O59: =IF(N59="","",VLOOKUP($N59,河合塾!$A$2:$B$4000,2)) ->  | P59: =IF(O59="","",VLOOKUP($N59,河合塾!$A$2:$H$4000,8)) -> 
A60: 58 | B60: 1030301720 | C60: 北教大旭川校 | D60: 教育 | E60: 教員／教育発 | F60: 後 | H60: 1 | I60: 北教大旭川校教育教員／教育発後 | J60: 0.92 | K60: =IF(ABS(A60-$O$1)>180,999,bigram($P$1,I60)) -> 0.08 | L60: =IF(ABS(A60-$O$1)>180,999,Levenshtein($P$1,I60)) -> 13 | O60: =IF(N60="","",VLOOKUP($N60,河合塾!$A$2:$B$4000,2)) ->  | P60: =IF(O60="","",VLOOKUP($N60,河合塾!$A$2:$H$4000,8)) -> 
A61: 59 | B61: 1030301910 | C61: 北教大旭川校 | D61: 教育 | E61: 教員／国語 | F61: 前 | H61: 1 | I61: 北教大旭川校教育教員／国語前 | J61: 0.8333333333 | K61: =IF(ABS(A61-$O$1)>180,999,bigram($P$1,I61)) -> 0.1666666667 | L61: =IF(ABS(A61-$O$1)>180,999,Levenshtein($P$1,I61)) -> 11 | O61: =IF(N61="","",VLOOKUP($N61,河合塾!$A$2:$B$4000,2)) ->  | P61: =IF(O61="","",VLOOKUP($N61,河合塾!$A$2:$H$4000,8)) -> 
A62: 60 | B62: 1030301920 | C62: 北教大旭川校 | D62: 教育 | E62: 教員／国語 | F62: 後 | H62: 1 | I62: 北教大旭川校教育教員／国語後 | J62: 0.9166666667 | K62: =IF(ABS(A62-$O$1)>180,999,bigram($P$1,I62)) -> 0.08333333333 | L62: =IF(ABS(A62-$O$1)>180,999,Levenshtein($P$1,I62)) -> 12 | O62: =IF(N62="","",VLOOKUP($N62,河合塾!$A$2:$B$4000,2)) ->  | P62: =IF(O62="","",VLOOKUP($N62,河合塾!$A$2:$H$4000,8)) -> 
A63: 61 | B63: 1030302010 | C63: 北教大旭川校 | D63: 教育 | E63: 教員／英語 | F63: 前 | H63: 1 | I63: 北教大旭川校教育教員／英語前 | J63: 0.8333333333 | K63: =IF(ABS(A63-$O$1)>180,999,bigram($P$1,I63)) -> 0.1666666667 | L63: =IF(ABS(A63-$O$1)>180,999,Levenshtein($P$1,I63)) -> 11 | O63: =IF(N63="","",VLOOKUP($N63,河合塾!$A$2:$B$4000,2)) ->  | P63: =IF(O63="","",VLOOKUP($N63,河合塾!$A$2:$H$4000,8)) -> 
A64: 62 | B64: 1030302020 | C64: 北教大旭川校 | D64: 教育 | E64: 教員／英語 | F64: 後 | H64: 1 | I64: 北教大旭川校教育教員／英語後 | J64: 0.9166666667 | K64: =IF(ABS(A64-$O$1)>180,999,bigram($P$1,I64)) -> 0.08333333333 | L64: =IF(ABS(A64-$O$1)>180,999,Levenshtein($P$1,I64)) -> 12 | O64: =IF(N64="","",VLOOKUP($N64,河合塾!$A$2:$B$4000,2)) ->  | P64: =IF(O64="","",VLOOKUP($N64,河合塾!$A$2:$H$4000,8)) -> 
A65: 63 | B65: 1030302710 | C65: 北教大旭川校 | D65: 教育 | E65: 教員／社会 | F65: 前 | H65: 1 | I65: 北教大旭川校教育教員／社会前 | J65: 0.8333333333 | K65: =IF(ABS(A65-$O$1)>180,999,bigram($P$1,I65)) -> 0.1666666667 | L65: =IF(ABS(A65-$O$1)>180,999,Levenshtein($P$1,I65)) -> 11 | O65: =IF(N65="","",VLOOKUP($N65,河合塾!$A$2:$B$4000,2)) ->  | P65: =IF(O65="","",VLOOKUP($N65,河合塾!$A$2:$H$4000,8)) -> 
A66: 64 | B66: 1030302720 | C66: 北教大旭川校 | D66: 教育 | E66: 教員／社会 | F66: 後 | H66: 1 | I66: 北教大旭川校教育教員／社会後 | J66: 0.9166666667 | K66: =IF(ABS(A66-$O$1)>180,999,bigram($P$1,I66)) -> 0.08333333333 | L66: =IF(ABS(A66-$O$1)>180,999,Levenshtein($P$1,I66)) -> 12 | O66: =IF(N66="","",VLOOKUP($N66,河合塾!$A$2:$B$4000,2)) ->  | P66: =IF(O66="","",VLOOKUP($N66,河合塾!$A$2:$H$4000,8)) -> 
A67: 65 | B67: 1030302810 | C67: 北教大旭川校 | D67: 教育 | E67: 教員／数学 | F67: 前 | H67: 1 | I67: 北教大旭川校教育教員／数学前 | J67: 0.8333333333 | K67: =IF(ABS(A67-$O$1)>180,999,bigram($P$1,I67)) -> 0.1666666667 | L67: =IF(ABS(A67-$O$1)>180,999,Levenshtein($P$1,I67)) -> 11 | O67: =IF(N67="","",VLOOKUP($N67,河合塾!$A$2:$B$4000,2)) ->  | P67: =IF(O67="","",VLOOKUP($N67,河合塾!$A$2:$H$4000,8)) -> 
A68: 66 | B68: 1030302820 | C68: 北教大旭川校 | D68: 教育 | E68: 教員／数学 | F68: 後 | H68: 1 | I68: =C68&D68&E68&G68&F68 -> 北教大旭川校教育教員／数学後 | J68: =IF(ABS(A68-$O$1)>180,999,1-K68) -> 0.9166666667 | K68: =IF(ABS(A68-$O$1)>180,999,bigram($P$1,I68)) -> 0.08333333333 | L68: =IF(ABS(A68-$O$1)>180,999,Levenshtein($P$1,I68)) -> 12 | O68: =IF(N68="","",VLOOKUP($N68,河合塾!$A$2:$B$4000,2)) ->  | P68: =IF(O68="","",VLOOKUP($N68,河合塾!$A$2:$H$4000,8)) -> 
A69: 67 | B69: 1030302910 | C69: 北教大旭川校 | D69: 教育 | E69: 教員／理科 | F69: 前 | H69: 1 | I69: 北教大旭川校教育教員／理科前 | J69: 0.8333333333 | K69: =IF(ABS(A69-$O$1)>180,999,bigram($P$1,I69)) -> 0.1666666667 | L69: =IF(ABS(A69-$O$1)>180,999,Levenshtein($P$1,I69)) -> 11 | O69: =IF(N69="","",VLOOKUP($N69,河合塾!$A$2:$B$4000,2)) ->  | P69: =IF(O69="","",VLOOKUP($N69,河合塾!$A$2:$H$4000,8)) -> 
A70: 68 | B70: 1030302920 | C70: 北教大旭川校 | D70: 教育 | E70: 教員／理科 | F70: 後 | H70: 1 | I70: 北教大旭川校教育教員／理科後 | J70: 0.9166666667 | K70: =IF(ABS(A70-$O$1)>180,999,bigram($P$1,I70)) -> 0.08333333333 | L70: =IF(ABS(A70-$O$1)>180,999,Levenshtein($P$1,I70)) -> 12 | O70: =IF(N70="","",VLOOKUP($N70,河合塾!$A$2:$B$4000,2)) ->  | P70: =IF(O70="","",VLOOKUP($N70,河合塾!$A$2:$H$4000,8)) -> 
A71: 69 | B71: 1030303010 | C71: 北教大旭川校 | D71: 教育 | E71: 教員／生活技 | F71: 前 | H71: 1 | I71: 北教大旭川校教育教員／生活技前 | J71: 0.84 | K71: =IF(ABS(A71-$O$1)>180,999,bigram($P$1,I71)) -> 0.16 | L71: =IF(ABS(A71-$O$1)>180,999,Levenshtein($P$1,I71)) -> 12 | O71: =IF(N71="","",VLOOKUP($N71,河合塾!$A$2:$B$4000,2)) ->  | P71: =IF(O71="","",VLOOKUP($N71,河合塾!$A$2:$H$4000,8)) -> 
A72: 70 | B72: 1030303020 | C72: 北教大旭川校 | D72: 教育 | E72: 教員／生活技 | F72: 後 | H72: 1 | I72: 北教大旭川校教育教員／生活技後 | J72: 0.92 | K72: =IF(ABS(A72-$O$1)>180,999,bigram($P$1,I72)) -> 0.08 | L72: =IF(ABS(A72-$O$1)>180,999,Levenshtein($P$1,I72)) -> 13 | O72: =IF(N72="","",VLOOKUP($N72,河合塾!$A$2:$B$4000,2)) ->  | P72: =IF(O72="","",VLOOKUP($N72,河合塾!$A$2:$H$4000,8)) -> 
A73: 71 | B73: 1030303210 | C73: 北教大旭川校 | D73: 教育 | E73: 教員／音楽 | F73: 前 | H73: 1 | I73: 北教大旭川校教育教員／音楽前 | J73: 0.8333333333 | K73: =IF(ABS(A73-$O$1)>180,999,bigram($P$1,I73)) -> 0.1666666667 | L73: =IF(ABS(A73-$O$1)>180,999,Levenshtein($P$1,I73)) -> 11 | O73: =IF(N73="","",VLOOKUP($N73,河合塾!$A$2:$B$4000,2)) ->  | P73: =IF(O73="","",VLOOKUP($N73,河合塾!$A$2:$H$4000,8)) -> 
A74: 72 | B74: 1030303310 | C74: 北教大旭川校 | D74: 教育 | E74: 教員／美術 | F74: 前 | H74: 1 | I74: 北教大旭川校教育教員／美術前 | J74: 0.8333333333 | K74: =IF(ABS(A74-$O$1)>180,999,bigram($P$1,I74)) -> 0.1666666667 | L74: =IF(ABS(A74-$O$1)>180,999,Levenshtein($P$1,I74)) -> 11 | O74: =IF(N74="","",VLOOKUP($N74,河合塾!$A$2:$B$4000,2)) ->  | P74: =IF(O74="","",VLOOKUP($N74,河合塾!$A$2:$H$4000,8)) -> 
A75: 73 | B75: 1030303410 | C75: 北教大旭川校 | D75: 教育 | E75: 教員／保健体 | F75: 前 | H75: 1 | I75: 北教大旭川校教育教員／保健体前 | J75: 0.84 | K75: =IF(ABS(A75-$O$1)>180,999,bigram($P$1,I75)) -> 0.16 | L75: =IF(ABS(A75-$O$1)>180,999,Levenshtein($P$1,I75)) -> 12 | O75: =IF(N75="","",VLOOKUP($N75,河合塾!$A$2:$B$4000,2)) ->  | P75: =IF(O75="","",VLOOKUP($N75,河合塾!$A$2:$H$4000,8)) -> 
A76: 74 | B76: 1035302110 | C76: 北教大岩見沢校 | D76: 教育 | E76: 芸術／芸術ス | F76: 前 | H76: 1 | I76: 北教大岩見沢校教育芸術／芸術ス前 | J76: 0.9230769231 | K76: =IF(ABS(A76-$O$1)>180,999,bigram($P$1,I76)) -> 0.07692307692 | L76: =IF(ABS(A76-$O$1)>180,999,Levenshtein($P$1,I76)) -> 15 | O76: =IF(N76="","",VLOOKUP($N76,河合塾!$A$2:$B$4000,2)) ->  | P76: =IF(O76="","",VLOOKUP($N76,河合塾!$A$2:$H$4000,8)) -> 
A77: 75 | B77: 1035302120 | C77: 北教大岩見沢校 | D77: 教育 | E77: 芸術／芸術ス | F77: 後 | H77: 1 | I77: 北教大岩見沢校教育芸術／芸術ス後 | J77: 1 | K77: =IF(ABS(A77-$O$1)>180,999,bigram($P$1,I77)) -> 0 | L77: =IF(ABS(A77-$O$1)>180,999,Levenshtein($P$1,I77)) -> 16 | O77: =IF(N77="","",VLOOKUP($N77,河合塾!$A$2:$B$4000,2)) ->  | P77: =IF(O77="","",VLOOKUP($N77,河合塾!$A$2:$H$4000,8)) -> 
A78: 76 | B78: 1035302210 | C78: 北教大岩見沢校 | D78: 教育 | E78: 芸術／声楽 | F78: 前 | H78: 1 | I78: 北教大岩見沢校教育芸術／声楽前 | J78: 0.92 | K78: =IF(ABS(A78-$O$1)>180,999,bigram($P$1,I78)) -> 0.08 | L78: =IF(ABS(A78-$O$1)>180,999,Levenshtein($P$1,I78)) -> 14 | O78: =IF(N78="","",VLOOKUP($N78,河合塾!$A$2:$B$4000,2)) ->  | P78: =IF(O78="","",VLOOKUP($N78,河合塾!$A$2:$H$4000,8)) -> 
A79: 77 | B79: 1035302310 | C79: 北教大岩見沢校 | D79: 教育 | E79: 芸術／鍵・作 | F79: 前 | H79: 1 | I79: 北教大岩見沢校教育芸術／鍵・作前 | J79: 0.9230769231 | K79: =IF(ABS(A79-$O$1)>180,999,bigram($P$1,I79)) -> 0.07692307692 | L79: =IF(ABS(A79-$O$1)>180,999,Levenshtein($P$1,I79)) -> 15 | O79: =IF(N79="","",VLOOKUP($N79,河合塾!$A$2:$B$4000,2)) ->  | P79: =IF(O79="","",VLOOKUP($N79,河合塾!$A$2:$H$4000,8)) -> 
A80: 78 | B80: 1035302410 | C80: 北教大岩見沢校 | D80: 教育 | E80: 芸術／管弦打 | F80: 前 | H80: 1 | I80: 北教大岩見沢校教育芸術／管弦打前 | J80: 0.9230769231 | K80: =IF(ABS(A80-$O$1)>180,999,bigram($P$1,I80)) -> 0.07692307692 | L80: =IF(ABS(A80-$O$1)>180,999,Levenshtein($P$1,I80)) -> 15 | O80: =IF(N80="","",VLOOKUP($N80,河合塾!$A$2:$B$4000,2)) ->  | P80: =IF(O80="","",VLOOKUP($N80,河合塾!$A$2:$H$4000,8)) -> 
A81: 79 | B81: 1035302510 | C81: 北教大岩見沢校 | D81: 教育 | E81: 芸術／音楽教 | F81: 前 | H81: 1 | I81: 北教大岩見沢校教育芸術／音楽教前 | J81: 0.9230769231 | K81: =IF(ABS(A81-$O$1)>180,999,bigram($P$1,I81)) -> 0.07692307692 | L81: =IF(ABS(A81-$O$1)>180,999,Levenshtein($P$1,I81)) -> 15 | O81: =IF(N81="","",VLOOKUP($N81,河合塾!$A$2:$B$4000,2)) ->  | P81: =IF(O81="","",VLOOKUP($N81,河合塾!$A$2:$H$4000,8)) -> 
A82: 80 | B82: 1035302610 | C82: 北教大岩見沢校 | D82: 教育 | E82: 芸術／美術デ | F82: 前 | H82: 1 | I82: 北教大岩見沢校教育芸術／美術デ前 | J82: 0.9230769231 | K82: =IF(ABS(A82-$O$1)>180,999,bigram($P$1,I82)) -> 0.07692307692 | L82: =IF(ABS(A82-$O$1)>180,999,Levenshtein($P$1,I82)) -> 15 | O82: =IF(N82="","",VLOOKUP($N82,河合塾!$A$2:$B$4000,2)) ->  | P82: =IF(O82="","",VLOOKUP($N82,河合塾!$A$2:$H$4000,8)) -> 
A83: 81 | B83: 1035302620 | C83: 北教大岩見沢校 | D83: 教育 | E83: 芸術／美術デ | F83: 後 | H83: 1 | I83: 北教大岩見沢校教育芸術／美術デ後 | J83: 1 | K83: =IF(ABS(A83-$O$1)>180,999,bigram($P$1,I83)) -> 0 | L83: =IF(ABS(A83-$O$1)>180,999,Levenshtein($P$1,I83)) -> 16 | O83: =IF(N83="","",VLOOKUP($N83,河合塾!$A$2:$B$4000,2)) ->  | P83: =IF(O83="","",VLOOKUP($N83,河合塾!$A$2:$H$4000,8)) -> 
A84: 82 | B84: 1035302710 | C84: 北教大岩見沢校 | D84: 教育 | E84: 芸術／書画工 | F84: 前 | H84: 1 | I84: 北教大岩見沢校教育芸術／書画工前 | J84: 0.9230769231 | K84: =IF(ABS(A84-$O$1)>180,999,bigram($P$1,I84)) -> 0.07692307692 | L84: =IF(ABS(A84-$O$1)>180,999,Levenshtein($P$1,I84)) -> 15 | O84: =IF(N84="","",VLOOKUP($N84,河合塾!$A$2:$B$4000,2)) ->  | P84: =IF(O84="","",VLOOKUP($N84,河合塾!$A$2:$H$4000,8)) -> 
A85: 83 | B85: 1035302720 | C85: 北教大岩見沢校 | D85: 教育 | E85: 芸術／書画工 | F85: 後 | H85: 1 | I85: 北教大岩見沢校教育芸術／書画工後 | J85: 1 | K85: =IF(ABS(A85-$O$1)>180,999,bigram($P$1,I85)) -> 0 | L85: =IF(ABS(A85-$O$1)>180,999,Levenshtein($P$1,I85)) -> 16 | O85: =IF(N85="","",VLOOKUP($N85,河合塾!$A$2:$B$4000,2)) ->  | P85: =IF(O85="","",VLOOKUP($N85,河合塾!$A$2:$H$4000,8)) -> 
A86: 84 | B86: 1035302810 | C86: 北教大岩見沢校 | D86: 教育 | E86: 芸術／メディ | F86: 前 | H86: 1 | I86: 北教大岩見沢校教育芸術／メディ前 | J86: 0.9230769231 | K86: =IF(ABS(A86-$O$1)>180,999,bigram($P$1,I86)) -> 0.07692307692 | L86: =IF(ABS(A86-$O$1)>180,999,Levenshtein($P$1,I86)) -> 15 | O86: =IF(N86="","",VLOOKUP($N86,河合塾!$A$2:$B$4000,2)) ->  | P86: =IF(O86="","",VLOOKUP($N86,河合塾!$A$2:$H$4000,8)) -> 
A87: 85 | B87: 1035302820 | C87: 北教大岩見沢校 | D87: 教育 | E87: 芸術／メディ | F87: 後 | H87: 1 | I87: 北教大岩見沢校教育芸術／メディ後 | J87: 1 | K87: =IF(ABS(A87-$O$1)>180,999,bigram($P$1,I87)) -> 0 | L87: =IF(ABS(A87-$O$1)>180,999,Levenshtein($P$1,I87)) -> 16 | O87: =IF(N87="","",VLOOKUP($N87,河合塾!$A$2:$B$4000,2)) ->  | P87: =IF(O87="","",VLOOKUP($N87,河合塾!$A$2:$H$4000,8)) -> 
A88: 86 | B88: 1035302910 | C88: 北教大岩見沢校 | D88: 教育 | E88: 芸術／美術文 | F88: 前 | H88: 1 | I88: 北教大岩見沢校教育芸術／美術文前 | J88: 0.9230769231 | K88: =IF(ABS(A88-$O$1)>180,999,bigram($P$1,I88)) -> 0.07692307692 | L88: =IF(ABS(A88-$O$1)>180,999,Levenshtein($P$1,I88)) -> 15 | O88: =IF(N88="","",VLOOKUP($N88,河合塾!$A$2:$B$4000,2)) ->  | P88: =IF(O88="","",VLOOKUP($N88,河合塾!$A$2:$H$4000,8)) -> 
A89: 87 | B89: 1035302920 | C89: 北教大岩見沢校 | D89: 教育 | E89: 芸術／美術文 | F89: 後 | H89: 1 | I89: 北教大岩見沢校教育芸術／美術文後 | J89: 1 | K89: =IF(ABS(A89-$O$1)>180,999,bigram($P$1,I89)) -> 0 | L89: =IF(ABS(A89-$O$1)>180,999,Levenshtein($P$1,I89)) -> 16 | O89: =IF(N89="","",VLOOKUP($N89,河合塾!$A$2:$B$4000,2)) ->  | P89: =IF(O89="","",VLOOKUP($N89,河合塾!$A$2:$H$4000,8)) -> 
A90: 88 | B90: 1035303010 | C90: 北教大岩見沢校 | D90: 教育 | E90: 芸術／スポー | F90: 前 | H90: 1 | I90: 北教大岩見沢校教育芸術／スポー前 | J90: 0.9230769231 | K90: =IF(ABS(A90-$O$1)>180,999,bigram($P$1,I90)) -> 0.07692307692 | L90: =IF(ABS(A90-$O$1)>180,999,Levenshtein($P$1,I90)) -> 15 | O90: =IF(N90="","",VLOOKUP($N90,河合塾!$A$2:$B$4000,2)) ->  | P90: =IF(O90="","",VLOOKUP($N90,河合塾!$A$2:$H$4000,8)) -> 
A91: 89 | B91: 1035303020 | C91: 北教大岩見沢校 | D91: 教育 | E91: 芸術／スポー | F91: 後 | H91: 1 | I91: 北教大岩見沢校教育芸術／スポー後 | J91: 1 | K91: =IF(ABS(A91-$O$1)>180,999,bigram($P$1,I91)) -> 0 | L91: =IF(ABS(A91-$O$1)>180,999,Levenshtein($P$1,I91)) -> 16 | O91: =IF(N91="","",VLOOKUP($N91,河合塾!$A$2:$B$4000,2)) ->  | P91: =IF(O91="","",VLOOKUP($N91,河合塾!$A$2:$H$4000,8)) -> 
A92: 90 | B92: 1035303110 | C92: 北教大岩見沢校 | D92: 教育 | E92: 芸術／アウト | F92: 前 | H92: 1 | I92: 北教大岩見沢校教育芸術／アウト前 | J92: 0.9230769231 | K92: =IF(ABS(A92-$O$1)>180,999,bigram($P$1,I92)) -> 0.07692307692 | L92: =IF(ABS(A92-$O$1)>180,999,Levenshtein($P$1,I92)) -> 15 | O92: =IF(N92="","",VLOOKUP($N92,河合塾!$A$2:$B$4000,2)) ->  | P92: =IF(O92="","",VLOOKUP($N92,河合塾!$A$2:$H$4000,8)) -> 
A93: 91 | B93: 1035303120 | C93: 北教大岩見沢校 | D93: 教育 | E93: 芸術／アウト | F93: 後 | H93: 1 | I93: 北教大岩見沢校教育芸術／アウト後 | J93: 1 | K93: =IF(ABS(A93-$O$1)>180,999,bigram($P$1,I93)) -> 0 | L93: =IF(ABS(A93-$O$1)>180,999,Levenshtein($P$1,I93)) -> 16 | O93: =IF(N93="","",VLOOKUP($N93,河合塾!$A$2:$B$4000,2)) ->  | P93: =IF(O93="","",VLOOKUP($N93,河合塾!$A$2:$H$4000,8)) -> 
A94: 92 | B94: 1035303220 | C94: 北教大岩見沢校 | D94: 教育 | E94: 芸術／音楽文 | F94: 後 | H94: 1 | I94: 北教大岩見沢校教育芸術／音楽文後 | J94: 1 | K94: =IF(ABS(A94-$O$1)>180,999,bigram($P$1,I94)) -> 0 | L94: =IF(ABS(A94-$O$1)>180,999,Levenshtein($P$1,I94)) -> 16 | O94: =IF(N94="","",VLOOKUP($N94,河合塾!$A$2:$B$4000,2)) ->  | P94: =IF(O94="","",VLOOKUP($N94,河合塾!$A$2:$H$4000,8)) -> 
A95: 93 | B95: 1040301910 | C95: 北教大釧路校 | D95: 教育 | E95: 教員養成 | F95: 前 | H95: 1 | I95: 北教大釧路校教育教員養成前 | J95: 0.9130434783 | K95: =IF(ABS(A95-$O$1)>180,999,bigram($P$1,I95)) -> 0.08695652174 | L95: =IF(ABS(A95-$O$1)>180,999,Levenshtein($P$1,I95)) -> 12 | O95: =IF(N95="","",VLOOKUP($N95,河合塾!$A$2:$B$4000,2)) ->  | P95: =IF(O95="","",VLOOKUP($N95,河合塾!$A$2:$H$4000,8)) -> 
A96: 94 | B96: 1040301920 | C96: 北教大釧路校 | D96: 教育 | E96: 教員養成 | F96: 後 | H96: 1 | I96: 北教大釧路校教育教員養成後 | J96: 1 | K96: =IF(ABS(A96-$O$1)>180,999,bigram($P$1,I96)) -> 0 | L96: =IF(ABS(A96-$O$1)>180,999,Levenshtein($P$1,I96)) -> 13 | O96: =IF(N96="","",VLOOKUP($N96,河合塾!$A$2:$B$4000,2)) ->  | P96: =IF(O96="","",VLOOKUP($N96,河合塾!$A$2:$H$4000,8)) -> 
A97: 95 | B97: 1045302010 | C97: 北教大札幌校 | D97: 教育 | E97: 教員／特別支 | F97: 前 | H97: 1 | I97: 北教大札幌校教育教員／特別支前 | J97: 0.92 | K97: =IF(ABS(A97-$O$1)>180,999,bigram($P$1,I97)) -> 0.08 | L97: =IF(ABS(A97-$O$1)>180,999,Levenshtein($P$1,I97)) -> 14 | O97: =IF(N97="","",VLOOKUP($N97,河合塾!$A$2:$B$4000,2)) ->  | P97: =IF(O97="","",VLOOKUP($N97,河合塾!$A$2:$H$4000,8)) -> 
A98: 96 | B98: 1045302020 | C98: 北教大札幌校 | D98: 教育 | E98: 教員／特別支 | F98: 後 | H98: 1 | I98: 北教大札幌校教育教員／特別支後 | J98: 1 | K98: =IF(ABS(A98-$O$1)>180,999,bigram($P$1,I98)) -> 0 | L98: =IF(ABS(A98-$O$1)>180,999,Levenshtein($P$1,I98)) -> 15 | O98: =IF(N98="","",VLOOKUP($N98,河合塾!$A$2:$B$4000,2)) ->  | P98: =IF(O98="","",VLOOKUP($N98,河合塾!$A$2:$H$4000,8)) -> 
A99: 97 | B99: 1045302110 | C99: 北教大札幌校 | D99: 教育 | E99: 教員／養護教 | F99: 前 | H99: 1 | I99: 北教大札幌校教育教員／養護教前 | J99: 0.92 | K99: =IF(ABS(A99-$O$1)>180,999,bigram($P$1,I99)) -> 0.08 | L99: =IF(ABS(A99-$O$1)>180,999,Levenshtein($P$1,I99)) -> 14 | O99: =IF(N99="","",VLOOKUP($N99,河合塾!$A$2:$B$4000,2)) ->  | P99: =IF(O99="","",VLOOKUP($N99,河合塾!$A$2:$H$4000,8)) -> 
A100: 98 | B100: 1045302120 | C100: 北教大札幌校 | D100: 教育 | E100: 教員／養護教 | F100: 後 | H100: 1 | I100: 北教大札幌校教育教員／養護教後 | J100: 1 | K100: =IF(ABS(A100-$O$1)>180,999,bigram($P$1,I100)) -> 0 | L100: =IF(ABS(A100-$O$1)>180,999,Levenshtein($P$1,I100)) -> 15 | O100: =IF(N100="","",VLOOKUP($N100,河合塾!$A$2:$B$4000,2)) ->  | P100: =IF(O100="","",VLOOKUP($N100,河合塾!$A$2:$H$4000,8)) -> 
A101: 99 | B101: 1045302410 | C101: 北教大札幌校 | D101: 教育 | E101: 教員／学校教 | F101: 前 | H101: 1 | I101: 北教大札幌校教育教員／学校教前 | J101: 0.92 | K101: =IF(ABS(A101-$O$1)>180,999,bigram($P$1,I101)) -> 0.08 | L101: =IF(ABS(A101-$O$1)>180,999,Levenshtein($P$1,I101)) -> 14 | O101: =IF(N101="","",VLOOKUP($N101,河合塾!$A$2:$B$4000,2)) ->  | P101: =IF(O101="","",VLOOKUP($N101,河合塾!$A$2:$H$4000,8)) -> 
A102: 100 | B102: 1045302420 | C102: 北教大札幌校 | D102: 教育 | E102: 教員／学校教 | F102: 後 | H102: 1 | I102: 北教大札幌校教育教員／学校教後 | J102: 1 | K102: =IF(ABS(A102-$O$1)>180,999,bigram($P$1,I102)) -> 0 | L102: =IF(ABS(A102-$O$1)>180,999,Levenshtein($P$1,I102)) -> 15 | O102: =IF(N102="","",VLOOKUP($N102,河合塾!$A$2:$B$4000,2)) ->  | P102: =IF(O102="","",VLOOKUP($N102,河合塾!$A$2:$H$4000,8)) -> 
A103: 101 | B103: 1045302510 | C103: 北教大札幌校 | D103: 教育 | E103: 教員／言語社 | F103: 前 | H103: 1 | I103: 北教大札幌校教育教員／言語社前 | J103: 0.92 | K103: =IF(ABS(A103-$O$1)>180,999,bigram($P$1,I103)) -> 0.08 | L103: =IF(ABS(A103-$O$1)>180,999,Levenshtein($P$1,I103)) -> 14 | O103: =IF(N103="","",VLOOKUP($N103,河合塾!$A$2:$B$4000,2)) ->  | P103: =IF(O103="","",VLOOKUP($N103,河合塾!$A$2:$H$4000,8)) -> 
A104: 102 | B104: 1045302520 | C104: 北教大札幌校 | D104: 教育 | E104: 教員／言語社 | F104: 後 | H104: 1 | I104: 北教大札幌校教育教員／言語社後 | J104: 1 | K104: =IF(ABS(A104-$O$1)>180,999,bigram($P$1,I104)) -> 0 | L104: =IF(ABS(A104-$O$1)>180,999,Levenshtein($P$1,I104)) -> 15 | O104: =IF(N104="","",VLOOKUP($N104,河合塾!$A$2:$B$4000,2)) ->  | P104: =IF(O104="","",VLOOKUP($N104,河合塾!$A$2:$H$4000,8)) -> 
A105: 103 | B105: 1045302610 | C105: 北教大札幌校 | D105: 教育 | E105: 教員／理数教 | F105: 前 | H105: 1 | I105: 北教大札幌校教育教員／理数教前 | J105: 0.92 | K105: =IF(ABS(A105-$O$1)>180,999,bigram($P$1,I105)) -> 0.08 | L105: =IF(ABS(A105-$O$1)>180,999,Levenshtein($P$1,I105)) -> 14 | O105: =IF(N105="","",VLOOKUP($N105,河合塾!$A$2:$B$4000,2)) ->  | P105: =IF(O105="","",VLOOKUP($N105,河合塾!$A$2:$H$4000,8)) -> 
A106: 104 | B106: 1045302620 | C106: 北教大札幌校 | D106: 教育 | E106: 教員／理数教 | F106: 後 | H106: 1 | I106: 北教大札幌校教育教員／理数教後 | J106: 1 | K106: =IF(ABS(A106-$O$1)>180,999,bigram($P$1,I106)) -> 0 | L106: =IF(ABS(A106-$O$1)>180,999,Levenshtein($P$1,I106)) -> 15 | O106: =IF(N106="","",VLOOKUP($N106,河合塾!$A$2:$B$4000,2)) ->  | P106: =IF(O106="","",VLOOKUP($N106,河合塾!$A$2:$H$4000,8)) -> 
A107: 105 | B107: 1045302710 | C107: 北教大札幌校 | D107: 教育 | E107: 教員／生活創 | F107: 前 | H107: 1 | I107: 北教大札幌校教育教員／生活創前 | J107: 0.92 | K107: =IF(ABS(A107-$O$1)>180,999,bigram($P$1,I107)) -> 0.08 | L107: =IF(ABS(A107-$O$1)>180,999,Levenshtein($P$1,I107)) -> 14 | O107: =IF(N107="","",VLOOKUP($N107,河合塾!$A$2:$B$4000,2)) ->  | P107: =IF(O107="","",VLOOKUP($N107,河合塾!$A$2:$H$4000,8)) -> 
A108: 106 | B108: 1045302720 | C108: 北教大札幌校 | D108: 教育 | E108: 教員／生活創 | F108: 後 | H108: 1 | I108: 北教大札幌校教育教員／生活創後 | J108: 1 | K108: =IF(ABS(A108-$O$1)>180,999,bigram($P$1,I108)) -> 0 | L108: =IF(ABS(A108-$O$1)>180,999,Levenshtein($P$1,I108)) -> 15 | O108: =IF(N108="","",VLOOKUP($N108,河合塾!$A$2:$B$4000,2)) ->  | P108: =IF(O108="","",VLOOKUP($N108,河合塾!$A$2:$H$4000,8)) -> 
A109: 107 | B109: 1045302810 | C109: 北教大札幌校 | D109: 教育 | E109: 教員／図画工 | F109: 前 | H109: 1 | I109: 北教大札幌校教育教員／図画工前 | J109: 0.92 | K109: =IF(ABS(A109-$O$1)>180,999,bigram($P$1,I109)) -> 0.08 | L109: =IF(ABS(A109-$O$1)>180,999,Levenshtein($P$1,I109)) -> 14 | O109: =IF(N109="","",VLOOKUP($N109,河合塾!$A$2:$B$4000,2)) ->  | P109: =IF(O109="","",VLOOKUP($N109,河合塾!$A$2:$H$4000,8)) -> 
A110: 108 | B110: 1045302910 | C110: 北教大札幌校 | D110: 教育 | E110: 教員／音楽 | F110: 前 | H110: 1 | I110: 北教大札幌校教育教員／音楽前 | J110: 0.9166666667 | K110: =IF(ABS(A110-$O$1)>180,999,bigram($P$1,I110)) -> 0.08333333333 | L110: =IF(ABS(A110-$O$1)>180,999,Levenshtein($P$1,I110)) -> 13 | O110: =IF(N110="","",VLOOKUP($N110,河合塾!$A$2:$B$4000,2)) ->  | P110: =IF(O110="","",VLOOKUP($N110,河合塾!$A$2:$H$4000,8)) -> 
A111: 109 | B111: 1045303010 | C111: 北教大札幌校 | D111: 教育 | E111: 教員／保健体 | F111: 前 | H111: 1 | I111: 北教大札幌校教育教員／保健体前 | J111: 0.92 | K111: =IF(ABS(A111-$O$1)>180,999,bigram($P$1,I111)) -> 0.08 | L111: =IF(ABS(A111-$O$1)>180,999,Levenshtein($P$1,I111)) -> 14 | O111: =IF(N111="","",VLOOKUP($N111,河合塾!$A$2:$B$4000,2)) ->  | P111: =IF(O111="","",VLOOKUP($N111,河合塾!$A$2:$H$4000,8)) -> 
A112: 110 | B112: 1050303210 | C112: 北教大函館校 | D112: 教育 | E112: 国際／国際協 | F112: 前 | H112: 1 | I112: 北教大函館校教育国際／国際協前 | J112: 0.92 | K112: =IF(ABS(A112-$O$1)>180,999,bigram($P$1,I112)) -> 0.08 | L112: =IF(ABS(A112-$O$1)>180,999,Levenshtein($P$1,I112)) -> 14 | O112: =IF(N112="","",VLOOKUP($N112,河合塾!$A$2:$B$4000,2)) ->  | P112: =IF(O112="","",VLOOKUP($N112,河合塾!$A$2:$H$4000,8)) -> 
A113: 111 | B113: 1050303220 | C113: 北教大函館校 | D113: 教育 | E113: 国際／国際協 | F113: 後 | H113: 1 | I113: 北教大函館校教育国際／国際協後 | J113: 1 | K113: =IF(ABS(A113-$O$1)>180,999,bigram($P$1,I113)) -> 0 | L113: =IF(ABS(A113-$O$1)>180,999,Levenshtein($P$1,I113)) -> 15 | O113: =IF(N113="","",VLOOKUP($N113,河合塾!$A$2:$B$4000,2)) ->  | P113: =IF(O113="","",VLOOKUP($N113,河合塾!$A$2:$H$4000,8)) -> 
A114: 112 | B114: 1050303310 | C114: 北教大函館校 | D114: 教育 | E114: 国際／地域政 | F114: 前 | H114: 1 | I114: 北教大函館校教育国際／地域政前 | J114: 0.92 | K114: =IF(ABS(A114-$O$1)>180,999,bigram($P$1,I114)) -> 0.08 | L114: =IF(ABS(A114-$O$1)>180,999,Levenshtein($P$1,I114)) -> 14 | O114: =IF(N114="","",VLOOKUP($N114,河合塾!$A$2:$B$4000,2)) ->  | P114: =IF(O114="","",VLOOKUP($N114,河合塾!$A$2:$H$4000,8)) -> 
A115: 113 | B115: 1050303320 | C115: 北教大函館校 | D115: 教育 | E115: 国際／地域政 | F115: 後 | H115: 1 | I115: 北教大函館校教育国際／地域政後 | J115: 1 | K115: =IF(ABS(A115-$O$1)>180,999,bigram($P$1,I115)) -> 0 | L115: =IF(ABS(A115-$O$1)>180,999,Levenshtein($P$1,I115)) -> 15 | O115: =IF(N115="","",VLOOKUP($N115,河合塾!$A$2:$B$4000,2)) ->  | P115: =IF(O115="","",VLOOKUP($N115,河合塾!$A$2:$H$4000,8)) -> 
A116: 114 | B116: 1050303410 | C116: 北教大函館校 | D116: 教育 | E116: 国際／地域環 | F116: 前 | H116: 1 | I116: 北教大函館校教育国際／地域環前 | J116: 0.92 | K116: =IF(ABS(A116-$O$1)>180,999,bigram($P$1,I116)) -> 0.08 | L116: =IF(ABS(A116-$O$1)>180,999,Levenshtein($P$1,I116)) -> 14 | O116: =IF(N116="","",VLOOKUP($N116,河合塾!$A$2:$B$4000,2)) ->  | P116: =IF(O116="","",VLOOKUP($N116,河合塾!$A$2:$H$4000,8)) -> 
A117: 115 | B117: 1050303420 | C117: 北教大函館校 | D117: 教育 | E117: 国際／地域環 | F117: 後 | H117: 1 | I117: 北教大函館校教育国際／地域環後 | J117: 1 | K117: =IF(ABS(A117-$O$1)>180,999,bigram($P$1,I117)) -> 0 | L117: =IF(ABS(A117-$O$1)>180,999,Levenshtein($P$1,I117)) -> 15 | O117: =IF(N117="","",VLOOKUP($N117,河合塾!$A$2:$B$4000,2)) ->  | P117: =IF(O117="","",VLOOKUP($N117,河合塾!$A$2:$H$4000,8)) -> 
A118: 116 | B118: 1050303510 | C118: 北教大函館校 | D118: 教育 | E118: 国際／地域教 | F118: 前 | H118: 1 | I118: 北教大函館校教育国際／地域教前 | J118: 0.92 | K118: =IF(ABS(A118-$O$1)>180,999,bigram($P$1,I118)) -> 0.08 | L118: =IF(ABS(A118-$O$1)>180,999,Levenshtein($P$1,I118)) -> 14 | O118: =IF(N118="","",VLOOKUP($N118,河合塾!$A$2:$B$4000,2)) ->  | P118: =IF(O118="","",VLOOKUP($N118,河合塾!$A$2:$H$4000,8)) -> 
A119: 117 | B119: 1050303520 | C119: 北教大函館校 | D119: 教育 | E119: 国際／地域教 | F119: 後 | H119: 1 | I119: 北教大函館校教育国際／地域教後 | J119: 1 | K119: =IF(ABS(A119-$O$1)>180,999,bigram($P$1,I119)) -> 0 | L119: =IF(ABS(A119-$O$1)>180,999,Levenshtein($P$1,I119)) -> 15 | O119: =IF(N119="","",VLOOKUP($N119,河合塾!$A$2:$B$4000,2)) ->  | P119: =IF(O119="","",VLOOKUP($N119,河合塾!$A$2:$H$4000,8)) -> 
A120: 118 | B120: 1055470110 | C120: 室蘭工大 | D120: 理工 | E120: 生産工 | F120: 前 | H120: 1 | I120: 室蘭工大理工生産工前 | J120: 0.9 | K120: =IF(ABS(A120-$O$1)>180,999,bigram($P$1,I120)) -> 0.1 | L120: =IF(ABS(A120-$O$1)>180,999,Levenshtein($P$1,I120)) -> 9 | O120: =IF(N120="","",VLOOKUP($N120,河合塾!$A$2:$B$4000,2)) ->  | P120: =IF(O120="","",VLOOKUP($N120,河合塾!$A$2:$H$4000,8)) -> 
A121: 119 | B121: 1055470120 | C121: 室蘭工大 | D121: 理工 | E121: 生産工 | F121: 後 | H121: 1 | I121: 室蘭工大理工生産工後 | J121: 1 | K121: =IF(ABS(A121-$O$1)>180,999,bigram($P$1,I121)) -> 0 | L121: =IF(ABS(A121-$O$1)>180,999,Levenshtein($P$1,I121)) -> 10 | O121: =IF(N121="","",VLOOKUP($N121,河合塾!$A$2:$B$4000,2)) ->  | P121: =IF(O121="","",VLOOKUP($N121,河合塾!$A$2:$H$4000,8)) -> 
A122: 120 | B122: 1055470210 | C122: 室蘭工大 | D122: 理工 | E122: 生産科学 | F122: 前 | H122: 1 | I122: 室蘭工大理工生産科学前 | J122: 0.9047619048 | K122: =IF(ABS(A122-$O$1)>180,999,bigram($P$1,I122)) -> 0.09523809524 | L122: =IF(ABS(A122-$O$1)>180,999,Levenshtein($P$1,I122)) -> 10 | O122: =IF(N122="","",VLOOKUP($N122,河合塾!$A$2:$B$4000,2)) ->  | P122: =IF(O122="","",VLOOKUP($N122,河合塾!$A$2:$H$4000,8)) -> 
A123: 121 | B123: 1055470220 | C123: 室蘭工大 | D123: 理工 | E123: 生産科学 | F123: 後 | H123: 1 | I123: 室蘭工大理工生産科学後 | J123: 1 | K123: =IF(ABS(A123-$O$1)>180,999,bigram($P$1,I123)) -> 0 | L123: =IF(ABS(A123-$O$1)>180,999,Levenshtein($P$1,I123)) -> 11 | O123: =IF(N123="","",VLOOKUP($N123,河合塾!$A$2:$B$4000,2)) ->  | P123: =IF(O123="","",VLOOKUP($N123,河合塾!$A$2:$H$4000,8)) -> 
A124: 122 | B124: 1055530110 | C124: 室蘭工大 | D124: 理工夜 | E124: 生産工 | F124: 前 | H124: 1 | I124: 室蘭工大理工夜生産工前 | J124: 0.9047619048 | K124: =IF(ABS(A124-$O$1)>180,999,bigram($P$1,I124)) -> 0.09523809524 | L124: =IF(ABS(A124-$O$1)>180,999,Levenshtein($P$1,I124)) -> 10 | O124: =IF(N124="","",VLOOKUP($N124,河合塾!$A$2:$B$4000,2)) ->  | P124: =IF(O124="","",VLOOKUP($N124,河合塾!$A$2:$H$4000,8)) -> 
A125: 123 | B125: 1055530120 | C125: 室蘭工大 | D125: 理工夜 | E125: 生産工 | F125: 後 | H125: 1 | I125: 室蘭工大理工夜生産工後 | J125: 1 | K125: =IF(ABS(A125-$O$1)>180,999,bigram($P$1,I125)) -> 0 | L125: =IF(ABS(A125-$O$1)>180,999,Levenshtein($P$1,I125)) -> 11 | O125: =IF(N125="","",VLOOKUP($N125,河合塾!$A$2:$B$4000,2)) ->  | P125: =IF(O125="","",VLOOKUP($N125,河合塾!$A$2:$H$4000,8)) -> 
A126: 124 | B126: 1060270110 | C126: 弘前大 | D126: 人文社会 | E126: 文化創生 | F126: 前 | H126: 1 | I126: 弘前大人文社会文化創生前 | J126: 0.9090909091 | K126: =IF(ABS(A126-$O$1)>180,999,bigram($P$1,I126)) -> 0.09090909091 | L126: =IF(ABS(A126-$O$1)>180,999,Levenshtein($P$1,I126)) -> 11 | O126: =IF(N126="","",VLOOKUP($N126,河合塾!$A$2:$B$4000,2)) ->  | P126: =IF(O126="","",VLOOKUP($N126,河合塾!$A$2:$H$4000,8)) -> 
A127: 125 | B127: 1060270120 | C127: 弘前大 | D127: 人文社会 | E127: 文化創生 | F127: 後 | H127: 1 | I127: 弘前大人文社会文化創生後 | J127: 1 | K127: =IF(ABS(A127-$O$1)>180,999,bigram($P$1,I127)) -> 0 | L127: =IF(ABS(A127-$O$1)>180,999,Levenshtein($P$1,I127)) -> 12 | O127: =IF(N127="","",VLOOKUP($N127,河合塾!$A$2:$B$4000,2)) ->  | P127: =IF(O127="","",VLOOKUP($N127,河合塾!$A$2:$H$4000,8)) -> 
A128: 126 | B128: 1060270211 | C128: 弘前大 | D128: 人文社会 | E128: 社会経営 | F128: 前 | G128: 国語 | H128: 1 | I128: 弘前大人文社会社会経営国語前 | J128: 0.9166666667 | K128: =IF(ABS(A128-$O$1)>180,999,bigram($P$1,I128)) -> 0.08333333333 | L128: =IF(ABS(A128-$O$1)>180,999,Levenshtein($P$1,I128)) -> 13 | O128: =IF(N128="","",VLOOKUP($N128,河合塾!$A$2:$B$4000,2)) ->  | P128: =IF(O128="","",VLOOKUP($N128,河合塾!$A$2:$H$4000,8)) -> 
A129: 127 | B129: 1060270212 | C129: 弘前大 | D129: 人文社会 | E129: 社会経営 | F129: 前 | G129: 数学 | H129: 1 | I129: 弘前大人文社会社会経営数学前 | J129: 0.9166666667 | K129: =IF(ABS(A129-$O$1)>180,999,bigram($P$1,I129)) -> 0.08333333333 | L129: =IF(ABS(A129-$O$1)>180,999,Levenshtein($P$1,I129)) -> 13 | O129: =IF(N129="","",VLOOKUP($N129,河合塾!$A$2:$B$4000,2)) ->  | P129: =IF(O129="","",VLOOKUP($N129,河合塾!$A$2:$H$4000,8)) -> 
A130: 128 | B130: 1060270220 | C130: 弘前大 | D130: 人文社会 | E130: 社会経営 | F130: 後 | H130: 1 | I130: 弘前大人文社会社会経営後 | J130: 1 | K130: =IF(ABS(A130-$O$1)>180,999,bigram($P$1,I130)) -> 0 | L130: =IF(ABS(A130-$O$1)>180,999,Levenshtein($P$1,I130)) -> 12 | O130: =IF(N130="","",VLOOKUP($N130,河合塾!$A$2:$B$4000,2)) ->  | P130: =IF(O130="","",VLOOKUP($N130,河合塾!$A$2:$H$4000,8)) -> 
A131: 129 | B131: 1060301510 | C131: 弘前大 | D131: 教育 | E131: 養護教諭 | F131: 前 | H131: 1 | I131: 弘前大教育養護教諭前 | J131: 0.9 | K131: =IF(ABS(A131-$O$1)>180,999,bigram($P$1,I131)) -> 0.1 | L131: =IF(ABS(A131-$O$1)>180,999,Levenshtein($P$1,I131)) -> 9 | O131: =IF(N131="","",VLOOKUP($N131,河合塾!$A$2:$B$4000,2)) ->  | P131: =IF(O131="","",VLOOKUP($N131,河合塾!$A$2:$H$4000,8)) -> 
A132: 130 | B132: 1060304810 | C132: 弘前大 | D132: 教育 | E132: 学校／特別支 | F132: 前 | H132: 1 | I132: =C132&D132&E132&G132&F132 -> 弘前大教育学校／特別支前 | J132: =IF(ABS(A132-$O$1)>180,999,1-K132) -> 0.9090909091 | K132: =IF(ABS(A132-$O$1)>180,999,bigram($P$1,I132)) -> 0.09090909091 | L132: =IF(ABS(A132-$O$1)>180,999,Levenshtein($P$1,I132)) -> 11 | O132: =IF(N132="","",VLOOKUP($N132,河合塾!$A$2:$B$4000,2)) ->  | P132: =IF(O132="","",VLOOKUP($N132,河合塾!$A$2:$H$4000,8)) -> 
A133: 131 | B133: 1060304910 | C133: 弘前大 | D133: 教育 | E133: 学校／小学校 | F133: 前 | H133: 1 | I133: 弘前大教育学校／小学校前 | J133: 0.9090909091 | K133: =IF(ABS(A133-$O$1)>180,999,bigram($P$1,I133)) -> 0.09090909091 | L133: =IF(ABS(A133-$O$1)>180,999,Levenshtein($P$1,I133)) -> 11 | O133: =IF(N133="","",VLOOKUP($N133,河合塾!$A$2:$B$4000,2)) ->  | P133: =IF(O133="","",VLOOKUP($N133,河合塾!$A$2:$H$4000,8)) -> 
A134: 132 | B134: 1060304920 | C134: 弘前大 | D134: 教育 | E134: 学校／小学校 | F134: 後 | H134: 1 | I134: 弘前大教育学校／小学校後 | J134: 1 | K134: =IF(ABS(A134-$O$1)>180,999,bigram($P$1,I134)) -> 0 | L134: =IF(ABS(A134-$O$1)>180,999,Levenshtein($P$1,I134)) -> 12 | O134: =IF(N134="","",VLOOKUP($N134,河合塾!$A$2:$B$4000,2)) ->  | P134: =IF(O134="","",VLOOKUP($N134,河合塾!$A$2:$H$4000,8)) -> 
A135: 133 | B135: 1060305010 | C135: 弘前大 | D135: 教育 | E135: 学校／国語 | F135: 前 | H135: 1 | I135: 弘前大教育学校／国語前 | J135: 0.9047619048 | K135: =IF(ABS(A135-$O$1)>180,999,bigram($P$1,I135)) -> 0.09523809524 | L135: =IF(ABS(A135-$O$1)>180,999,Levenshtein($P$1,I135)) -> 10 | O135: =IF(N135="","",VLOOKUP($N135,河合塾!$A$2:$B$4000,2)) ->  | P135: =IF(O135="","",VLOOKUP($N135,河合塾!$A$2:$H$4000,8)) -> 
A136: 134 | B136: 1060305110 | C136: 弘前大 | D136: 教育 | E136: 学校／社会 | F136: 前 | H136: 1 | I136: 弘前大教育学校／社会前 | J136: 0.9047619048 | K136: =IF(ABS(A136-$O$1)>180,999,bigram($P$1,I136)) -> 0.09523809524 | L136: =IF(ABS(A136-$O$1)>180,999,Levenshtein($P$1,I136)) -> 10 | O136: =IF(N136="","",VLOOKUP($N136,河合塾!$A$2:$B$4000,2)) ->  | P136: =IF(O136="","",VLOOKUP($N136,河合塾!$A$2:$H$4000,8)) -> 
A137: 135 | B137: 1060305210 | C137: 弘前大 | D137: 教育 | E137: 学校／数学 | F137: 前 | H137: 1 | I137: 弘前大教育学校／数学前 | J137: 0.9047619048 | K137: =IF(ABS(A137-$O$1)>180,999,bigram($P$1,I137)) -> 0.09523809524 | L137: =IF(ABS(A137-$O$1)>180,999,Levenshtein($P$1,I137)) -> 10 | O137: =IF(N137="","",VLOOKUP($N137,河合塾!$A$2:$B$4000,2)) ->  | P137: =IF(O137="","",VLOOKUP($N137,河合塾!$A$2:$H$4000,8)) -> 
A138: 136 | B138: 1060305310 | C138: 弘前大 | D138: 教育 | E138: 学校／理科 | F138: 前 | H138: 1 | I138: 弘前大教育学校／理科前 | J138: 0.9047619048 | K138: =IF(ABS(A138-$O$1)>180,999,bigram($P$1,I138)) -> 0.09523809524 | L138: =IF(ABS(A138-$O$1)>180,999,Levenshtein($P$1,I138)) -> 10 | O138: =IF(N138="","",VLOOKUP($N138,河合塾!$A$2:$B$4000,2)) ->  | P138: =IF(O138="","",VLOOKUP($N138,河合塾!$A$2:$H$4000,8)) -> 
A139: 137 | B139: 1060305410 | C139: 弘前大 | D139: 教育 | E139: 学校／音楽 | F139: 前 | H139: 1 | I139: 弘前大教育学校／音楽前 | J139: 0.9047619048 | K139: =IF(ABS(A139-$O$1)>180,999,bigram($P$1,I139)) -> 0.09523809524 | L139: =IF(ABS(A139-$O$1)>180,999,Levenshtein($P$1,I139)) -> 10 | O139: =IF(N139="","",VLOOKUP($N139,河合塾!$A$2:$B$4000,2)) ->  | P139: =IF(O139="","",VLOOKUP($N139,河合塾!$A$2:$H$4000,8)) -> 
A140: 138 | B140: 1060305510 | C140: 弘前大 | D140: 教育 | E140: 学校／美術 | F140: 前 | H140: 1 | I140: 弘前大教育学校／美術前 | J140: 0.9047619048 | K140: =IF(ABS(A140-$O$1)>180,999,bigram($P$1,I140)) -> 0.09523809524 | L140: =IF(ABS(A140-$O$1)>180,999,Levenshtein($P$1,I140)) -> 10 | O140: =IF(N140="","",VLOOKUP($N140,河合塾!$A$2:$B$4000,2)) ->  | P140: =IF(O140="","",VLOOKUP($N140,河合塾!$A$2:$H$4000,8)) -> 
A141: 139 | B141: 1060305610 | C141: 弘前大 | D141: 教育 | E141: 学校／保体 | F141: 前 | H141: 1 | I141: 弘前大教育学校／保体前 | J141: 0.9047619048 | K141: =IF(ABS(A141-$O$1)>180,999,bigram($P$1,I141)) -> 0.09523809524 | L141: =IF(ABS(A141-$O$1)>180,999,Levenshtein($P$1,I141)) -> 10 | O141: =IF(N141="","",VLOOKUP($N141,河合塾!$A$2:$B$4000,2)) ->  | P141: =IF(O141="","",VLOOKUP($N141,河合塾!$A$2:$H$4000,8)) -> 
A142: 140 | B142: 1060305710 | C142: 弘前大 | D142: 教育 | E142: 学校／技術 | F142: 前 | H142: 1 | I142: 弘前大教育学校／技術前 | J142: 0.9047619048 | K142: =IF(ABS(A142-$O$1)>180,999,bigram($P$1,I142)) -> 0.09523809524 | L142: =IF(ABS(A142-$O$1)>180,999,Levenshtein($P$1,I142)) -> 10 | O142: =IF(N142="","",VLOOKUP($N142,河合塾!$A$2:$B$4000,2)) ->  | P142: =IF(O142="","",VLOOKUP($N142,河合塾!$A$2:$H$4000,8)) -> 
A143: 141 | B143: 1060305810 | C143: 弘前大 | D143: 教育 | E143: 学校／家庭 | F143: 前 | H143: 1 | I143: 弘前大教育学校／家庭前 | J143: 0.9047619048 | K143: =IF(ABS(A143-$O$1)>180,999,bigram($P$1,I143)) -> 0.09523809524 | L143: =IF(ABS(A143-$O$1)>180,999,Levenshtein($P$1,I143)) -> 10 | O143: =IF(N143="","",VLOOKUP($N143,河合塾!$A$2:$B$4000,2)) ->  | P143: =IF(O143="","",VLOOKUP($N143,河合塾!$A$2:$H$4000,8)) -> 
A144: 142 | B144: 1060305910 | C144: 弘前大 | D144: 教育 | E144: 学校／英語 | F144: 前 | H144: 1 | I144: 弘前大教育学校／英語前 | J144: 0.9047619048 | K144: =IF(ABS(A144-$O$1)>180,999,bigram($P$1,I144)) -> 0.09523809524 | L144: =IF(ABS(A144-$O$1)>180,999,Levenshtein($P$1,I144)) -> 10 | O144: =IF(N144="","",VLOOKUP($N144,河合塾!$A$2:$B$4000,2)) ->  | P144: =IF(O144="","",VLOOKUP($N144,河合塾!$A$2:$H$4000,8)) -> 
A145: 143 | B145: 1060470710 | C145: 弘前大 | D145: 理工 | E145: 物質創成化 | F145: 前 | H145: 1 | I145: 弘前大理工物質創成化前 | J145: 0.9047619048 | K145: =IF(ABS(A145-$O$1)>180,999,bigram($P$1,I145)) -> 0.09523809524 | L145: =IF(ABS(A145-$O$1)>180,999,Levenshtein($P$1,I145)) -> 10 | O145: =IF(N145="","",VLOOKUP($N145,河合塾!$A$2:$B$4000,2)) ->  | P145: =IF(O145="","",VLOOKUP($N145,河合塾!$A$2:$H$4000,8)) -> 
A146: 144 | B146: 1060470720 | C146: 弘前大 | D146: 理工 | E146: 物質創成化 | F146: 後 | H146: 1 | I146: 弘前大理工物質創成化後 | J146: 1 | K146: =IF(ABS(A146-$O$1)>180,999,bigram($P$1,I146)) -> 0 | L146: =IF(ABS(A146-$O$1)>180,999,Levenshtein($P$1,I146)) -> 11 | O146: =IF(N146="","",VLOOKUP($N146,河合塾!$A$2:$B$4000,2)) ->  | P146: =IF(O146="","",VLOOKUP($N146,河合塾!$A$2:$H$4000,8)) -> 
A147: 145 | B147: 1060470810 | C147: 弘前大 | D147: 理工 | E147: 電子情報工 | F147: 前 | H147: 1 | I147: 弘前大理工電子情報工前 | J147: 0.9047619048 | K147: =IF(ABS(A147-$O$1)>180,999,bigram($P$1,I147)) -> 0.09523809524 | L147: =IF(ABS(A147-$O$1)>180,999,Levenshtein($P$1,I147)) -> 10 | O147: =IF(N147="","",VLOOKUP($N147,河合塾!$A$2:$B$4000,2)) ->  | P147: =IF(O147="","",VLOOKUP($N147,河合塾!$A$2:$H$4000,8)) -> 
A148: 146 | B148: 1060470820 | C148: 弘前大 | D148: 理工 | E148: 電子情報工 | F148: 後 | H148: 1 | I148: 弘前大理工電子情報工後 | J148: 1 | K148: =IF(ABS(A148-$O$1)>180,999,bigram($P$1,I148)) -> 0 | L148: =IF(ABS(A148-$O$1)>180,999,Levenshtein($P$1,I148)) -> 11 | O148: =IF(N148="","",VLOOKUP($N148,河合塾!$A$2:$B$4000,2)) ->  | P148: =IF(O148="","",VLOOKUP($N148,河合塾!$A$2:$H$4000,8)) -> 
A149: 147 | B149: 1060470911 | C149: 弘前大 | D149: 理工 | E149: 数物科学 | F149: 前 | G149: 数学 | H149: 1 | I149: 弘前大理工数物科学数学前 | J149: 0.9090909091 | K149: =IF(ABS(A149-$O$1)>180,999,bigram($P$1,I149)) -> 0.09090909091 | L149: =IF(ABS(A149-$O$1)>180,999,Levenshtein($P$1,I149)) -> 10 | O149: =IF(N149="","",VLOOKUP($N149,河合塾!$A$2:$B$4000,2)) ->  | P149: =IF(O149="","",VLOOKUP($N149,河合塾!$A$2:$H$4000,8)) -> 
A150: 148 | B150: 1060470912 | C150: 弘前大 | D150: 理工 | E150: 数物科学 | F150: 前 | G150: 数理 | H150: 1 | I150: 弘前大理工数物科学数理前 | J150: 0.9090909091 | K150: =IF(ABS(A150-$O$1)>180,999,bigram($P$1,I150)) -> 0.09090909091 | L150: =IF(ABS(A150-$O$1)>180,999,Levenshtein($P$1,I150)) -> 10 | O150: =IF(N150="","",VLOOKUP($N150,河合塾!$A$2:$B$4000,2)) ->  | P150: =IF(O150="","",VLOOKUP($N150,河合塾!$A$2:$H$4000,8)) -> 
A151: 149 | B151: 1060470921 | C151: 弘前大 | D151: 理工 | E151: 数物科学 | F151: 後 | G151: 数学 | H151: 1 | I151: 弘前大理工数物科学数学後 | J151: 1 | K151: =IF(ABS(A151-$O$1)>180,999,bigram($P$1,I151)) -> 0 | L151: =IF(ABS(A151-$O$1)>180,999,Levenshtein($P$1,I151)) -> 11 | O151: =IF(N151="","",VLOOKUP($N151,河合塾!$A$2:$B$4000,2)) ->  | P151: =IF(O151="","",VLOOKUP($N151,河合塾!$A$2:$H$4000,8)) -> 
A152: 150 | B152: 1060470922 | C152: 弘前大 | D152: 理工 | E152: 数物科学 | F152: 後 | G152: 理科 | H152: 1 | I152: 弘前大理工数物科学理科後 | J152: 1 | K152: =IF(ABS(A152-$O$1)>180,999,bigram($P$1,I152)) -> 0 | L152: =IF(ABS(A152-$O$1)>180,999,Levenshtein($P$1,I152)) -> 11 | O152: =IF(N152="","",VLOOKUP($N152,河合塾!$A$2:$B$4000,2)) ->  | P152: =IF(O152="","",VLOOKUP($N152,河合塾!$A$2:$H$4000,8)) -> 
A153: 151 | B153: 1060471010 | C153: 弘前大 | D153: 理工 | E153: 地球環境防災 | F153: 前 | H153: 1 | I153: 弘前大理工地球環境防災前 | J153: 0.9090909091 | K153: =IF(ABS(A153-$O$1)>180,999,bigram($P$1,I153)) -> 0.09090909091 | L153: =IF(ABS(A153-$O$1)>180,999,Levenshtein($P$1,I153)) -> 11 | O153: =IF(N153="","",VLOOKUP($N153,河合塾!$A$2:$B$4000,2)) ->  | P153: =IF(O153="","",VLOOKUP($N153,河合塾!$A$2:$H$4000,8)) -> 
A154: 152 | B154: 1060471020 | C154: 弘前大 | D154: 理工 | E154: 地球環境防災 | F154: 後 | H154: 1 | I154: 弘前大理工地球環境防災後 | J154: 1 | K154: =IF(ABS(A154-$O$1)>180,999,bigram($P$1,I154)) -> 0 | L154: =IF(ABS(A154-$O$1)>180,999,Levenshtein($P$1,I154)) -> 12 | O154: =IF(N154="","",VLOOKUP($N154,河合塾!$A$2:$B$4000,2)) ->  | P154: =IF(O154="","",VLOOKUP($N154,河合塾!$A$2:$H$4000,8)) -> 
A155: 153 | B155: 1060471110 | C155: 弘前大 | D155: 理工 | E155: 機械科学 | F155: 前 | H155: 1 | I155: 弘前大理工機械科学前 | J155: 0.9 | K155: =IF(ABS(A155-$O$1)>180,999,bigram($P$1,I155)) -> 0.1 | L155: =IF(ABS(A155-$O$1)>180,999,Levenshtein($P$1,I155)) -> 9 | O155: =IF(N155="","",VLOOKUP($N155,河合塾!$A$2:$B$4000,2)) ->  | P155: =IF(O155="","",VLOOKUP($N155,河合塾!$A$2:$H$4000,8)) -> 
A156: 154 | B156: 1060471120 | C156: 弘前大 | D156: 理工 | E156: 機械科学 | F156: 後 | H156: 1 | I156: 弘前大理工機械科学後 | J156: 1 | K156: =IF(ABS(A156-$O$1)>180,999,bigram($P$1,I156)) -> 0 | L156: =IF(ABS(A156-$O$1)>180,999,Levenshtein($P$1,I156)) -> 10 | O156: =IF(N156="","",VLOOKUP($N156,河合塾!$A$2:$B$4000,2)) ->  | P156: =IF(O156="","",VLOOKUP($N156,河合塾!$A$2:$H$4000,8)) -> 
A157: 155 | B157: 1060471210 | C157: 弘前大 | D157: 理工 | E157: 自然エネルギ | F157: 前 | H157: 1 | I157: 弘前大理工自然エネルギ前 | J157: 0.9090909091 | K157: =IF(ABS(A157-$O$1)>180,999,bigram($P$1,I157)) -> 0.09090909091 | L157: =IF(ABS(A157-$O$1)>180,999,Levenshtein($P$1,I157)) -> 11 | O157: =IF(N157="","",VLOOKUP($N157,河合塾!$A$2:$B$4000,2)) ->  | P157: =IF(O157="","",VLOOKUP($N157,河合塾!$A$2:$H$4000,8)) -> 
A158: 156 | B158: 1060471220 | C158: 弘前大 | D158: 理工 | E158: 自然エネルギ | F158: 後 | H158: 1 | I158: 弘前大理工自然エネルギ後 | J158: 1 | K158: =IF(ABS(A158-$O$1)>180,999,bigram($P$1,I158)) -> 0 | L158: =IF(ABS(A158-$O$1)>180,999,Levenshtein($P$1,I158)) -> 12 | O158: =IF(N158="","",VLOOKUP($N158,河合塾!$A$2:$B$4000,2)) ->  | P158: =IF(O158="","",VLOOKUP($N158,河合塾!$A$2:$H$4000,8)) -> 
A159: 157 | B159: 1060550111 | C159: 弘前大 | D159: 医 | E159: 医 | F159: 前 | H159: 1 | I159: 弘前大医医前 | J159: 0.5 | K159: =IF(ABS(A159-$O$1)>180,999,bigram($P$1,I159)) -> 0.5 | L159: =IF(ABS(A159-$O$1)>180,999,Levenshtein($P$1,I159)) -> 4 | O159: =IF(N159="","",VLOOKUP($N159,河合塾!$A$2:$B$4000,2)) ->  | P159: =IF(O159="","",VLOOKUP($N159,河合塾!$A$2:$H$4000,8)) -> 
A160: 158 | B160: 1060550112 | C160: 弘前大 | D160: 医 | E160: 医 | F160: 前 | G160: 定着枠 | H160: 1 | I160: 弘前大医医定着枠前 | J160: 0.6842105263 | K160: =IF(ABS(A160-$O$1)>180,999,bigram($P$1,I160)) -> 0.3157894737 | L160: =IF(ABS(A160-$O$1)>180,999,Levenshtein($P$1,I160)) -> 7 | O160: =IF(N160="","",VLOOKUP($N160,河合塾!$A$2:$B$4000,2)) ->  | P160: =IF(O160="","",VLOOKUP($N160,河合塾!$A$2:$H$4000,8)) -> 
A161: 159 | B161: 1060550310 | C161: 弘前大 | D161: 医 | E161: 保健／看護学 | F161: 前 | H161: 1 | I161: 弘前大医保健／看護学前 | J161: 0.8095238095 | K161: =IF(ABS(A161-$O$1)>180,999,bigram($P$1,I161)) -> 0.1904761905 | L161: =IF(ABS(A161-$O$1)>180,999,Levenshtein($P$1,I161)) -> 9 | O161: =IF(N161="","",VLOOKUP($N161,河合塾!$A$2:$B$4000,2)) ->  | P161: =IF(O161="","",VLOOKUP($N161,河合塾!$A$2:$H$4000,8)) -> 
A162: 160 | B162: 1060550410 | C162: 弘前大 | D162: 医 | E162: 保健／放射線 | F162: 前 | H162: 1 | I162: 弘前大医保健／放射線前 | J162: 0.8095238095 | K162: =IF(ABS(A162-$O$1)>180,999,bigram($P$1,I162)) -> 0.1904761905 | L162: =IF(ABS(A162-$O$1)>180,999,Levenshtein($P$1,I162)) -> 9 | O162: =IF(N162="","",VLOOKUP($N162,河合塾!$A$2:$B$4000,2)) ->  | P162: =IF(O162="","",VLOOKUP($N162,河合塾!$A$2:$H$4000,8)) -> 
A163: 161 | B163: 1060550510 | C163: 弘前大 | D163: 医 | E163: 保健／検査技 | F163: 前 | H163: 1 | I163: 弘前大医保健／検査技前 | J163: 0.8095238095 | K163: =IF(ABS(A163-$O$1)>180,999,bigram($P$1,I163)) -> 0.1904761905 | L163: =IF(ABS(A163-$O$1)>180,999,Levenshtein($P$1,I163)) -> 9 | O163: =IF(N163="","",VLOOKUP($N163,河合塾!$A$2:$B$4000,2)) ->  | P163: =IF(O163="","",VLOOKUP($N163,河合塾!$A$2:$H$4000,8)) -> 
A164: 162 | B164: 1060550610 | C164: 弘前大 | D164: 医 | E164: 保健／理学療 | F164: 前 | H164: 1 | I164: 弘前大医保健／理学療前 | J164: 0.8095238095 | K164: =IF(ABS(A164-$O$1)>180,999,bigram($P$1,I164)) -> 0.1904761905 | L164: =IF(ABS(A164-$O$1)>180,999,Levenshtein($P$1,I164)) -> 9 | O164: =IF(N164="","",VLOOKUP($N164,河合塾!$A$2:$B$4000,2)) ->  | P164: =IF(O164="","",VLOOKUP($N164,河合塾!$A$2:$H$4000,8)) -> 
A165: 163 | B165: 1060550710 | C165: 弘前大 | D165: 医 | E165: 保健／作業療 | F165: 前 | H165: 1 | I165: 弘前大医保健／作業療前 | J165: 0.8095238095 | K165: =IF(ABS(A165-$O$1)>180,999,bigram($P$1,I165)) -> 0.1904761905 | L165: =IF(ABS(A165-$O$1)>180,999,Levenshtein($P$1,I165)) -> 9 | O165: =IF(N165="","",VLOOKUP($N165,河合塾!$A$2:$B$4000,2)) ->  | P165: =IF(O165="","",VLOOKUP($N165,河合塾!$A$2:$H$4000,8)) -> 
A166: 164 | B166: 1060740510 | C166: 弘前大 | D166: 農学生命 | E166: 生物 | F166: 前 | H166: 1 | I166: 弘前大農学生命生物前 | J166: 0.9 | K166: =IF(ABS(A166-$O$1)>180,999,bigram($P$1,I166)) -> 0.1 | L166: =IF(ABS(A166-$O$1)>180,999,Levenshtein($P$1,I166)) -> 9 | O166: =IF(N166="","",VLOOKUP($N166,河合塾!$A$2:$B$4000,2)) ->  | P166: =IF(O166="","",VLOOKUP($N166,河合塾!$A$2:$H$4000,8)) -> 
A167: 165 | B167: 1060740520 | C167: 弘前大 | D167: 農学生命 | E167: 生物 | F167: 後 | H167: 1 | I167: 弘前大農学生命生物後 | J167: 1 | K167: =IF(ABS(A167-$O$1)>180,999,bigram($P$1,I167)) -> 0 | L167: =IF(ABS(A167-$O$1)>180,999,Levenshtein($P$1,I167)) -> 10 | O167: =IF(N167="","",VLOOKUP($N167,河合塾!$A$2:$B$4000,2)) ->  | P167: =IF(O167="","",VLOOKUP($N167,河合塾!$A$2:$H$4000,8)) -> 
A168: 166 | B168: 1060740610 | C168: 弘前大 | D168: 農学生命 | E168: 分子生命科学 | F168: 前 | H168: 1 | I168: 弘前大農学生命分子生命科学前 | J168: 0.9166666667 | K168: =IF(ABS(A168-$O$1)>180,999,bigram($P$1,I168)) -> 0.08333333333 | L168: =IF(ABS(A168-$O$1)>180,999,Levenshtein($P$1,I168)) -> 13 | O168: =IF(N168="","",VLOOKUP($N168,河合塾!$A$2:$B$4000,2)) ->  | P168: =IF(O168="","",VLOOKUP($N168,河合塾!$A$2:$H$4000,8)) -> 
A169: 167 | B169: 1060740620 | C169: 弘前大 | D169: 農学生命 | E169: 分子生命科学 | F169: 後 | H169: 1 | I169: 弘前大農学生命分子生命科学後 | J169: 1 | K169: =IF(ABS(A169-$O$1)>180,999,bigram($P$1,I169)) -> 0 | L169: =IF(ABS(A169-$O$1)>180,999,Levenshtein($P$1,I169)) -> 14 | O169: =IF(N169="","",VLOOKUP($N169,河合塾!$A$2:$B$4000,2)) ->  | P169: =IF(O169="","",VLOOKUP($N169,河合塾!$A$2:$H$4000,8)) -> 
A170: 168 | B170: 1060740710 | C170: 弘前大 | D170: 農学生命 | E170: 食料資源 | F170: 前 | H170: 1 | I170: 弘前大農学生命食料資源前 | J170: 0.9090909091 | K170: =IF(ABS(A170-$O$1)>180,999,bigram($P$1,I170)) -> 0.09090909091 | L170: =IF(ABS(A170-$O$1)>180,999,Levenshtein($P$1,I170)) -> 11 | O170: =IF(N170="","",VLOOKUP($N170,河合塾!$A$2:$B$4000,2)) ->  | P170: =IF(O170="","",VLOOKUP($N170,河合塾!$A$2:$H$4000,8)) -> 
A171: 169 | B171: 1060740720 | C171: 弘前大 | D171: 農学生命 | E171: 食料資源 | F171: 後 | H171: 1 | I171: 弘前大農学生命食料資源後 | J171: 1 | K171: =IF(ABS(A171-$O$1)>180,999,bigram($P$1,I171)) -> 0 | L171: =IF(ABS(A171-$O$1)>180,999,Levenshtein($P$1,I171)) -> 12 | O171: =IF(N171="","",VLOOKUP($N171,河合塾!$A$2:$B$4000,2)) ->  | P171: =IF(O171="","",VLOOKUP($N171,河合塾!$A$2:$H$4000,8)) -> 
A172: 170 | B172: 1060740810 | C172: 弘前大 | D172: 農学生命 | E172: 国際園芸農 | F172: 前 | H172: 1 | I172: 弘前大農学生命国際園芸農前 | J172: 0.9130434783 | K172: =IF(ABS(A172-$O$1)>180,999,bigram($P$1,I172)) -> 0.08695652174 | L172: =IF(ABS(A172-$O$1)>180,999,Levenshtein($P$1,I172)) -> 12 | O172: =IF(N172="","",VLOOKUP($N172,河合塾!$A$2:$B$4000,2)) ->  | P172: =IF(O172="","",VLOOKUP($N172,河合塾!$A$2:$H$4000,8)) -> 
A173: 171 | B173: 1060740820 | C173: 弘前大 | D173: 農学生命 | E173: 国際園芸農 | F173: 後 | H173: 1 | I173: 弘前大農学生命国際園芸農後 | J173: 1 | K173: =IF(ABS(A173-$O$1)>180,999,bigram($P$1,I173)) -> 0 | L173: =IF(ABS(A173-$O$1)>180,999,Levenshtein($P$1,I173)) -> 13 | O173: =IF(N173="","",VLOOKUP($N173,河合塾!$A$2:$B$4000,2)) ->  | P173: =IF(O173="","",VLOOKUP($N173,河合塾!$A$2:$H$4000,8)) -> 
A174: 172 | B174: 1060740910 | C174: 弘前大 | D174: 農学生命 | E174: 地域環境工 | F174: 前 | H174: 1 | I174: 弘前大農学生命地域環境工前 | J174: 0.9130434783 | K174: =IF(ABS(A174-$O$1)>180,999,bigram($P$1,I174)) -> 0.08695652174 | L174: =IF(ABS(A174-$O$1)>180,999,Levenshtein($P$1,I174)) -> 12 | O174: =IF(N174="","",VLOOKUP($N174,河合塾!$A$2:$B$4000,2)) ->  | P174: =IF(O174="","",VLOOKUP($N174,河合塾!$A$2:$H$4000,8)) -> 
A175: 173 | B175: 1060740920 | C175: 弘前大 | D175: 農学生命 | E175: 地域環境工 | F175: 後 | H175: 1 | I175: 弘前大農学生命地域環境工後 | J175: 1 | K175: =IF(ABS(A175-$O$1)>180,999,bigram($P$1,I175)) -> 0 | L175: =IF(ABS(A175-$O$1)>180,999,Levenshtein($P$1,I175)) -> 13 | O175: =IF(N175="","",VLOOKUP($N175,河合塾!$A$2:$B$4000,2)) ->  | P175: =IF(O175="","",VLOOKUP($N175,河合塾!$A$2:$H$4000,8)) -> 
A176: 174 | B176: 1065270610 | C176: 岩手大 | D176: 人文社会 | E176: 人間文化 | F176: 前 | H176: 1 | I176: 岩手大人文社会人間文化前 | J176: 0.9090909091 | K176: =IF(ABS(A176-$O$1)>180,999,bigram($P$1,I176)) -> 0.09090909091 | L176: =IF(ABS(A176-$O$1)>180,999,Levenshtein($P$1,I176)) -> 11 | O176: =IF(N176="","",VLOOKUP($N176,河合塾!$A$2:$B$4000,2)) ->  | P176: =IF(O176="","",VLOOKUP($N176,河合塾!$A$2:$H$4000,8)) -> 
A177: 175 | B177: 1065270620 | C177: 岩手大 | D177: 人文社会 | E177: 人間文化 | F177: 後 | H177: 1 | I177: 岩手大人文社会人間文化後 | J177: 1 | K177: =IF(ABS(A177-$O$1)>180,999,bigram($P$1,I177)) -> 0 | L177: =IF(ABS(A177-$O$1)>180,999,Levenshtein($P$1,I177)) -> 12 | O177: =IF(N177="","",VLOOKUP($N177,河合塾!$A$2:$B$4000,2)) ->  | P177: =IF(O177="","",VLOOKUP($N177,河合塾!$A$2:$H$4000,8)) -> 
A178: 176 | B178: 1065270710 | C178: 岩手大 | D178: 人文社会 | E178: 地域政策 | F178: 前 | H178: 1 | I178: 岩手大人文社会地域政策前 | J178: 0.9090909091 | K178: =IF(ABS(A178-$O$1)>180,999,bigram($P$1,I178)) -> 0.09090909091 | L178: =IF(ABS(A178-$O$1)>180,999,Levenshtein($P$1,I178)) -> 11 | O178: =IF(N178="","",VLOOKUP($N178,河合塾!$A$2:$B$4000,2)) ->  | P178: =IF(O178="","",VLOOKUP($N178,河合塾!$A$2:$H$4000,8)) -> 
A179: 177 | B179: 1065270720 | C179: 岩手大 | D179: 人文社会 | E179: 地域政策 | F179: 後 | H179: 1 | I179: 岩手大人文社会地域政策後 | J179: 1 | K179: =IF(ABS(A179-$O$1)>180,999,bigram($P$1,I179)) -> 0 | L179: =IF(ABS(A179-$O$1)>180,999,Levenshtein($P$1,I179)) -> 12 | O179: =IF(N179="","",VLOOKUP($N179,河合塾!$A$2:$B$4000,2)) ->  | P179: =IF(O179="","",VLOOKUP($N179,河合塾!$A$2:$H$4000,8)) -> 
A180: 178 | B180: 1065301510 | C180: 岩手大 | D180: 教育 | E180: 学校／小学校 | F180: 前 | H180: 1 | I180: 岩手大教育学校／小学校前 | J180: 0.9090909091 | K180: =IF(ABS(A180-$O$1)>180,999,bigram($P$1,I180)) -> 0.09090909091 | L180: =IF(ABS(A180-$O$1)>180,999,Levenshtein($P$1,I180)) -> 11 | O180: =IF(N180="","",VLOOKUP($N180,河合塾!$A$2:$B$4000,2)) ->  | P180: =IF(O180="","",VLOOKUP($N180,河合塾!$A$2:$H$4000,8)) -> 
A181: 179 | B181: 1065301520 | C181: 岩手大 | D181: 教育 | E181: 学校／小学校 | F181: 後 | H181: 1 | I181: 岩手大教育学校／小学校後 | J181: 1 | K181: =IF(ABS(A181-$O$1)>180,999,bigram($P$1,I181)) -> 0 | L181: =IF(ABS(A181-$O$1)>180,999,Levenshtein($P$1,I181)) -> 12 | O181: =IF(N181="","",VLOOKUP($N181,河合塾!$A$2:$B$4000,2)) ->  | P181: =IF(O181="","",VLOOKUP($N181,河合塾!$A$2:$H$4000,8)) -> 
A182: 180 | B182: 1065302710 | C182: 岩手大 | D182: 教育 | E182: 学校／特別支 | F182: 前 | H182: 1 | I182: 岩手大教育学校／特別支前 | J182: 0.9090909091 | K182: =IF(ABS(A182-$O$1)>180,999,bigram($P$1,I182)) -> 0.09090909091 | L182: =IF(ABS(A182-$O$1)>180,999,Levenshtein($P$1,I182)) -> 11 | O182: =IF(N182="","",VLOOKUP($N182,河合塾!$A$2:$B$4000,2)) ->  | P182: =IF(O182="","",VLOOKUP($N182,河合塾!$A$2:$H$4000,8)) -> 
A183: 181 | B183: 1065302720 | C183: 岩手大 | D183: 教育 | E183: 学校／特別支 | F183: 後 | H183: 1 | I183: 岩手大教育学校／特別支後 | J183: 1 | K183: =IF(ABS(A183-$O$1)>180,999,bigram($P$1,I183)) -> 0 | L183: =IF(ABS(A183-$O$1)>180,999,Levenshtein($P$1,I183)) -> 12 | O183: =IF(N183="","",VLOOKUP($N183,河合塾!$A$2:$B$4000,2)) ->  | P183: =IF(O183="","",VLOOKUP($N183,河合塾!$A$2:$H$4000,8)) -> 
A184: 182 | B184: 1065304010 | C184: 岩手大 | D184: 教育 | E184: 学校／国語 | F184: 前 | H184: 1 | I184: 岩手大教育学校／国語前 | J184: 999 | K184: =IF(ABS(A184-$O$1)>180,999,bigram($P$1,I184)) -> 999 | L184: =IF(ABS(A184-$O$1)>180,999,Levenshtein($P$1,I184)) -> 999 | O184: =IF(N184="","",VLOOKUP($N184,河合塾!$A$2:$B$4000,2)) ->  | P184: =IF(O184="","",VLOOKUP($N184,河合塾!$A$2:$H$4000,8)) -> 
A185: 183 | B185: 1065304110 | C185: 岩手大 | D185: 教育 | E185: 学校／社会 | F185: 前 | H185: 1 | I185: 岩手大教育学校／社会前 | J185: 999 | K185: =IF(ABS(A185-$O$1)>180,999,bigram($P$1,I185)) -> 999 | L185: =IF(ABS(A185-$O$1)>180,999,Levenshtein($P$1,I185)) -> 999 | O185: =IF(N185="","",VLOOKUP($N185,河合塾!$A$2:$B$4000,2)) ->  | P185: =IF(O185="","",VLOOKUP($N185,河合塾!$A$2:$H$4000,8)) -> 
A186: 184 | B186: 1065304210 | C186: 岩手大 | D186: 教育 | E186: 学校／技術 | F186: 前 | H186: 1 | I186: 岩手大教育学校／技術前 | J186: 999 | K186: =IF(ABS(A186-$O$1)>180,999,bigram($P$1,I186)) -> 999 | L186: =IF(ABS(A186-$O$1)>180,999,Levenshtein($P$1,I186)) -> 999 | O186: =IF(N186="","",VLOOKUP($N186,河合塾!$A$2:$B$4000,2)) ->  | P186: =IF(O186="","",VLOOKUP($N186,河合塾!$A$2:$H$4000,8)) -> 
A187: 185 | B187: 1065304310 | C187: 岩手大 | D187: 教育 | E187: 学校／家庭 | F187: 前 | H187: 1 | I187: 岩手大教育学校／家庭前 | J187: 999 | K187: =IF(ABS(A187-$O$1)>180,999,bigram($P$1,I187)) -> 999 | L187: =IF(ABS(A187-$O$1)>180,999,Levenshtein($P$1,I187)) -> 999 | O187: =IF(N187="","",VLOOKUP($N187,河合塾!$A$2:$B$4000,2)) ->  | P187: =IF(O187="","",VLOOKUP($N187,河合塾!$A$2:$H$4000,8)) -> 
A188: 186 | B188: 1065304410 | C188: 岩手大 | D188: 教育 | E188: 学校／英語 | F188: 前 | H188: 1 | I188: 岩手大教育学校／英語前 | J188: 999 | K188: =IF(ABS(A188-$O$1)>180,999,bigram($P$1,I188)) -> 999 | L188: =IF(ABS(A188-$O$1)>180,999,Levenshtein($P$1,I188)) -> 999 | O188: =IF(N188="","",VLOOKUP($N188,河合塾!$A$2:$B$4000,2)) ->  | P188: =IF(O188="","",VLOOKUP($N188,河合塾!$A$2:$H$4000,8)) -> 
A189: 187 | B189: 1065304510 | C189: 岩手大 | D189: 教育 | E189: 学校／音楽 | F189: 前 | H189: 1 | I189: 岩手大教育学校／音楽前 | J189: 999 | K189: =IF(ABS(A189-$O$1)>180,999,bigram($P$1,I189)) -> 999 | L189: =IF(ABS(A189-$O$1)>180,999,Levenshtein($P$1,I189)) -> 999 | O189: =IF(N189="","",VLOOKUP($N189,河合塾!$A$2:$B$4000,2)) ->  | P189: =IF(O189="","",VLOOKUP($N189,河合塾!$A$2:$H$4000,8)) -> 
A190: 188 | B190: 1065304610 | C190: 岩手大 | D190: 教育 | E190: 学校／美術 | F190: 前 | H190: 1 | I190: 岩手大教育学校／美術前 | J190: 999 | K190: =IF(ABS(A190-$O$1)>180,999,bigram($P$1,I190)) -> 999 | L190: =IF(ABS(A190-$O$1)>180,999,Levenshtein($P$1,I190)) -> 999 | O190: =IF(N190="","",VLOOKUP($N190,河合塾!$A$2:$B$4000,2)) ->  | P190: =IF(O190="","",VLOOKUP($N190,河合塾!$A$2:$H$4000,8)) -> 
A191: 189 | B191: 1065304710 | C191: 岩手大 | D191: 教育 | E191: 学校／保健体 | F191: 前 | H191: 1 | I191: 岩手大教育学校／保健体前 | J191: 999 | K191: =IF(ABS(A191-$O$1)>180,999,bigram($P$1,I191)) -> 999 | L191: =IF(ABS(A191-$O$1)>180,999,Levenshtein($P$1,I191)) -> 999 | O191: =IF(N191="","",VLOOKUP($N191,河合塾!$A$2:$B$4000,2)) ->  | P191: =IF(O191="","",VLOOKUP($N191,河合塾!$A$2:$H$4000,8)) -> 
A192: 190 | B192: 1065304810 | C192: 岩手大 | D192: 教育 | E192: 学校／数学 | F192: 前 | H192: 1 | I192: 岩手大教育学校／数学前 | J192: 999 | K192: =IF(ABS(A192-$O$1)>180,999,bigram($P$1,I192)) -> 999 | L192: =IF(ABS(A192-$O$1)>180,999,Levenshtein($P$1,I192)) -> 999 | O192: =IF(N192="","",VLOOKUP($N192,河合塾!$A$2:$B$4000,2)) ->  | P192: =IF(O192="","",VLOOKUP($N192,河合塾!$A$2:$H$4000,8)) -> 
A193: 191 | B193: 1065304910 | C193: 岩手大 | D193: 教育 | E193: 学校／理科 | F193: 前 | H193: 1 | I193: 岩手大教育学校／理科前 | J193: 999 | K193: =IF(ABS(A193-$O$1)>180,999,bigram($P$1,I193)) -> 999 | L193: =IF(ABS(A193-$O$1)>180,999,Levenshtein($P$1,I193)) -> 999 | O193: =IF(N193="","",VLOOKUP($N193,河合塾!$A$2:$B$4000,2)) ->  | P193: =IF(O193="","",VLOOKUP($N193,河合塾!$A$2:$H$4000,8)) -> 
A194: 192 | B194: 1065470410 | C194: 岩手大 | D194: 理工 | E194: 化学／化学 | F194: 前 | H194: 1 | I194: 岩手大理工化学／化学前 | J194: 999 | K194: =IF(ABS(A194-$O$1)>180,999,bigram($P$1,I194)) -> 999 | L194: =IF(ABS(A194-$O$1)>180,999,Levenshtein($P$1,I194)) -> 999 | O194: =IF(N194="","",VLOOKUP($N194,河合塾!$A$2:$B$4000,2)) ->  | P194: =IF(O194="","",VLOOKUP($N194,河合塾!$A$2:$H$4000,8)) -> 
A195: 193 | B195: 1065470420 | C195: 岩手大 | D195: 理工 | E195: 化学／化学 | F195: 後 | H195: 1 | I195: 岩手大理工化学／化学後 | J195: 999 | K195: =IF(ABS(A195-$O$1)>180,999,bigram($P$1,I195)) -> 999 | L195: =IF(ABS(A195-$O$1)>180,999,Levenshtein($P$1,I195)) -> 999 | O195: =IF(N195="","",VLOOKUP($N195,河合塾!$A$2:$B$4000,2)) ->  | P195: =IF(O195="","",VLOOKUP($N195,河合塾!$A$2:$H$4000,8)) -> 
A196: 194 | B196: 1065470510 | C196: 岩手大 | D196: 理工 | E196: 化学／生命 | F196: 前 | H196: 1 | I196: =C196&D196&E196&G196&F196 -> 岩手大理工化学／生命前 | J196: =IF(ABS(A196-$O$1)>180,999,1-K196) -> 999 | K196: =IF(ABS(A196-$O$1)>180,999,bigram($P$1,I196)) -> 999 | L196: =IF(ABS(A196-$O$1)>180,999,Levenshtein($P$1,I196)) -> 999 | O196: =IF(N196="","",VLOOKUP($N196,河合塾!$A$2:$B$4000,2)) ->  | P196: =IF(O196="","",VLOOKUP($N196,河合塾!$A$2:$H$4000,8)) -> 
A197: 195 | B197: 1065470520 | C197: 岩手大 | D197: 理工 | E197: 化学／生命 | F197: 後 | H197: 1 | I197: 岩手大理工化学／生命後 | J197: 999 | K197: =IF(ABS(A197-$O$1)>180,999,bigram($P$1,I197)) -> 999 | L197: =IF(ABS(A197-$O$1)>180,999,Levenshtein($P$1,I197)) -> 999 | O197: =IF(N197="","",VLOOKUP($N197,河合塾!$A$2:$B$4000,2)) ->  | P197: =IF(O197="","",VLOOKUP($N197,河合塾!$A$2:$H$4000,8)) -> 
A198: 196 | B198: 1065470610 | C198: 岩手大 | D198: 理工 | E198: 物理／数理物 | F198: 前 | H198: 1 | I198: 岩手大理工物理／数理物前 | J198: 999 | K198: =IF(ABS(A198-$O$1)>180,999,bigram($P$1,I198)) -> 999 | L198: =IF(ABS(A198-$O$1)>180,999,Levenshtein($P$1,I198)) -> 999 | O198: =IF(N198="","",VLOOKUP($N198,河合塾!$A$2:$B$4000,2)) ->  | P198: =IF(O198="","",VLOOKUP($N198,河合塾!$A$2:$H$4000,8)) -> 
A199: 197 | B199: 1065470620 | C199: 岩手大 | D199: 理工 | E199: 物理／数理物 | F199: 後 | H199: 1 | I199: 岩手大理工物理／数理物後 | J199: 999 | K199: =IF(ABS(A199-$O$1)>180,999,bigram($P$1,I199)) -> 999 | L199: =IF(ABS(A199-$O$1)>180,999,Levenshtein($P$1,I199)) -> 999 | O199: =IF(N199="","",VLOOKUP($N199,河合塾!$A$2:$B$4000,2)) ->  | P199: =IF(O199="","",VLOOKUP($N199,河合塾!$A$2:$H$4000,8)) -> 
A200: 198 | B200: 1065470710 | C200: 岩手大 | D200: 理工 | E200: 物理／マテリ | F200: 前 | H200: 1 | I200: 岩手大理工物理／マテリ前 | J200: 999 | K200: =IF(ABS(A200-$O$1)>180,999,bigram($P$1,I200)) -> 999 | L200: =IF(ABS(A200-$O$1)>180,999,Levenshtein($P$1,I200)) -> 999 | O200: =IF(N200="","",VLOOKUP($N200,河合塾!$A$2:$B$4000,2)) ->  | P200: =IF(O200="","",VLOOKUP($N200,河合塾!$A$2:$H$4000,8)) -> 
... 3376 more rows

Sheet Sheet1
A2: 1 | B2: 1005600101 | C2: 旭川医科 | D2: 医 | E2: 医 | G2: 1 | H2: 1005550110 | I2: 旭川医大 | J2: 医 | K2: 医 | L2: 前
A3: 2 | B3: 1005600102 | C3: 旭川医科 | D3: 医 | E3: 医 | G3: 2 | H3: 1005550120 | I3: 旭川医大 | J3: 医 | K3: 医 | L3: 後
A4: 3 | B4: 1005600201 | C4: 旭川医科 | D4: 医 | E4: 看護 | G4: 3 | H4: 1005550210 | I4: 旭川医大 | J4: 医 | K4: 看護 | L4: 前
A5: 4 | B5: 1005600202 | C5: 旭川医科 | D5: 医 | E5: 看護 | G5: 4 | H5: 1005550220 | I5: 旭川医大 | J5: 医 | K5: 看護 | L5: 後
A6: 5 | B6: 1010180001 | C6: 小樽商科 | D6: 商（昼間） | G6: 5 | H6: 1010200010 | I6: 小樽商大 | J6: 商 | L6: 前
A7: 6 | B7: 1010180002 | C7: 小樽商科 | D7: 商（昼間） | G7: 6 | H7: 1010200020 | I7: 小樽商大 | J7: 商 | L7: 後
A8: 7 | B8: 1010270001 | C8: 小樽商科 | D8: 商（夜間主） | G8: 7 | H8: 1010240010 | I8: 小樽商大 | J8: 商夜 | L8: 前
A9: 8 | B9: 1015500101 | C9: 帯広畜産 | D9: 畜産 | E9: 共同獣医学 | G9: 8 | H9: 1015740510 | I9: 帯広畜産大 | J9: 畜産 | K9: 畜産科学 | L9: 前
A10: 9 | B10: 1015500102 | C10: 帯広畜産 | D10: 畜産 | E10: 共同獣医学 | G10: 9 | H10: 1015740520 | I10: 帯広畜産大 | J10: 畜産 | K10: 畜産科学 | L10: 後
A11: 10 | B11: 1015500501 | C11: 帯広畜産 | D11: 畜産 | E11: 畜産科学 | G11: 10 | H11: 1015740610 | I11: 帯広畜産大 | J11: 畜産 | K11: 共同獣医学 | L11: 前
A12: 11 | B12: 1015500502 | C12: 帯広畜産 | D12: 畜産 | E12: 畜産科学 | G12: 11 | H12: 1015740620 | I12: 帯広畜産大 | J12: 畜産 | K12: 共同獣医学 | L12: 後
A13: 12 | B13: 1020413401 | C13: 北見工業 | D13: 工 | E13: 地球環境工 | G13: 12 | H13: 1020461010 | I13: 北見工大 | J13: 工 | K13: 地球環境工 | L13: 前
A14: 13 | B14: 1020413402 | C14: 北見工業 | D14: 工 | E14: 地球環境工 | G14: 13 | H14: 1020461020 | I14: 北見工大 | J14: 工 | K14: 地球環境工 | L14: 後
A15: 14 | B15: 1020413501 | C15: 北見工業 | D15: 工 | E15: 地域未来デザイン工 | G15: 14 | H15: 1020461110 | I15: 北見工大 | J15: 工 | K15: 地域未来デザ | L15: 前
A16: 15 | B16: 1020413502 | C16: 北見工業 | D16: 工 | E16: 地域未来デザイン工 | G16: 15 | H16: 1020461120 | I16: 北見工大 | J16: 工 | K16: 地域未来デザ | L16: 後
A17: 16 | B17: 1025010101 | C17: 北海道 | D17: 文 | E17: 人文科学 | G17: 16 | H17: 1025010110 | I17: 北海道大 | J17: 文 | K17: 人文科学 | L17: 前
A18: 17 | B18: 1025010102 | C18: 北海道 | D18: 文 | E18: 人文科学 | G18: 17 | H18: 1025010120 | I18: 北海道大 | J18: 文 | K18: 人文科学 | L18: 後
A19: 18 | B19: 1025020101 | C19: 北海道 | D19: 教育 | E19: 教育 | G19: 18 | H19: 1025120110 | I19: 北海道大 | J19: 法 | K19: 法学 | L19: 前
A20: 19 | B20: 1025020102 | C20: 北海道 | D20: 教育 | E20: 教育 | G20: 19 | H20: 1025120120 | I20: 北海道大 | J20: 法 | K20: 法学 | L20: 後
A21: 20 | B21: 1025130101 | C21: 北海道 | D21: 法 | E21: 法学 | G21: 20 | H21: 1025180010 | I21: 北海道大 | J21: 経済 | L21: 前
A22: 21 | B22: 1025130102 | C22: 北海道 | D22: 法 | E22: 法学 | G22: 21 | H22: 1025180020 | I22: 北海道大 | J22: 経済 | L22: 後
A23: 22 | B23: 1025160001 | C23: 北海道 | D23: 経済 | G23: 22 | H23: 1025300110 | I23: 北海道大 | J23: 教育 | K23: 教育 | L23: 前
A24: 23 | B24: 1025160002 | C24: 北海道 | D24: 経済 | G24: 23 | H24: 1025300120 | I24: 北海道大 | J24: 教育 | K24: 教育 | L24: 後
A25: 24 | B25: 1025400101 | C25: 北海道 | D25: 理 | E25: 数学 | G25: 24 | H25: 1025420120 | I25: 北海道大 | J25: 理 | K25: 化学 | L25: 後
A26: 25 | B26: 1025400201 | C26: 北海道 | D26: 理 | E26: 物理 | G26: 25 | H26: 1025420320 | I26: 北海道大 | J26: 理 | K26: 数学 | L26: 後
A27: 26 | B27: 1025400301 | C27: 北海道 | D27: 理 | E27: 化学 | G27: 26 | H27: 1025420720 | I27: 北海道大 | J27: 理 | K27: 地球惑星科学 | L27: 後
A28: 27 | B28: 1025400501 | C28: 北海道 | D28: 理 | E28: 地球惑星科学 | G28: 27 | H28: 1025420820 | I28: 北海道大 | J28: 理 | K28: 物理 | L28: 後
A29: 28 | B29: 1025403701 | C29: 北海道 | D29: 理 | E29: 生物－生物学 | G29: 28 | H29: 1025421320 | I29: 北海道大 | J29: 理 | K29: 生物／生物学 | L29: 後
A30: 29 | B30: 1025403801 | C30: 北海道 | D30: 理 | E30: 生物－高分子機能学 | G30: 29 | H30: 1025421420 | I30: 北海道大 | J30: 理 | K30: 生物／高分子 | L30: 後
A31: 30 | B31: 1025411302 | C31: 北海道 | D31: 工 | E31: 応用理工系 | G31: 30 | H31: 1025461120 | I31: 北海道大 | J31: 工 | K31: 環境社会工 | L31: 後
A32: 31 | B32: 1025411402 | C32: 北海道 | D32: 工 | E32: 情報エレクトロニクス | G32: 31 | H32: 1025461220 | I32: 北海道大 | J32: 工 | K32: 情報エレクト | L32: 後
A33: 32 | B33: 1025411502 | C33: 北海道 | D33: 工 | E33: 機械知能工 | G33: 32 | H33: 1025461820 | I33: 北海道大 | J33: 工 | K33: 応用理工系 | L33: 後
A34: 33 | B34: 1025411602 | C34: 北海道 | D34: 工 | E34: 環境社会工 | G34: 33 | H34: 1025461920 | I34: 北海道大 | J34: 工 | K34: 機械知能工 | L34: 後
A35: 34 | B35: 1025480002 | C35: 北海道 | D35: 農 | G35: 34 | H35: 1025550110 | I35: 北海道大 | J35: 医 | K35: 医 | L35: 前
A36: 35 | B36: 1025490101 | C36: 北海道 | D36: 獣医 | E36: 共同獣医学 | G36: 35 | H36: 1025550310 | I36: 北海道大 | J36: 医 | K36: 保健／看護学 | L36: 前
A37: 36 | B37: 1025490102 | C37: 北海道 | D37: 獣医 | E37: 共同獣医学 | G37: 36 | H37: 1025550410 | I37: 北海道大 | J37: 医 | K37: 保健／放射線 | L37: 前
A38: 37 | B38: 1025510001 | C38: 北海道 | D38: 水産 | G38: 37 | H38: 1025550420 | I38: 北海道大 | J38: 医 | K38: 保健／放射線 | L38: 後
A39: 38 | B39: 1025510002 | C39: 北海道 | D39: 水産 | G39: 38 | H39: 1025550510 | I39: 北海道大 | J39: 医 | K39: 保健／検査技 | L39: 前
A40: 39 | B40: 1025600101 | C40: 北海道 | D40: 医 | E40: 医 | G40: 39 | H40: 1025550520 | I40: 北海道大 | J40: 医 | K40: 保健／検査技 | L40: 後
A41: 40 | B41: 1025603101 | C41: 北海道 | D41: 医 | E41: 保健－看護学 | G41: 40 | H41: 1025550610 | I41: 北海道大 | J41: 医 | K41: 保健／理学療 | L41: 前
A42: 41 | B42: 1025603201 | C42: 北海道 | D42: 医 | E42: 保健－放射線技術科学 | G42: 41 | H42: 1025550620 | I42: 北海道大 | J42: 医 | K42: 保健／理学療 | L42: 後
A43: 42 | B43: 1025603202 | C43: 北海道 | D43: 医 | E43: 保健－放射線技術科学 | G43: 42 | H43: 1025550710 | I43: 北海道大 | J43: 医 | K43: 保健／作業療 | L43: 前
A44: 43 | B44: 1025603301 | C44: 北海道 | D44: 医 | E44: 保健－検査技術科学 | G44: 43 | H44: 1025580110 | I44: 北海道大 | J44: 歯 | K44: 歯 | L44: 前
A45: 44 | B45: 1025603302 | C45: 北海道 | D45: 医 | E45: 保健－検査技術科学 | G45: 44 | H45: 1025580120 | I45: 北海道大 | J45: 歯 | K45: 歯 | L45: 後
A46: 45 | B46: 1025603401 | C46: 北海道 | D46: 医 | E46: 保健－理学療法学 | G46: 45 | H46: 1025610020 | I46: 北海道大 | J46: 薬 | L46: 後
A47: 46 | B47: 1025603402 | C47: 北海道 | D47: 医 | E47: 保健－理学療法学 | G47: 46 | H47: 1025720020 | I47: 北海道大 | J47: 農 | L47: 後
A48: 47 | B48: 1025603501 | C48: 北海道 | D48: 医 | E48: 保健－作業療法学 | G48: 47 | H48: 1025730010 | I48: 北海道大 | J48: 水産 | L48: 前
A49: 48 | B49: 1025610101 | C49: 北海道 | D49: 歯 | E49: 歯 | G49: 48 | H49: 1025730020 | I49: 北海道大 | J49: 水産 | L49: 後
A50: 49 | B50: 1025610102 | C50: 北海道 | D50: 歯 | E50: 歯 | G50: 49 | H50: 1025740210 | I50: 北海道大 | J50: 獣医 | K50: 共同獣医学 | L50: 前
A51: 50 | B51: 1025620002 | C51: 北海道 | D51: 薬 | G51: 50 | H51: 1025740220 | I51: 北海道大 | J51: 獣医 | K51: 共同獣医学 | L51: 後
A52: 51 | B52: 1025800001 | C52: 北海道 | D52: 総合入試文系 | G52: 51 | H52: 1025910010 | I52: 北海道大 | J52: 総合文系 | L52: 前
A53: 52 | B53: 1025810001 | C53: 北海道 | D53: 総合入試理系 | E53: 数学重点 | G53: 52 | H53: 1025920011 | I53: 北海道大 | J53: 総合理系 | L53: 前
A54: 53 | B54: 1025810002 | C54: 北海道 | D54: 総合入試理系 | E54: 物理重点 | G54: 53 | H54: 1025920012 | I54: 北海道大 | J54: 総合理系 | L54: 前
A55: 54 | B55: 1025810003 | C55: 北海道 | D55: 総合入試理系 | E55: 化学重点 | G55: 54 | H55: 1025920013 | I55: 北海道大 | J55: 総合理系 | L55: 前
A56: 55 | B56: 1025810004 | C56: 北海道 | D56: 総合入試理系 | E56: 生物重点 | G56: 55 | H56: 1025920014 | I56: 北海道大 | J56: 総合理系 | L56: 前
A57: 56 | B57: 1025810005 | C57: 北海道 | D57: 総合入試理系 | E57: 総合科学 | G57: 56 | H57: 1025920015 | I57: 北海道大 | J57: 総合理系 | L57: 前
A58: 57 | B58: 1030323401 | C58: 北海道教育 | D58: 教育札幌校 | E58: 教員－特別支援教育 | G58: 57 | H58: 1030301710 | I58: 北教大旭川校 | J58: 教育 | K58: 教員／教育発 | L58: 前
A59: 58 | B59: 1030323402 | C59: 北海道教育 | D59: 教育札幌校 | E59: 教員－特別支援教育 | G59: 58 | H59: 1030301720 | I59: 北教大旭川校 | J59: 教育 | K59: 教員／教育発 | L59: 後
A60: 59 | B60: 1030323701 | C60: 北海道教育 | D60: 教育札幌校 | E60: 教員－養護教育 | G60: 59 | H60: 1030301910 | I60: 北教大旭川校 | J60: 教育 | K60: 教員／国語 | L60: 前
A61: 60 | B61: 1030323702 | C61: 北海道教育 | D61: 教育札幌校 | E61: 教員－養護教育 | G61: 60 | H61: 1030301920 | I61: 北教大旭川校 | J61: 教育 | K61: 教員／国語 | L61: 後
A62: 61 | B62: 1030323801 | C62: 北海道教育 | D62: 教育札幌校 | E62: 教員－学校教育 | G62: 61 | H62: 1030302010 | I62: 北教大旭川校 | J62: 教育 | K62: 教員／英語 | L62: 前
A63: 62 | B63: 1030323802 | C63: 北海道教育 | D63: 教育札幌校 | E63: 教員－学校教育 | G63: 62 | H63: 1030302020 | I63: 北教大旭川校 | J63: 教育 | K63: 教員／英語 | L63: 後
A64: 63 | B64: 1030323901 | C64: 北海道教育 | D64: 教育札幌校 | E64: 教員－言語・社会教育 | G64: 63 | H64: 1030302710 | I64: 北教大旭川校 | J64: 教育 | K64: 教員／社会 | L64: 前
A65: 64 | B65: 1030323902 | C65: 北海道教育 | D65: 教育札幌校 | E65: 教員－言語・社会教育 | G65: 64 | H65: 1030302720 | I65: 北教大旭川校 | J65: 教育 | K65: 教員／社会 | L65: 後
A66: 65 | B66: 1030324001 | C66: 北海道教育 | D66: 教育札幌校 | E66: 教員－理数教育 | G66: 65 | H66: 1030302810 | I66: 北教大旭川校 | J66: 教育 | K66: 教員／数学 | L66: 前
A67: 66 | B67: 1030324002 | C67: 北海道教育 | D67: 教育札幌校 | E67: 教員－理数教育 | G67: 66 | H67: 1030302820 | I67: 北教大旭川校 | J67: 教育 | K67: 教員／数学 | L67: 後
A68: 67 | B68: 1030324101 | C68: 北海道教育 | D68: 教育札幌校 | E68: 教員－生活創造教育 | G68: 67 | H68: 1030302910 | I68: 北教大旭川校 | J68: 教育 | K68: 教員／理科 | L68: 前
A69: 68 | B69: 1030324102 | C69: 北海道教育 | D69: 教育札幌校 | E69: 教員－生活創造教育 | G69: 68 | H69: 1030302920 | I69: 北教大旭川校 | J69: 教育 | K69: 教員／理科 | L69: 後
A70: 69 | B70: 1030324201 | C70: 北海道教育 | D70: 教育札幌校 | E70: 教員－図画工作・美術教育 | G70: 69 | H70: 1030303010 | I70: 北教大旭川校 | J70: 教育 | K70: 教員／生活技 | L70: 前
A71: 70 | B71: 1030324301 | C71: 北海道教育 | D71: 教育札幌校 | E71: 教員－音楽教育 | G71: 70 | H71: 1030303020 | I71: 北教大旭川校 | J71: 教育 | K71: 教員／生活技 | L71: 後
A72: 71 | B72: 1030324401 | C72: 北海道教育 | D72: 教育札幌校 | E72: 教員－保健体育教育 | G72: 71 | H72: 1030303210 | I72: 北教大旭川校 | J72: 教育 | K72: 教員／音楽 | L72: 前
A73: 72 | B73: 1030330801 | C73: 北海道教育 | D73: 教育函館校 | E73: 国際－国際協働 | G73: 72 | H73: 1030303310 | I73: 北教大旭川校 | J73: 教育 | K73: 教員／美術 | L73: 前
A74: 73 | B74: 1030330802 | C74: 北海道教育 | D74: 教育函館校 | E74: 国際－国際協働 | G74: 73 | H74: 1030303410 | I74: 北教大旭川校 | J74: 教育 | K74: 教員／保健体 | L74: 前
A75: 74 | B75: 1030330901 | C75: 北海道教育 | D75: 教育函館校 | E75: 国際－地域政策 | G75: 74 | H75: 1035302110 | I75: 北教大岩見沢校 | J75: 教育 | K75: 芸術／芸術ス | L75: 前
A76: 75 | B76: 1030330902 | C76: 北海道教育 | D76: 教育函館校 | E76: 国際－地域政策 | G76: 75 | H76: 1035302120 | I76: 北教大岩見沢校 | J76: 教育 | K76: 芸術／芸術ス | L76: 後
A77: 76 | B77: 1030331001 | C77: 北海道教育 | D77: 教育函館校 | E77: 国際－地域環境科学 | G77: 76 | H77: 1035302210 | I77: 北教大岩見沢校 | J77: 教育 | K77: 芸術／声楽 | L77: 前
A78: 77 | B78: 1030331002 | C78: 北海道教育 | D78: 教育函館校 | E78: 国際－地域環境科学 | G78: 77 | H78: 1035302310 | I78: 北教大岩見沢校 | J78: 教育 | K78: 芸術／鍵・作 | L78: 前
A79: 78 | B79: 1030331101 | C79: 北海道教育 | D79: 教育函館校 | E79: 国際－地域教育 | G79: 78 | H79: 1035302410 | I79: 北教大岩見沢校 | J79: 教育 | K79: 芸術／管弦打 | L79: 前
A80: 79 | B80: 1030331102 | C80: 北海道教育 | D80: 教育函館校 | E80: 国際－地域教育 | G80: 79 | H80: 1035302510 | I80: 北教大岩見沢校 | J80: 教育 | K80: 芸術／音楽教 | L80: 前
A81: 80 | B81: 1030343701 | C81: 北海道教育 | D81: 教育旭川校 | E81: 教員－教育発達 | G81: 80 | H81: 1035302610 | I81: 北教大岩見沢校 | J81: 教育 | K81: 芸術／美術デ | L81: 前
A82: 81 | B82: 1030343702 | C82: 北海道教育 | D82: 教育旭川校 | E82: 教員－教育発達 | G82: 81 | H82: 1035302620 | I82: 北教大岩見沢校 | J82: 教育 | K82: 芸術／美術デ | L82: 後
A83: 82 | B83: 1030343801 | C83: 北海道教育 | D83: 教育旭川校 | E83: 教員－国語 | G83: 82 | H83: 1035302710 | I83: 北教大岩見沢校 | J83: 教育 | K83: 芸術／書画工 | L83: 前
A84: 83 | B84: 1030343802 | C84: 北海道教育 | D84: 教育旭川校 | E84: 教員－国語 | G84: 83 | H84: 1035302720 | I84: 北教大岩見沢校 | J84: 教育 | K84: 芸術／書画工 | L84: 後
A85: 84 | B85: 1030343901 | C85: 北海道教育 | D85: 教育旭川校 | E85: 教員－英語 | G85: 84 | H85: 1035302810 | I85: 北教大岩見沢校 | J85: 教育 | K85: 芸術／メディ | L85: 前
A86: 85 | B86: 1030343902 | C86: 北海道教育 | D86: 教育旭川校 | E86: 教員－英語 | G86: 85 | H86: 1035302820 | I86: 北教大岩見沢校 | J86: 教育 | K86: 芸術／メディ | L86: 後
A87: 86 | B87: 1030344001 | C87: 北海道教育 | D87: 教育旭川校 | E87: 教員－社会科 | G87: 86 | H87: 1035302910 | I87: 北教大岩見沢校 | J87: 教育 | K87: 芸術／美術文 | L87: 前
A88: 87 | B88: 1030344002 | C88: 北海道教育 | D88: 教育旭川校 | E88: 教員－社会科 | G88: 87 | H88: 1035302920 | I88: 北教大岩見沢校 | J88: 教育 | K88: 芸術／美術文 | L88: 後
A89: 88 | B89: 1030344101 | C89: 北海道教育 | D89: 教育旭川校 | E89: 教員－数学 | G89: 88 | H89: 1035303010 | I89: 北教大岩見沢校 | J89: 教育 | K89: 芸術／スポー | L89: 前
A90: 89 | B90: 1030344102 | C90: 北海道教育 | D90: 教育旭川校 | E90: 教員－数学 | G90: 89 | H90: 1035303020 | I90: 北教大岩見沢校 | J90: 教育 | K90: 芸術／スポー | L90: 後
A91: 90 | B91: 1030344201 | C91: 北海道教育 | D91: 教育旭川校 | E91: 教員－理科 | G91: 90 | H91: 1035303110 | I91: 北教大岩見沢校 | J91: 教育 | K91: 芸術／アウト | L91: 前
A92: 91 | B92: 1030344202 | C92: 北海道教育 | D92: 教育旭川校 | E92: 教員－理科 | G92: 91 | H92: 1035303120 | I92: 北教大岩見沢校 | J92: 教育 | K92: 芸術／アウト | L92: 後
A93: 92 | B93: 1030344301 | C93: 北海道教育 | D93: 教育旭川校 | E93: 教員－生活・技術 | G93: 92 | H93: 1035303220 | I93: 北教大岩見沢校 | J93: 教育 | K93: 芸術／音楽文 | L93: 後
A94: 93 | B94: 1030344302 | C94: 北海道教育 | D94: 教育旭川校 | E94: 教員－生活・技術 | G94: 93 | H94: 1040301910 | I94: 北教大釧路校 | J94: 教育 | K94: 教員養成 | L94: 前
A95: 94 | B95: 1030344403 | C95: 北海道教育 | D95: 教育旭川校 | E95: 教員－保健体育 | G95: 94 | H95: 1040301920 | I95: 北教大釧路校 | J95: 教育 | K95: 教員養成 | L95: 後
A96: 95 | B96: 1030344405 | C96: 北海道教育 | D96: 教育旭川校 | E96: 教員－芸術（音楽） | G96: 95 | H96: 1045302010 | I96: 北教大札幌校 | J96: 教育 | K96: 教員／特別支 | L96: 前
A97: 96 | B97: 1030344406 | C97: 北海道教育 | D97: 教育旭川校 | E97: 教員－芸術（美術） | G97: 96 | H97: 1045302020 | I97: 北教大札幌校 | J97: 教育 | K97: 教員／特別支 | L97: 後
A98: 97 | B98: 1030354001 | C98: 北海道教育 | D98: 教育釧路校 | E98: 教員－地域学校教育実践 | G98: 97 | H98: 1045302110 | I98: 北教大札幌校 | J98: 教育 | K98: 教員／養護教 | L98: 前
A99: 98 | B99: 1030354002 | C99: 北海道教育 | D99: 教育釧路校 | E99: 教員－地域学校教育実践 | G99: 98 | H99: 1045302120 | I99: 北教大札幌校 | J99: 教育 | K99: 教員／養護教 | L99: 後
A100: 99 | B100: 1030360601 | C100: 北海道教育 | D100: 教育岩見沢校 | E100: 芸術－芸術・スポーツビジネス | G100: 99 | H100: 1045302410 | I100: 北教大札幌校 | J100: 教育 | K100: 教員／学校教 | L100: 前
A101: 100 | B101: 1030360602 | C101: 北海道教育 | D101: 教育岩見沢校 | E101: 芸術－芸術・スポーツビジネス | G101: 100 | H101: 1045302420 | I101: 北教大札幌校 | J101: 教育 | K101: 教員／学校教 | L101: 後
A102: 101 | B102: 1030360701 | C102: 北海道教育 | D102: 教育岩見沢校 | E102: 芸術－音楽文化 | G102: 101 | H102: 1045302510 | I102: 北教大札幌校 | J102: 教育 | K102: 教員／言語社 | L102: 前
A103: 102 | B103: 1030360801 | C103: 北海道教育 | D103: 教育岩見沢校 | E103: 芸術－声楽 | G103: 102 | H103: 1045302520 | I103: 北教大札幌校 | J103: 教育 | K103: 教員／言語社 | L103: 後
A104: 103 | B104: 1030360901 | C104: 北海道教育 | D104: 教育岩見沢校 | E104: 芸術－鍵盤楽器・作曲 | G104: 103 | H104: 1045302610 | I104: 北教大札幌校 | J104: 教育 | K104: 教員／理数教 | L104: 前
A105: 104 | B105: 1030361001 | C105: 北海道教育 | D105: 教育岩見沢校 | E105: 芸術－管弦打楽器 | G105: 104 | H105: 1045302620 | I105: 北教大札幌校 | J105: 教育 | K105: 教員／理数教 | L105: 後
A106: 105 | B106: 1030361101 | C106: 北海道教育 | D106: 教育岩見沢校 | E106: 芸術－音楽教育・音楽文化 | G106: 105 | H106: 1045302710 | I106: 北教大札幌校 | J106: 教育 | K106: 教員／生活創 | L106: 前
A107: 106 | B107: 1030361201 | C107: 北海道教育 | D107: 教育岩見沢校 | E107: 芸術－美術・デザイン | G107: 106 | H107: 1045302720 | I107: 北教大札幌校 | J107: 教育 | K107: 教員／生活創 | L107: 後
A108: 107 | B108: 1030361202 | C108: 北海道教育 | D108: 教育岩見沢校 | E108: 芸術－美術・デザイン | G108: 107 | H108: 1045302810 | I108: 北教大札幌校 | J108: 教育 | K108: 教員／図画工 | L108: 前
A109: 108 | B109: 1030361301 | C109: 北海道教育 | D109: 教育岩見沢校 | E109: 芸術－書画・工芸 | G109: 108 | H109: 1045302910 | I109: 北教大札幌校 | J109: 教育 | K109: 教員／音楽 | L109: 前
A110: 109 | B110: 1030361302 | C110: 北海道教育 | D110: 教育岩見沢校 | E110: 芸術－書画・工芸 | G110: 109 | H110: 1045303010 | I110: 北教大札幌校 | J110: 教育 | K110: 教員／保健体 | L110: 前
A111: 110 | B111: 1030361401 | C111: 北海道教育 | D111: 教育岩見沢校 | E111: 芸術－メディア・タイムアート | G111: 110 | H111: 1050303210 | I111: 北教大函館校 | J111: 教育 | K111: 国際／国際協 | L111: 前
A112: 111 | B112: 1030361402 | C112: 北海道教育 | D112: 教育岩見沢校 | E112: 芸術－メディア・タイムアート | G112: 111 | H112: 1050303220 | I112: 北教大函館校 | J112: 教育 | K112: 国際／国際協 | L112: 後
A113: 112 | B113: 1030361501 | C113: 北海道教育 | D113: 教育岩見沢校 | E113: 芸術－美術文化教育 | G113: 112 | H113: 1050303310 | I113: 北教大函館校 | J113: 教育 | K113: 国際／地域政 | L113: 前
A114: 113 | B114: 1030361502 | C114: 北海道教育 | D114: 教育岩見沢校 | E114: 芸術－美術文化教育 | G114: 113 | H114: 1050303320 | I114: 北教大函館校 | J114: 教育 | K114: 国際／地域政 | L114: 後
A115: 114 | B115: 1030361601 | C115: 北海道教育 | D115: 教育岩見沢校 | E115: 芸術－スポーツ・コーチング科学 | G115: 114 | H115: 1050303410 | I115: 北教大函館校 | J115: 教育 | K115: 国際／地域環 | L115: 前
A116: 115 | B116: 1030361602 | C116: 北海道教育 | D116: 教育岩見沢校 | E116: 芸術－スポーツ・コーチング科学 | G116: 115 | H116: 1050303420 | I116: 北教大函館校 | J116: 教育 | K116: 国際／地域環 | L116: 後
A117: 116 | B117: 1030361701 | C117: 北海道教育 | D117: 教育岩見沢校 | E117: 芸術－アウトドア・ライフ | G117: 116 | H117: 1050303510 | I117: 北教大函館校 | J117: 教育 | K117: 国際／地域教 | L117: 前
A118: 117 | B118: 1030361702 | C118: 北海道教育 | D118: 教育岩見沢校 | E118: 芸術－アウトドア・ライフ | G118: 117 | H118: 1050303520 | I118: 北教大函館校 | J118: 教育 | K118: 国際／地域教 | L118: 後
A119: 118 | B119: 1035420101 | C119: 室蘭工業 | D119: 理工（昼間） | E119: 創造工 | G119: 118 | H119: 1055470110 | I119: 室蘭工大 | J119: 理工 | K119: 生産工 | L119: 前
A120: 119 | B120: 1035420102 | C120: 室蘭工業 | D120: 理工（昼間） | E120: 創造工 | G120: 119 | H120: 1055470120 | I120: 室蘭工大 | J120: 理工 | K120: 生産工 | L120: 後
A121: 120 | B121: 1035420201 | C121: 室蘭工業 | D121: 理工（昼間） | E121: システム理化学 | G121: 120 | H121: 1055470210 | I121: 室蘭工大 | J121: 理工 | K121: 生産科学 | L121: 前
A122: 121 | B122: 1035420202 | C122: 室蘭工業 | D122: 理工（昼間） | E122: システム理化学 | G122: 121 | H122: 1055470220 | I122: 室蘭工大 | J122: 理工 | K122: 生産科学 | L122: 後
A123: 122 | B123: 1035540101 | C123: 室蘭工業 | D123: 理工（夜間主） | E123: 創造工 | G123: 122 | H123: 1055530110 | I123: 室蘭工大 | J123: 理工夜 | K123: 生産工 | L123: 前
A124: 123 | B124: 1035540102 | C124: 室蘭工業 | D124: 理工（夜間主） | E124: 創造工 | G124: 123 | H124: 1055530120 | I124: 室蘭工大 | J124: 理工夜 | K124: 生産工 | L124: 後
A125: 124 | B125: 1040070101 | C125: 弘前 | D125: 人文社会科学 | E125: 文化創生 | G125: 124 | H125: 1060270110 | I125: 弘前大 | J125: 人文社会 | K125: 文化創生 | L125: 前
A126: 125 | B126: 1040070102 | C126: 弘前 | D126: 人文社会科学 | E126: 文化創生 | G126: 125 | H126: 1060270120 | I126: 弘前大 | J126: 人文社会 | K126: 文化創生 | L126: 後
A127: 126 | B127: 1040070201 | C127: 弘前 | D127: 人文社会科学 | E127: 社会経営（国語選択） | G127: 126 | H127: 1060270211 | I127: 弘前大 | J127: 人文社会 | K127: 社会経営 | L127: 前
A128: 127 | B128: 1040070202 | C128: 弘前 | D128: 人文社会科学 | E128: 社会経営（数学選択） | G128: 127 | H128: 1060270212 | I128: 弘前大 | J128: 人文社会 | K128: 社会経営 | L128: 前
A129: 128 | B129: 1040070203 | C129: 弘前 | D129: 人文社会科学 | E129: 社会経営 | G129: 128 | H129: 1060270220 | I129: 弘前大 | J129: 人文社会 | K129: 社会経営 | L129: 後
A130: 129 | B130: 1040300201 | C130: 弘前 | D130: 教育 | E130: 養護教諭養成 | G130: 129 | H130: 1060301510 | I130: 弘前大 | J130: 教育 | K130: 養護教諭 | L130: 前
A131: 130 | B131: 1040304401 | C131: 弘前 | D131: 教育 | E131: 学校－特別支援教育 | G131: 130 | H131: 1060304810 | I131: 弘前大 | J131: 教育 | K131: 学校／特別支 | L131: 前
A132: 131 | B132: 1040306201 | C132: 弘前 | D132: 教育 | E132: 学校－小学校 | G132: 131 | H132: 1060304910 | I132: 弘前大 | J132: 教育 | K132: 学校／小学校 | L132: 前
A133: 132 | B133: 1040306202 | C133: 弘前 | D133: 教育 | E133: 学校－小学校 | G133: 132 | H133: 1060304920 | I133: 弘前大 | J133: 教育 | K133: 学校／小学校 | L133: 後
A134: 133 | B134: 1040306301 | C134: 弘前 | D134: 教育 | E134: 学校－中学国語 | G134: 133 | H134: 1060305010 | I134: 弘前大 | J134: 教育 | K134: 学校／国語 | L134: 前
A135: 134 | B135: 1040306401 | C135: 弘前 | D135: 教育 | E135: 学校－中学社会 | G135: 134 | H135: 1060305110 | I135: 弘前大 | J135: 教育 | K135: 学校／社会 | L135: 前
A136: 135 | B136: 1040306501 | C136: 弘前 | D136: 教育 | E136: 学校－中学数学 | G136: 135 | H136: 1060305210 | I136: 弘前大 | J136: 教育 | K136: 学校／数学 | L136: 前
A137: 136 | B137: 1040306601 | C137: 弘前 | D137: 教育 | E137: 学校－中学理科 | G137: 136 | H137: 1060305310 | I137: 弘前大 | J137: 教育 | K137: 学校／理科 | L137: 前
A138: 137 | B138: 1040306701 | C138: 弘前 | D138: 教育 | E138: 学校－中学音楽 | G138: 137 | H138: 1060305410 | I138: 弘前大 | J138: 教育 | K138: 学校／音楽 | L138: 前
A139: 138 | B139: 1040306801 | C139: 弘前 | D139: 教育 | E139: 学校－中学美術 | G139: 138 | H139: 1060305510 | I139: 弘前大 | J139: 教育 | K139: 学校／美術 | L139: 前
A140: 139 | B140: 1040306901 | C140: 弘前 | D140: 教育 | E140: 学校－中学保健体育 | G140: 139 | H140: 1060305610 | I140: 弘前大 | J140: 教育 | K140: 学校／保体 | L140: 前
A141: 140 | B141: 1040307001 | C141: 弘前 | D141: 教育 | E141: 学校－中学技術 | G141: 140 | H141: 1060305710 | I141: 弘前大 | J141: 教育 | K141: 学校／技術 | L141: 前
A142: 141 | B142: 1040307101 | C142: 弘前 | D142: 教育 | E142: 学校－中学家庭科 | G142: 141 | H142: 1060305810 | I142: 弘前大 | J142: 教育 | K142: 学校／家庭 | L142: 前
A143: 142 | B143: 1040307201 | C143: 弘前 | D143: 教育 | E143: 学校－中学英語 | G143: 142 | H143: 1060305910 | I143: 弘前大 | J143: 教育 | K143: 学校／英語 | L143: 前
A144: 143 | B144: 1040420401 | C144: 弘前 | D144: 理工 | E144: 電子情報工 | G144: 143 | H144: 1060470710 | I144: 弘前大 | J144: 理工 | K144: 物質創成化 | L144: 前
A145: 144 | B145: 1040420402 | C145: 弘前 | D145: 理工 | E145: 電子情報工 | G145: 144 | H145: 1060470720 | I145: 弘前大 | J145: 理工 | K145: 物質創成化 | L145: 後
A146: 145 | B146: 1040420601 | C146: 弘前 | D146: 理工 | E146: 物質創成化学 | G146: 145 | H146: 1060470810 | I146: 弘前大 | J146: 理工 | K146: 電子情報工 | L146: 前
A147: 146 | B147: 1040420602 | C147: 弘前 | D147: 理工 | E147: 物質創成化学 | G147: 146 | H147: 1060470820 | I147: 弘前大 | J147: 理工 | K147: 電子情報工 | L147: 後
A148: 147 | B148: 1040420701 | C148: 弘前 | D148: 理工 | E148: 数物科学（数学選択） | G148: 147 | H148: 1060470911 | I148: 弘前大 | J148: 理工 | K148: 数物科学 | L148: 前
A149: 148 | B149: 1040420702 | C149: 弘前 | D149: 理工 | E149: 数物科学（数学・理科選択） | G149: 148 | H149: 1060470912 | I149: 弘前大 | J149: 理工 | K149: 数物科学 | L149: 前
A150: 149 | B150: 1040420703 | C150: 弘前 | D150: 理工 | E150: 数物科学（数学選択） | G150: 149 | H150: 1060470921 | I150: 弘前大 | J150: 理工 | K150: 数物科学 | L150: 後
A151: 150 | B151: 1040420704 | C151: 弘前 | D151: 理工 | E151: 数物科学（理科選択） | G151: 150 | H151: 1060470922 | I151: 弘前大 | J151: 理工 | K151: 数物科学 | L151: 後
A152: 151 | B152: 1040420801 | C152: 弘前 | D152: 理工 | E152: 地球環境防災 | G152: 151 | H152: 1060471010 | I152: 弘前大 | J152: 理工 | K152: 地球環境防災 | L152: 前
A153: 152 | B153: 1040420802 | C153: 弘前 | D153: 理工 | E153: 地球環境防災 | G153: 152 | H153: 1060471020 | I153: 弘前大 | J153: 理工 | K153: 地球環境防災 | L153: 後
A154: 153 | B154: 1040420901 | C154: 弘前 | D154: 理工 | E154: 機械科学 | G154: 153 | H154: 1060471110 | I154: 弘前大 | J154: 理工 | K154: 機械科学 | L154: 前
A155: 154 | B155: 1040420902 | C155: 弘前 | D155: 理工 | E155: 機械科学 | G155: 154 | H155: 1060471120 | I155: 弘前大 | J155: 理工 | K155: 機械科学 | L155: 後
A156: 155 | B156: 1040421001 | C156: 弘前 | D156: 理工 | E156: 自然エネルギー | G156: 155 | H156: 1060471210 | I156: 弘前大 | J156: 理工 | K156: 自然エネルギ | L156: 前
A157: 156 | B157: 1040421002 | C157: 弘前 | D157: 理工 | E157: 自然エネルギー | G157: 156 | H157: 1060471220 | I157: 弘前大 | J157: 理工 | K157: 自然エネルギ | L157: 後
A158: 157 | B158: 1040490501 | C158: 弘前 | D158: 農学生命科学 | E158: 生物 | G158: 157 | H158: 1060550111 | I158: 弘前大 | J158: 医 | K158: 医 | L158: 前
A159: 158 | B159: 1040490502 | C159: 弘前 | D159: 農学生命科学 | E159: 生物 | G159: 158 | H159: 1060550112 | I159: 弘前大 | J159: 医 | K159: 医 | L159: 前
A160: 159 | B160: 1040490601 | C160: 弘前 | D160: 農学生命科学 | E160: 分子生命科学 | G160: 159 | H160: 1060550310 | I160: 弘前大 | J160: 医 | K160: 保健／看護学 | L160: 前
A161: 160 | B161: 1040490602 | C161: 弘前 | D161: 農学生命科学 | E161: 分子生命科学 | G161: 160 | H161: 1060550410 | I161: 弘前大 | J161: 医 | K161: 保健／放射線 | L161: 前
A162: 161 | B162: 1040490901 | C162: 弘前 | D162: 農学生命科学 | E162: 地域環境工 | G162: 161 | H162: 1060550510 | I162: 弘前大 | J162: 医 | K162: 保健／検査技 | L162: 前
A163: 162 | B163: 1040490902 | C163: 弘前 | D163: 農学生命科学 | E163: 地域環境工 | G163: 162 | H163: 1060550610 | I163: 弘前大 | J163: 医 | K163: 保健／理学療 | L163: 前
A164: 163 | B164: 1040491001 | C164: 弘前 | D164: 農学生命科学 | E164: 食料資源 | G164: 163 | H164: 1060550710 | I164: 弘前大 | J164: 医 | K164: 保健／作業療 | L164: 前
A165: 164 | B165: 1040491002 | C165: 弘前 | D165: 農学生命科学 | E165: 食料資源 | G165: 164 | H165: 1060740510 | I165: 弘前大 | J165: 農学生命 | K165: 生物 | L165: 前
A166: 165 | B166: 1040491101 | C166: 弘前 | D166: 農学生命科学 | E166: 国際園芸農 | G166: 165 | H166: 1060740520 | I166: 弘前大 | J166: 農学生命 | K166: 生物 | L166: 後
A167: 166 | B167: 1040491102 | C167: 弘前 | D167: 農学生命科学 | E167: 国際園芸農 | G167: 166 | H167: 1060740610 | I167: 弘前大 | J167: 農学生命 | K167: 分子生命科学 | L167: 前
A168: 167 | B168: 1040600101 | C168: 弘前 | D168: 医 | E168: 医（一般枠） | G168: 167 | H168: 1060740620 | I168: 弘前大 | J168: 農学生命 | K168: 分子生命科学 | L168: 後
A169: 168 | B169: 1040600103 | C169: 弘前 | D169: 医 | E169: 医（青森県定着枠） | G169: 168 | H169: 1060740710 | I169: 弘前大 | J169: 農学生命 | K169: 食料資源 | L169: 前
A170: 169 | B170: 1040603101 | C170: 弘前 | D170: 医 | E170: 保健－看護学 | G170: 169 | H170: 1060740720 | I170: 弘前大 | J170: 農学生命 | K170: 食料資源 | L170: 後
A171: 170 | B171: 1040603201 | C171: 弘前 | D171: 医 | E171: 保健－放射線技術科学 | G171: 170 | H171: 1060740810 | I171: 弘前大 | J171: 農学生命 | K171: 国際園芸農 | L171: 前
A172: 171 | B172: 1040603301 | C172: 弘前 | D172: 医 | E172: 保健－検査技術科学 | G172: 171 | H172: 1060740820 | I172: 弘前大 | J172: 農学生命 | K172: 国際園芸農 | L172: 後
A173: 172 | B173: 1040603401 | C173: 弘前 | D173: 医 | E173: 保健－理学療法学 | G173: 172 | H173: 1060740910 | I173: 弘前大 | J173: 農学生命 | K173: 地域環境工 | L173: 前
A174: 173 | B174: 1040603501 | C174: 弘前 | D174: 医 | E174: 保健－作業療法学 | G174: 173 | H174: 1060740920 | I174: 弘前大 | J174: 農学生命 | K174: 地域環境工 | L174: 後
A175: 174 | B175: 1045060501 | C175: 岩手 | D175: 人文社会科学 | E175: 人間文化 | G175: 174 | H175: 1065270610 | I175: 岩手大 | J175: 人文社会 | K175: 人間文化 | L175: 前
A176: 175 | B176: 1045060502 | C176: 岩手 | D176: 人文社会科学 | E176: 人間文化 | G176: 175 | H176: 1065270620 | I176: 岩手大 | J176: 人文社会 | K176: 人間文化 | L176: 後
A177: 176 | B177: 1045060601 | C177: 岩手 | D177: 人文社会科学 | E177: 地域政策 | G177: 176 | H177: 1065270710 | I177: 岩手大 | J177: 人文社会 | K177: 地域政策 | L177: 前
A178: 177 | B178: 1045060602 | C178: 岩手 | D178: 人文社会科学 | E178: 地域政策 | G178: 177 | H178: 1065270720 | I178: 岩手大 | J178: 人文社会 | K178: 地域政策 | L178: 後
A179: 178 | B179: 1045304301 | C179: 岩手 | D179: 教育 | E179: 学校－特別支援教育 | G179: 178 | H179: 1065301510 | I179: 岩手大 | J179: 教育 | K179: 学校／小学校 | L179: 前
A180: 179 | B180: 1045304302 | C180: 岩手 | D180: 教育 | E180: 学校－特別支援教育 | G180: 179 | H180: 1065301520 | I180: 岩手大 | J180: 教育 | K180: 学校／小学校 | L180: 後
A181: 180 | B181: 1045305301 | C181: 岩手 | D181: 教育 | E181: 学校－小学校教育 | G181: 180 | H181: 1065302710 | I181: 岩手大 | J181: 教育 | K181: 学校／特別支 | L181: 前
A182: 181 | B182: 1045305302 | C182: 岩手 | D182: 教育 | E182: 学校－小学校教育 | G182: 181 | H182: 1065302720 | I182: 岩手大 | J182: 教育 | K182: 学校／特別支 | L182: 後
A183: 182 | B183: 1045305401 | C183: 岩手 | D183: 教育 | E183: 学校－中学国語 | G183: 182 | H183: 1065304010 | I183: 岩手大 | J183: 教育 | K183: 学校／国語 | L183: 前
A184: 183 | B184: 1045305501 | C184: 岩手 | D184: 教育 | E184: 学校－中学社会 | G184: 183 | H184: 1065304110 | I184: 岩手大 | J184: 教育 | K184: 学校／社会 | L184: 前
A185: 184 | B185: 1045305601 | C185: 岩手 | D185: 教育 | E185: 学校－中学技術 | G185: 184 | H185: 1065304210 | I185: 岩手大 | J185: 教育 | K185: 学校／技術 | L185: 前
A186: 185 | B186: 1045305701 | C186: 岩手 | D186: 教育 | E186: 学校－中学家庭 | G186: 185 | H186: 1065304310 | I186: 岩手大 | J186: 教育 | K186: 学校／家庭 | L186: 前
A187: 186 | B187: 1045305801 | C187: 岩手 | D187: 教育 | E187: 学校－中学英語 | G187: 186 | H187: 1065304410 | I187: 岩手大 | J187: 教育 | K187: 学校／英語 | L187: 前
A188: 187 | B188: 1045305901 | C188: 岩手 | D188: 教育 | E188: 学校－中学音楽 | G188: 187 | H188: 1065304510 | I188: 岩手大 | J188: 教育 | K188: 学校／音楽 | L188: 前
A189: 188 | B189: 1045306001 | C189: 岩手 | D189: 教育 | E189: 学校－中学美術 | G189: 188 | H189: 1065304610 | I189: 岩手大 | J189: 教育 | K189: 学校／美術 | L189: 前
A190: 189 | B190: 1045306101 | C190: 岩手 | D190: 教育 | E190: 学校－中学保健体育 | G190: 189 | H190: 1065304710 | I190: 岩手大 | J190: 教育 | K190: 学校／保健体 | L190: 前
A191: 190 | B191: 1045306201 | C191: 岩手 | D191: 教育 | E191: 学校－数学 | G191: 190 | H191: 1065304810 | I191: 岩手大 | J191: 教育 | K191: 学校／数学 | L191: 前
A192: 191 | B192: 1045306301 | C192: 岩手 | D192: 教育 | E192: 学校－理科 | G192: 191 | H192: 1065304910 | I192: 岩手大 | J192: 教育 | K192: 学校／理科 | L192: 前
A193: 192 | B193: 1045420201 | C193: 岩手 | D193: 理工 | E193: 化学－化学 | G193: 192 | H193: 1065470410 | I193: 岩手大 | J193: 理工 | K193: 化学／化学 | L193: 前
A194: 193 | B194: 1045420202 | C194: 岩手 | D194: 理工 | E194: 化学－化学 | G194: 193 | H194: 1065470420 | I194: 岩手大 | J194: 理工 | K194: 化学／化学 | L194: 後
A195: 194 | B195: 1045420301 | C195: 岩手 | D195: 理工 | E195: 化学－生命 | G195: 194 | H195: 1065470510 | I195: 岩手大 | J195: 理工 | K195: 化学／生命 | L195: 前
A196: 195 | B196: 1045420302 | C196: 岩手 | D196: 理工 | E196: 化学－生命 | G196: 195 | H196: 1065470520 | I196: 岩手大 | J196: 理工 | K196: 化学／生命 | L196: 後
A197: 196 | B197: 1045420501 | C197: 岩手 | D197: 理工 | E197: 物理－数理・物理 | G197: 196 | H197: 1065470610 | I197: 岩手大 | J197: 理工 | K197: 物理／数理物 | L197: 前
A198: 197 | B198: 1045420502 | C198: 岩手 | D198: 理工 | E198: 物理－数理・物理 | G198: 197 | H198: 1065470620 | I198: 岩手大 | J198: 理工 | K198: 物理／数理物 | L198: 後
A199: 198 | B199: 1045420601 | C199: 岩手 | D199: 理工 | E199: 物理－マテリアル | G199: 198 | H199: 1065470710 | I199: 岩手大 | J199: 理工 | K199: 物理／マテリ | L199: 前
A200: 199 | B200: 1045420602 | C200: 岩手 | D200: 理工 | E200: 物理－マテリアル | G200: 199 | H200: 1065470720 | I200: 岩手大 | J200: 理工 | K200: 物理／マテリ | L200: 後
A201: 200 | B201: 1045420801 | C201: 岩手 | D201: 理工 | E201: シス－電気電子通信 | G201: 200 | H201: 1065470810 | I201: 岩手大 | J201: 理工 | K201: シス／電気電 | L201: 前
... 3374 more rows
